{"text_format":"1","workbook":"xlsx","n_sheets":3,"sheets":["Inserir Pendencia PR","Registro Pendencia PR","CALENDÁRIO"],"not_rendered":{"charts":0,"images":0,"macros":1,"external_links":0,"defined_names":21,"comments":0,"pivot_tables":0},"unopened":[],"bounds":{"document_bytes":16777216,"sheet_cells":100000,"rows_first":2000,"rows_last":500,"rows_between":2000,"halvings":0,"cell_chars":16384,"cell_head_chars":4096},"cells_cut":0,"cells_raw":0,"read":"whole","date_system":"1900"}

{"sheet":"Inserir Pendencia PR","index":0,"n_rows":21,"n_cols":10,"rows_kept":21,"cut":false,"hidden":false,"merged":[[1,5,2,5]]}
[]
[]
[]
[]
[]
[]
[]
[]
[null,"Nº Pendência (Nº Automático)","0000493",null,null,null,null,"",{"$f":"VLOOKUP(H9,'Registro Pendencia PR'!A:S,1,0)","v":{"$error":"#N/A"}},{"$f":"VLOOKUP(H9,'Registro Pendencia PR'!A:S,2,0)","v":{"$error":"#N/A"}}]
[null,"Data","2021-12-15",null,null,null,null,null,{"$f":"VLOOKUP(H9,'Registro Pendencia PR'!A:S,12,0)","v":{"$error":"#N/A"}}]
[null,"Nº Ponte Rolante","PR01",null,null,null,null,null,{"$f":"VLOOKUP(H9,'Registro Pendencia PR'!A:S,13,0)","v":{"$error":"#N/A"}}]
[null,"Área","Estrutura TROLE",null,null,null,null,null,{"$f":"VLOOKUP(H9,'Registro Pendencia PR'!A:S,14,0)","v":{"$error":"#N/A"}}]
[null,"Item",11020,{"$f":" IFERROR(VLOOKUP(C13,CALENDÁRIO!$AJ$7:$AK$154,2,FALSE),\"\")","v":"Limpa trilhos do trole"},null,null,null,null,{"$f":"VLOOKUP(H9,'Registro Pendencia PR'!A:S,8,0)","v":{"$error":"#N/A"}}]
[null,"Nº OS da MP",12,null,null,null,null,null,{"$f":"VLOOKUP(H9,'Registro Pendencia PR'!A:S,9,0)","v":{"$error":"#N/A"}}]
[null,"Observação da OS","y"]
[null,"Prazo Inicial","2021-12-16"]
[null,"Prazo Final","2021-12-20"]
[null,"Responsável"]
[null,"mês",{"$f":"IF(C10=\"\",\"\",UPPER(TEXT(C10,\"MMMM\")))","v":"DEZEMBRO"}]
[null,"ano",{"$f":"IF(C10=\"\",\"\",YEAR(C10))","v":2021}]
[null,"Tabela Auxiliar",{"$f":"IF(C11=\"\",\"\",IF(C12=\"Estrutura TROLE\",\"AA\",IF(C12=\"Maquinário TROLE\",\"AB\",IF(C12=\"Elétrica TROLE\",\"AC\",IF(C12=\"Maquinário TALHA\",\"AD\",IF(C12=\"Elétrica TALHA\",\"AE\",IF(C12=\"Estrutura PONTE\",\"AF\",IF(C12=\"Maquinário da Ponte / Pórtico\",\"AG\",IF(C12=\"Elétrica da Ponte / Pórtico\",\"AH\",IF(C12=\"Estrutura do Caminho de Rolamento\",\"AI\",IF(C12=\"Elétrica do Caminho de Rolamento\",\"AJ\",\"\")))))))))))","v":"AA"}]

{"sheet":"Registro Pendencia PR","index":1,"n_rows":500,"n_cols":20,"rows_kept":500,"cut":false,"hidden":false,"merged":[]}
[]
[]
[]
[]
[]
["Nº Pendência ","Data","Nº Ponte Rolante","Área","Item","Descrição do Item","Nº OS da MP","Prazo Inicial","Prazo Final","Observação da OS","Responsável","Data Conclusão","Data Reprogramação","Data Cancelamento","mês","ano","Pendente?","Observação Manutenção","ano_aux"]
["0000001","2017-01-10","PR02","Trole / Carro","5.7","Uniões Parafusadas/Cupilhas",137574,null,null,null,"Jesiel","2017-06-23",null,null,"JANEIRO",2017,{"$f":"IF(B7=\"\",\"\",IF(AND(L7=\"\",N7=\"\"),\"SIM\",IF(M7<>\"\",\"SIM\",\"NÃO\")))","v":"NÃO"},null,{"$f":"IFERROR(INDEX(P$7:P$1048576,MATCH(1,(COUNTIF(S$6:S6,P$7:P$1048576)=0)*(P$7:P$1048576<>\"\"),0)),0)","v":2017},{"$f":"IFERROR(IF(INDEX(ano_aux,MATCH(0,INDEX(COUNTIF(T$6:T6,ano_aux),,),))=0,\"\",IFERROR(INDEX(ano_aux,MATCH(0,INDEX(COUNTIF(T$6:T6,Codigo),,),)),\"\")),\"\")","v":""}]
["000002","2017-01-10","PR02","Trole / Carro","5.8","Vedação dos Redutores",137574,null,null,null,"Jesiel","2017-06-23",null,null,"JANEIRO",2017,{"$f":"IF(B8=\"\",\"\",IF(AND(L8=\"\",N8=\"\"),\"SIM\",IF(M8<>\"\",\"SIM\",\"NÃO\")))","v":"NÃO"},null,{"$f":"IFERROR(INDEX(P$7:P$1048576,MATCH(1,(COUNTIF(S$6:S7,P$7:P$1048576)=0)*(P$7:P$1048576<>\"\"),0)),0)","v":2018},{"$f":"IFERROR(IF(INDEX(ano_aux,MATCH(0,INDEX(COUNTIF(T$6:T7,ano_aux),,),))=0,\"\",IFERROR(INDEX(ano_aux,MATCH(0,INDEX(COUNTIF(T$6:T7,Codigo),,),)),\"\")),\"\")","v":""}]
["0000003","2017-01-10","PR02","Trole / Carro","5.9","Eixos e Rolamentos",137574,null,null,null,"Jesiel","2017-06-23",null,null,"JANEIRO",2017,"NÃO",null,{"$f":"IFERROR(INDEX(P$7:P$1048576,MATCH(1,(COUNTIF(S$6:S8,P$7:P$1048576)=0)*(P$7:P$1048576<>\"\"),0)),0)","v":2019},{"$f":"IFERROR(IF(INDEX(ano_aux,MATCH(0,INDEX(COUNTIF(T$6:T8,ano_aux),,),))=0,\"\",IFERROR(INDEX(ano_aux,MATCH(0,INDEX(COUNTIF(T$6:T8,Codigo),,),)),\"\")),\"\")","v":""}]
["0000004","2017-01-10",null,"Ponte Rolante","6.12","Limites",137574,null,null,null,"Jesiel","2017-10-10",null,null,"JANEIRO",2017,"NÃO",null,{"$f":"IFERROR(INDEX(P$7:P$1048576,MATCH(1,(COUNTIF(S$6:S9,P$7:P$1048576)=0)*(P$7:P$1048576<>\"\"),0)),0)","v":2020},{"$f":"IFERROR(IF(INDEX(ano_aux,MATCH(0,INDEX(COUNTIF(T$6:T9,ano_aux),,),))=0,\"\",IFERROR(INDEX(ano_aux,MATCH(0,INDEX(COUNTIF(T$6:T9,Codigo),,),)),\"\")),\"\")","v":""}]
["0000005","2017-01-10",null,"Caminho de Rolamento","9.2","Emenda dos Trilhos/Talas de Junção",137574,null,null,null,"Jesiel","2019-02-21",null,null,"JANEIRO",2017,"NÃO",null,{"$f":"IFERROR(INDEX(P$7:P$1048576,MATCH(1,(COUNTIF(S$6:S10,P$7:P$1048576)=0)*(P$7:P$1048576<>\"\"),0)),0)","v":2021},{"$f":"IFERROR(IF(INDEX(ano_aux,MATCH(0,INDEX(COUNTIF(T$6:T10,ano_aux),,),))=0,\"\",IFERROR(INDEX(ano_aux,MATCH(0,INDEX(COUNTIF(T$6:T10,Codigo),,),)),\"\")),\"\")","v":""}]
["0000006","2017-01-10",null,"Sistema Elétrico","10.8","Contatores",137574,null,null,"Aguardando Material Para Proxima Preventiva Previsto Para 10/10/2017","Jesiel","2017-03-29",null,null,"JANEIRO",2017,"NÃO",null,{"$f":"IFERROR(INDEX(P$7:P$1048576,MATCH(1,(COUNTIF(S$6:S11,P$7:P$1048576)=0)*(P$7:P$1048576<>\"\"),0)),0)","v":0},{"$f":"IFERROR(IF(INDEX(ano_aux,MATCH(0,INDEX(COUNTIF(T$6:T11,ano_aux),,),))=0,\"\",IFERROR(INDEX(ano_aux,MATCH(0,INDEX(COUNTIF(T$6:T11,Codigo),,),)),\"\")),\"\")","v":""}]
["0000007","2017-01-10",null,"Sistema Elétrico","10.9","Contatos",137574,null,null,null,"Jesiel","2017-03-29",null,null,"JANEIRO",2017,"NÃO",null,{"$f":"IFERROR(INDEX(P$7:P$1048576,MATCH(1,(COUNTIF(S$6:S12,P$7:P$1048576)=0)*(P$7:P$1048576<>\"\"),0)),0)","v":0},{"$f":"IFERROR(IF(INDEX(ano_aux,MATCH(0,INDEX(COUNTIF(T$6:T12,ano_aux),,),))=0,\"\",IFERROR(INDEX(ano_aux,MATCH(0,INDEX(COUNTIF(T$6:T12,Codigo),,),)),\"\")),\"\")","v":""}]
["0000008","2017-01-09",null,"Elevação Principal","1.8","Bloco Superior (Polias)",137573,null,null,null,"Jesiel","2017-05-11",null,null,"JANEIRO",2017,"NÃO",null,{"$f":"IFERROR(INDEX(P$7:P$1048576,MATCH(1,(COUNTIF(S$6:S13,P$7:P$1048576)=0)*(P$7:P$1048576<>\"\"),0)),0)","v":0},{"$f":"IFERROR(IF(INDEX(ano_aux,MATCH(0,INDEX(COUNTIF(T$6:T13,ano_aux),,),))=0,\"\",IFERROR(INDEX(ano_aux,MATCH(0,INDEX(COUNTIF(T$6:T13,Codigo),,),)),\"\")),\"\")","v":""}]
["0000009","2017-01-09",null,"Trole / Carro","5.7","Uniões Parafusadas/Cupilhas",137573,null,null,null,"Jesiel","2017-05-11",null,null,"JANEIRO",2017,"NÃO",null,{"$f":"IFERROR(INDEX(P$7:P$1048576,MATCH(1,(COUNTIF(S$6:S14,P$7:P$1048576)=0)*(P$7:P$1048576<>\"\"),0)),0)","v":0},{"$f":"IFERROR(IF(INDEX(ano_aux,MATCH(0,INDEX(COUNTIF(T$6:T14,ano_aux),,),))=0,\"\",IFERROR(INDEX(ano_aux,MATCH(0,INDEX(COUNTIF(T$6:T14,Codigo),,),)),\"\")),\"\")","v":""}]
["0000010","2017-01-09",null,"Trole / Carro","5.18","Limites",137573,null,null,null,"Jesiel","2017-07-05",null,null,"JANEIRO",2017,"NÃO",null,{"$f":"IFERROR(INDEX(P$7:P$1048576,MATCH(1,(COUNTIF(S$6:S15,P$7:P$1048576)=0)*(P$7:P$1048576<>\"\"),0)),0)","v":0},{"$f":"IFERROR(IF(INDEX(ano_aux,MATCH(0,INDEX(COUNTIF(T$6:T15,ano_aux),,),))=0,\"\",IFERROR(INDEX(ano_aux,MATCH(0,INDEX(COUNTIF(T$6:T15,Codigo),,),)),\"\")),\"\")","v":""}]
["0000011","2017-01-09",null,"Ponte Rolante","6.12","Limites",137573,null,null,null,"Jesiel","2017-05-10",null,null,"JANEIRO",2017,"NÃO",null,{"$f":"IFERROR(INDEX(P$7:P$1048576,MATCH(1,(COUNTIF(S$6:S16,P$7:P$1048576)=0)*(P$7:P$1048576<>\"\"),0)),0)","v":0},{"$f":"IFERROR(IF(INDEX(ano_aux,MATCH(0,INDEX(COUNTIF(T$6:T16,ano_aux),,),))=0,\"\",IFERROR(INDEX(ano_aux,MATCH(0,INDEX(COUNTIF(T$6:T16,Codigo),,),)),\"\")),\"\")","v":""}]
["0000012","2017-01-09",null,"Caminho de Rolamento","9.2","Emenda dos Trilhos/Talas de Junção",137573,null,null,null,"Jesiel","2019-02-21",null,null,"JANEIRO",2017,"NÃO",null,{"$f":"IFERROR(INDEX(P$7:P$1048576,MATCH(1,(COUNTIF(S$6:S17,P$7:P$1048576)=0)*(P$7:P$1048576<>\"\"),0)),0)","v":0},{"$f":"IFERROR(IF(INDEX(ano_aux,MATCH(0,INDEX(COUNTIF(T$6:T17,ano_aux),,),))=0,\"\",IFERROR(INDEX(ano_aux,MATCH(0,INDEX(COUNTIF(T$6:T17,Codigo),,),)),\"\")),\"\")","v":""}]
["0000013","2017-01-09","PR03","Caminho de Rolamento","9.3","Elementos de Fixação",137573,null,null,null,"Jesiel","2019-02-21",null,null,"JANEIRO",2017,"NÃO",null,{"$f":"IFERROR(INDEX(P$7:P$1048576,MATCH(1,(COUNTIF(S$6:S18,P$7:P$1048576)=0)*(P$7:P$1048576<>\"\"),0)),0)","v":0},{"$f":"IFERROR(IF(INDEX(ano_aux,MATCH(0,INDEX(COUNTIF(T$6:T18,ano_aux),,),))=0,\"\",IFERROR(INDEX(ano_aux,MATCH(0,INDEX(COUNTIF(T$6:T18,Codigo),,),)),\"\")),\"\")","v":""}]
["0000014","2017-01-09","PR03","Caminho de Rolamento","9.4","Batentes Fim de Curso",137573,null,null,null,"Jesiel","2017-07-03",null,null,"JANEIRO",2017,"NÃO",null,{"$f":"IFERROR(INDEX(P$7:P$1048576,MATCH(1,(COUNTIF(S$6:S19,P$7:P$1048576)=0)*(P$7:P$1048576<>\"\"),0)),0)","v":0},{"$f":"IFERROR(IF(INDEX(ano_aux,MATCH(0,INDEX(COUNTIF(T$6:T19,ano_aux),,),))=0,\"\",IFERROR(INDEX(ano_aux,MATCH(0,INDEX(COUNTIF(T$6:T19,Codigo),,),)),\"\")),\"\")","v":""}]
["0000015","2017-01-09","PR03","Sistema Elétrico","10.4","Chave Geral",137573,null,null,"Manopla da Chave Seccicionadora Geral da Ponte Quebrada","Jesiel","2021-01-21",null,null,"JANEIRO",2017,"NÃO","Essa pendência de acordo com a preventiva realizada em 21/01/2021 OS Nº 6036089 já foi contornada.",{"$f":"IFERROR(INDEX(P$7:P$1048576,MATCH(1,(COUNTIF(S$6:S20,P$7:P$1048576)=0)*(P$7:P$1048576<>\"\"),0)),0)","v":0},{"$f":"IFERROR(IF(INDEX(ano_aux,MATCH(0,INDEX(COUNTIF(T$6:T20,ano_aux),,),))=0,\"\",IFERROR(INDEX(ano_aux,MATCH(0,INDEX(COUNTIF(T$6:T20,Codigo),,),)),\"\")),\"\")","v":""}]
["0000016","2017-01-09","PR03","Sistema Elétrico","10.8","Contatores",137573,null,null,null,"Jesiel","2017-08-09",null,null,"JANEIRO",2017,"NÃO",null,{"$f":"IFERROR(INDEX(P$7:P$1048576,MATCH(1,(COUNTIF(S$6:S21,P$7:P$1048576)=0)*(P$7:P$1048576<>\"\"),0)),0)","v":0},{"$f":"IFERROR(IF(INDEX(ano_aux,MATCH(0,INDEX(COUNTIF(T$6:T21,ano_aux),,),))=0,\"\",IFERROR(INDEX(ano_aux,MATCH(0,INDEX(COUNTIF(T$6:T21,Codigo),,),)),\"\")),\"\")","v":""}]
["0000017","2017-01-09","PR03","Sistema Elétrico","10.9","Contatos",137573,null,null,null,"Jesiel","2017-08-09",null,null,"JANEIRO",2017,"NÃO",null,{"$f":"IFERROR(INDEX(P$7:P$1048576,MATCH(1,(COUNTIF(S$6:S22,P$7:P$1048576)=0)*(P$7:P$1048576<>\"\"),0)),0)","v":0},{"$f":"IFERROR(IF(INDEX(ano_aux,MATCH(0,INDEX(COUNTIF(T$6:T22,ano_aux),,),))=0,\"\",IFERROR(INDEX(ano_aux,MATCH(0,INDEX(COUNTIF(T$6:T22,Codigo),,),)),\"\")),\"\")","v":""}]
["0000018","2017-01-11","PR06","Elevação Principal","1.8","Bloco Superior (Polias)",137575,null,null,null,"Jesiel","2017-07-05",null,null,"JANEIRO",2017,"NÃO",null,{"$f":"IFERROR(INDEX(P$7:P$1048576,MATCH(1,(COUNTIF(S$6:S23,P$7:P$1048576)=0)*(P$7:P$1048576<>\"\"),0)),0)","v":0},{"$f":"IFERROR(IF(INDEX(ano_aux,MATCH(0,INDEX(COUNTIF(T$6:T23,ano_aux),,),))=0,\"\",IFERROR(INDEX(ano_aux,MATCH(0,INDEX(COUNTIF(T$6:T23,Codigo),,),)),\"\")),\"\")","v":""}]
["0000019","2017-01-11","PR06","Elevação Principal","1.16","Bloco Inferior (Polias)",137575,null,null,null,"Jesiel","2017-07-05",null,null,"JANEIRO",2017,"NÃO",null,{"$f":"IFERROR(INDEX(P$7:P$1048576,MATCH(1,(COUNTIF(S$6:S24,P$7:P$1048576)=0)*(P$7:P$1048576<>\"\"),0)),0)","v":0},{"$f":"IFERROR(IF(INDEX(ano_aux,MATCH(0,INDEX(COUNTIF(T$6:T24,ano_aux),,),))=0,\"\",IFERROR(INDEX(ano_aux,MATCH(0,INDEX(COUNTIF(T$6:T24,Codigo),,),)),\"\")),\"\")","v":""}]
["0000020","2017-01-11","PR06","Ponte Rolante","6.11","Pára-Choque",137575,null,null,null,"Jesiel","2017-07-05",null,null,"JANEIRO",2017,"NÃO",null,{"$f":"IFERROR(INDEX(P$7:P$1048576,MATCH(1,(COUNTIF(S$6:S25,P$7:P$1048576)=0)*(P$7:P$1048576<>\"\"),0)),0)","v":0},{"$f":"IFERROR(IF(INDEX(ano_aux,MATCH(0,INDEX(COUNTIF(T$6:T25,ano_aux),,),))=0,\"\",IFERROR(INDEX(ano_aux,MATCH(0,INDEX(COUNTIF(T$6:T25,Codigo),,),)),\"\")),\"\")","v":""}]
["0000021","2017-01-11","PR06","Ponte Rolante","6.12","Limites",137575,null,null,"Verficar","Jesiel","2017-07-05",null,null,"JANEIRO",2017,"NÃO",null,{"$f":"IFERROR(INDEX(P$7:P$1048576,MATCH(1,(COUNTIF(S$6:S26,P$7:P$1048576)=0)*(P$7:P$1048576<>\"\"),0)),0)","v":0},{"$f":"IFERROR(IF(INDEX(ano_aux,MATCH(0,INDEX(COUNTIF(T$6:T26,ano_aux),,),))=0,\"\",IFERROR(INDEX(ano_aux,MATCH(0,INDEX(COUNTIF(T$6:T26,Codigo),,),)),\"\")),\"\")","v":""}]
["0000022","2017-01-11","PR06","Caminho de Rolamento","9.2","Emenda dos Trilhos/Talas de Junção",137575,null,null,null,"Jesiel","2019-02-21",null,null,"JANEIRO",2017,"NÃO",null,{"$f":"IFERROR(INDEX(P$7:P$1048576,MATCH(1,(COUNTIF(S$6:S27,P$7:P$1048576)=0)*(P$7:P$1048576<>\"\"),0)),0)","v":0},{"$f":"IFERROR(IF(INDEX(ano_aux,MATCH(0,INDEX(COUNTIF(T$6:T27,ano_aux),,),))=0,\"\",IFERROR(INDEX(ano_aux,MATCH(0,INDEX(COUNTIF(T$6:T27,Codigo),,),)),\"\")),\"\")","v":""}]
["0000023","2017-01-11","PR06","Caminho de Rolamento","9.3","Elementos de Fixação",137575,null,null,null,"Jesiel","2019-02-21",null,null,"JANEIRO",2017,"NÃO",null,{"$f":"IFERROR(INDEX(P$7:P$1048576,MATCH(1,(COUNTIF(S$6:S28,P$7:P$1048576)=0)*(P$7:P$1048576<>\"\"),0)),0)","v":0},{"$f":"IFERROR(IF(INDEX(ano_aux,MATCH(0,INDEX(COUNTIF(T$6:T28,ano_aux),,),))=0,\"\",IFERROR(INDEX(ano_aux,MATCH(0,INDEX(COUNTIF(T$6:T28,Codigo),,),)),\"\")),\"\")","v":""}]
["0000024","2017-01-11","PR06","Sistema Elétrico","10.3","Portas do Painel",137575,null,null,"Verificar","Jesiel","2017-07-05",null,null,"JANEIRO",2017,"NÃO",null,{"$f":"IFERROR(INDEX(P$7:P$1048576,MATCH(1,(COUNTIF(S$6:S29,P$7:P$1048576)=0)*(P$7:P$1048576<>\"\"),0)),0)","v":0},{"$f":"IFERROR(IF(INDEX(ano_aux,MATCH(0,INDEX(COUNTIF(T$6:T29,ano_aux),,),))=0,\"\",IFERROR(INDEX(ano_aux,MATCH(0,INDEX(COUNTIF(T$6:T29,Codigo),,),)),\"\")),\"\")","v":""}]
["0000025","2017-02-14","PR03","Trole / Carro","5.7","Uniões Parafusadas/Cupilhas","0061878",null,null,null,"Jesiel","2017-05-11",null,null,"FEVEREIRO",2017,"NÃO",null,{"$f":"IFERROR(INDEX(P$7:P$1048576,MATCH(1,(COUNTIF(S$6:S30,P$7:P$1048576)=0)*(P$7:P$1048576<>\"\"),0)),0)","v":0},{"$f":"IFERROR(IF(INDEX(ano_aux,MATCH(0,INDEX(COUNTIF(T$6:T30,ano_aux),,),))=0,\"\",IFERROR(INDEX(ano_aux,MATCH(0,INDEX(COUNTIF(T$6:T30,Codigo),,),)),\"\")),\"\")","v":""}]
["0000026","2017-02-14","PR03","Trole / Carro","5.18","Limites","0061878",null,null,null,"Jesiel","2017-07-05",null,null,"FEVEREIRO",2017,"NÃO",null,{"$f":"IFERROR(INDEX(P$7:P$1048576,MATCH(1,(COUNTIF(S$6:S31,P$7:P$1048576)=0)*(P$7:P$1048576<>\"\"),0)),0)","v":0},{"$f":"IFERROR(IF(INDEX(ano_aux,MATCH(0,INDEX(COUNTIF(T$6:T31,ano_aux),,),))=0,\"\",IFERROR(INDEX(ano_aux,MATCH(0,INDEX(COUNTIF(T$6:T31,Codigo),,),)),\"\")),\"\")","v":""}]
["0000027","2017-02-14","PR03","Ponte Rolante","6.11","Pára-Choque","0061878",null,null,"Cancela Devido a Instalaçao de espenho e Sensores de Aproximação","Jesiel","2017-05-10",null,null,"FEVEREIRO",2017,"NÃO",null,{"$f":"IFERROR(INDEX(P$7:P$1048576,MATCH(1,(COUNTIF(S$6:S32,P$7:P$1048576)=0)*(P$7:P$1048576<>\"\"),0)),0)","v":0},{"$f":"IFERROR(IF(INDEX(ano_aux,MATCH(0,INDEX(COUNTIF(T$6:T32,ano_aux),,),))=0,\"\",IFERROR(INDEX(ano_aux,MATCH(0,INDEX(COUNTIF(T$6:T32,Codigo),,),)),\"\")),\"\")","v":""}]
["0000028","2017-02-14","PR03","Caminho de Rolamento","9.2","Emenda dos Trilhos/Talas de Junção","0061878",null,null,null,"Jesiel","2019-02-21",null,null,"FEVEREIRO",2017,"NÃO",null,{"$f":"IFERROR(INDEX(P$7:P$1048576,MATCH(1,(COUNTIF(S$6:S33,P$7:P$1048576)=0)*(P$7:P$1048576<>\"\"),0)),0)","v":0},{"$f":"IFERROR(IF(INDEX(ano_aux,MATCH(0,INDEX(COUNTIF(T$6:T33,ano_aux),,),))=0,\"\",IFERROR(INDEX(ano_aux,MATCH(0,INDEX(COUNTIF(T$6:T33,Codigo),,),)),\"\")),\"\")","v":""}]
["0000029","2017-02-14","PR03","Caminho de Rolamento","9.3","Elementos de Fixação","0061878",null,null,null,"Jesiel","2019-02-21",null,null,"FEVEREIRO",2017,"NÃO",null,{"$f":"IFERROR(INDEX(P$7:P$1048576,MATCH(1,(COUNTIF(S$6:S34,P$7:P$1048576)=0)*(P$7:P$1048576<>\"\"),0)),0)","v":0},{"$f":"IFERROR(IF(INDEX(ano_aux,MATCH(0,INDEX(COUNTIF(T$6:T34,ano_aux),,),))=0,\"\",IFERROR(INDEX(ano_aux,MATCH(0,INDEX(COUNTIF(T$6:T34,Codigo),,),)),\"\")),\"\")","v":""}]
["0000030","2017-02-14","PR03","Caminho de Rolamento","9.4","Batentes Fim de Curso","0061878",null,null,null,"Jesiel","2017-07-03",null,null,"FEVEREIRO",2017,"NÃO",null,{"$f":"IFERROR(INDEX(P$7:P$1048576,MATCH(1,(COUNTIF(S$6:S35,P$7:P$1048576)=0)*(P$7:P$1048576<>\"\"),0)),0)","v":0},{"$f":"IFERROR(IF(INDEX(ano_aux,MATCH(0,INDEX(COUNTIF(T$6:T35,ano_aux),,),))=0,\"\",IFERROR(INDEX(ano_aux,MATCH(0,INDEX(COUNTIF(T$6:T35,Codigo),,),)),\"\")),\"\")","v":""}]
["0000031","2017-02-14","PR03","Sistema Elétrico","10.4","Chave Geral","0061878",null,null,"Manopla da Chave Seccicionadora Geral da Ponte Quebrada","Jesiel","2021-01-21",null,null,"FEVEREIRO",2017,"NÃO","Essa pendência de acordo com a preventiva realizada em 21/01/2021 OS Nº 6036089 já foi contornada.",{"$f":"IFERROR(INDEX(P$7:P$1048576,MATCH(1,(COUNTIF(S$6:S36,P$7:P$1048576)=0)*(P$7:P$1048576<>\"\"),0)),0)","v":0},{"$f":"IFERROR(IF(INDEX(ano_aux,MATCH(0,INDEX(COUNTIF(T$6:T36,ano_aux),,),))=0,\"\",IFERROR(INDEX(ano_aux,MATCH(0,INDEX(COUNTIF(T$6:T36,Codigo),,),)),\"\")),\"\")","v":""}]
["0000032","2017-02-14","PR03","Sistema Elétrico","10.8","Contatores","0061878",null,null,null,"Jesiel","2017-08-09",null,null,"FEVEREIRO",2017,"NÃO",null,{"$f":"IFERROR(INDEX(P$7:P$1048576,MATCH(1,(COUNTIF(S$6:S37,P$7:P$1048576)=0)*(P$7:P$1048576<>\"\"),0)),0)","v":0},{"$f":"IFERROR(IF(INDEX(ano_aux,MATCH(0,INDEX(COUNTIF(T$6:T37,ano_aux),,),))=0,\"\",IFERROR(INDEX(ano_aux,MATCH(0,INDEX(COUNTIF(T$6:T37,Codigo),,),)),\"\")),\"\")","v":""}]
["0000033","2017-02-14","PR03","Sistema Elétrico","10.9","Contatos","0061878",null,null,null,"Jesiel","2017-08-09",null,null,"FEVEREIRO",2017,"NÃO",null,{"$f":"IFERROR(INDEX(P$7:P$1048576,MATCH(1,(COUNTIF(S$6:S38,P$7:P$1048576)=0)*(P$7:P$1048576<>\"\"),0)),0)","v":0},{"$f":"IFERROR(IF(INDEX(ano_aux,MATCH(0,INDEX(COUNTIF(T$6:T38,ano_aux),,),))=0,\"\",IFERROR(INDEX(ano_aux,MATCH(0,INDEX(COUNTIF(T$6:T38,Codigo),,),)),\"\")),\"\")","v":""}]
["0000034","2017-02-15","PR04","Trole / Carro","5.18","Limites","0061879",null,null,null,"Jesiel","2017-12-14",null,null,"FEVEREIRO",2017,"NÃO",null,{"$f":"IFERROR(INDEX(P$7:P$1048576,MATCH(1,(COUNTIF(S$6:S39,P$7:P$1048576)=0)*(P$7:P$1048576<>\"\"),0)),0)","v":0},{"$f":"IFERROR(IF(INDEX(ano_aux,MATCH(0,INDEX(COUNTIF(T$6:T39,ano_aux),,),))=0,\"\",IFERROR(INDEX(ano_aux,MATCH(0,INDEX(COUNTIF(T$6:T39,Codigo),,),)),\"\")),\"\")","v":""}]
["0000035","2017-02-15","PR04","Ponte Rolante","6.11","Pára-Choque","0061879",null,null,null,"Jesiel","2018-03-27",null,null,"FEVEREIRO",2017,"NÃO",null,{"$f":"IFERROR(INDEX(P$7:P$1048576,MATCH(1,(COUNTIF(S$6:S40,P$7:P$1048576)=0)*(P$7:P$1048576<>\"\"),0)),0)","v":0},{"$f":"IFERROR(IF(INDEX(ano_aux,MATCH(0,INDEX(COUNTIF(T$6:T40,ano_aux),,),))=0,\"\",IFERROR(INDEX(ano_aux,MATCH(0,INDEX(COUNTIF(T$6:T40,Codigo),,),)),\"\")),\"\")","v":""}]
["0000036","2017-02-15","PR04","Abastecimento de Força Carro","7.3","Perfis","0061879",null,null,null,"Jesiel","2019-02-21",null,null,"FEVEREIRO",2017,"NÃO",null,{"$f":"IFERROR(INDEX(P$7:P$1048576,MATCH(1,(COUNTIF(S$6:S41,P$7:P$1048576)=0)*(P$7:P$1048576<>\"\"),0)),0)","v":0},{"$f":"IFERROR(IF(INDEX(ano_aux,MATCH(0,INDEX(COUNTIF(T$6:T41,ano_aux),,),))=0,\"\",IFERROR(INDEX(ano_aux,MATCH(0,INDEX(COUNTIF(T$6:T41,Codigo),,),)),\"\")),\"\")","v":""}]
["0000037","2017-02-15","PR04","Caminho de Rolamento","9.3","Elementos de Fixação","0061879",null,null,null,"Jesiel","2019-02-21",null,null,"FEVEREIRO",2017,"NÃO",null,{"$f":"IFERROR(INDEX(P$7:P$1048576,MATCH(1,(COUNTIF(S$6:S42,P$7:P$1048576)=0)*(P$7:P$1048576<>\"\"),0)),0)","v":0},{"$f":"IFERROR(IF(INDEX(ano_aux,MATCH(0,INDEX(COUNTIF(T$6:T42,ano_aux),,),))=0,\"\",IFERROR(INDEX(ano_aux,MATCH(0,INDEX(COUNTIF(T$6:T42,Codigo),,),)),\"\")),\"\")","v":""}]
["0000038","2017-02-15","PR04","Caminho de Rolamento","9.4","Batentes Fim de Curso","0061879",null,null,null,"Jesiel","2019-02-21",null,null,"FEVEREIRO",2017,"NÃO",null,{"$f":"IFERROR(INDEX(P$7:P$1048576,MATCH(1,(COUNTIF(S$6:S43,P$7:P$1048576)=0)*(P$7:P$1048576<>\"\"),0)),0)","v":0},{"$f":"IFERROR(IF(INDEX(ano_aux,MATCH(0,INDEX(COUNTIF(T$6:T43,ano_aux),,),))=0,\"\",IFERROR(INDEX(ano_aux,MATCH(0,INDEX(COUNTIF(T$6:T43,Codigo),,),)),\"\")),\"\")","v":""}]
["0000039","2017-02-15","PR04","Sistema Elétrico","10.16","Rádio Comando","0061879",null,null,null,"Jesiel","2017-07-04",null,null,"FEVEREIRO",2017,"NÃO",null,{"$f":"IFERROR(INDEX(P$7:P$1048576,MATCH(1,(COUNTIF(S$6:S44,P$7:P$1048576)=0)*(P$7:P$1048576<>\"\"),0)),0)","v":0},{"$f":"IFERROR(IF(INDEX(ano_aux,MATCH(0,INDEX(COUNTIF(T$6:T44,ano_aux),,),))=0,\"\",IFERROR(INDEX(ano_aux,MATCH(0,INDEX(COUNTIF(T$6:T44,Codigo),,),)),\"\")),\"\")","v":""}]
["0000040","2017-03-29","PR02","Trole / Carro","5.7","Uniões Parafusadas/Cupilhas","0061900",null,null,null,"Jesiel","2017-06-23",null,null,"MARÇO",2017,"NÃO",null,{"$f":"IFERROR(INDEX(P$7:P$1048576,MATCH(1,(COUNTIF(S$6:S45,P$7:P$1048576)=0)*(P$7:P$1048576<>\"\"),0)),0)","v":0},{"$f":"IFERROR(IF(INDEX(ano_aux,MATCH(0,INDEX(COUNTIF(T$6:T45,ano_aux),,),))=0,\"\",IFERROR(INDEX(ano_aux,MATCH(0,INDEX(COUNTIF(T$6:T45,Codigo),,),)),\"\")),\"\")","v":""}]
["0000041","2017-03-29","PR02","Trole / Carro","5.15","Roletes Guia","0061900",null,null,null,"Jesiel","2017-06-23",null,null,"MARÇO",2017,"NÃO",null,{"$f":"IFERROR(INDEX(P$7:P$1048576,MATCH(1,(COUNTIF(S$6:S46,P$7:P$1048576)=0)*(P$7:P$1048576<>\"\"),0)),0)","v":0},{"$f":"IFERROR(IF(INDEX(ano_aux,MATCH(0,INDEX(COUNTIF(T$6:T46,ano_aux),,),))=0,\"\",IFERROR(INDEX(ano_aux,MATCH(0,INDEX(COUNTIF(T$6:T46,Codigo),,),)),\"\")),\"\")","v":""}]
["0000042","2017-03-29","PR02","Trole / Carro","5.18","Limites","0061900",null,null,null,"Jesiel","2017-06-23",null,null,"MARÇO",2017,"NÃO",null,{"$f":"IFERROR(INDEX(P$7:P$1048576,MATCH(1,(COUNTIF(S$6:S47,P$7:P$1048576)=0)*(P$7:P$1048576<>\"\"),0)),0)","v":0},{"$f":"IFERROR(IF(INDEX(ano_aux,MATCH(0,INDEX(COUNTIF(T$6:T47,ano_aux),,),))=0,\"\",IFERROR(INDEX(ano_aux,MATCH(0,INDEX(COUNTIF(T$6:T47,Codigo),,),)),\"\")),\"\")","v":""}]
["0000043","2017-03-29","PR02","Ponte Rolante","6.12","Limites","0061900",null,null,null,"Jesiel","2017-06-25",null,null,"MARÇO",2017,"NÃO",null,{"$f":"IFERROR(INDEX(P$7:P$1048576,MATCH(1,(COUNTIF(S$6:S48,P$7:P$1048576)=0)*(P$7:P$1048576<>\"\"),0)),0)","v":0},{"$f":"IFERROR(IF(INDEX(ano_aux,MATCH(0,INDEX(COUNTIF(T$6:T48,ano_aux),,),))=0,\"\",IFERROR(INDEX(ano_aux,MATCH(0,INDEX(COUNTIF(T$6:T48,Codigo),,),)),\"\")),\"\")","v":""}]
["0000044","2017-03-29","PR02","Caminho de Rolamento","9.2","Emenda dos Trilhos/Talas de Junção","0061900",null,null,null,"Jesiel","2019-02-21",null,null,"MARÇO",2017,"NÃO",null,{"$f":"IFERROR(INDEX(P$7:P$1048576,MATCH(1,(COUNTIF(S$6:S49,P$7:P$1048576)=0)*(P$7:P$1048576<>\"\"),0)),0)","v":0},{"$f":"IFERROR(IF(INDEX(ano_aux,MATCH(0,INDEX(COUNTIF(T$6:T49,ano_aux),,),))=0,\"\",IFERROR(INDEX(ano_aux,MATCH(0,INDEX(COUNTIF(T$6:T49,Codigo),,),)),\"\")),\"\")","v":""}]
["0000045","2017-03-29","PR02","Caminho de Rolamento","9.3","Elementos de Fixação","0061900",null,null,null,"Jesiel","2019-02-21",null,null,"MARÇO",2017,"NÃO",null,{"$f":"IFERROR(INDEX(P$7:P$1048576,MATCH(1,(COUNTIF(S$6:S50,P$7:P$1048576)=0)*(P$7:P$1048576<>\"\"),0)),0)","v":0},{"$f":"IFERROR(IF(INDEX(ano_aux,MATCH(0,INDEX(COUNTIF(T$6:T50,ano_aux),,),))=0,\"\",IFERROR(INDEX(ano_aux,MATCH(0,INDEX(COUNTIF(T$6:T50,Codigo),,),)),\"\")),\"\")","v":""}]
["0000046","2017-03-29","PR02","Sistema Elétrico","10.8","Contatores","0061900",null,null,"Aguardando Material Para Proxima Preventiva Previsto Para 10/10/2017","Jesiel","2018-03-29",null,null,"MARÇO",2017,"NÃO",null,{"$f":"IFERROR(INDEX(P$7:P$1048576,MATCH(1,(COUNTIF(S$6:S51,P$7:P$1048576)=0)*(P$7:P$1048576<>\"\"),0)),0)","v":0},{"$f":"IFERROR(IF(INDEX(ano_aux,MATCH(0,INDEX(COUNTIF(T$6:T51,ano_aux),,),))=0,\"\",IFERROR(INDEX(ano_aux,MATCH(0,INDEX(COUNTIF(T$6:T51,Codigo),,),)),\"\")),\"\")","v":""}]
["0000047","2017-03-29","PR02","Sistema Elétrico","10.9","Contatos","0061900",null,null,null,"Jesiel","2018-03-29",null,null,"MARÇO",2017,"NÃO",null,{"$f":"IFERROR(INDEX(P$7:P$1048576,MATCH(1,(COUNTIF(S$6:S52,P$7:P$1048576)=0)*(P$7:P$1048576<>\"\"),0)),0)","v":0},{"$f":"IFERROR(IF(INDEX(ano_aux,MATCH(0,INDEX(COUNTIF(T$6:T52,ano_aux),,),))=0,\"\",IFERROR(INDEX(ano_aux,MATCH(0,INDEX(COUNTIF(T$6:T52,Codigo),,),)),\"\")),\"\")","v":""}]
["0000048","2017-03-28","PR06","Elevação Principal","1.8","Bloco Superior (Polias)","0061873",null,null,null,"Jesiel","2017-07-05",null,null,"MARÇO",2017,"NÃO",null,{"$f":"IFERROR(INDEX(P$7:P$1048576,MATCH(1,(COUNTIF(S$6:S53,P$7:P$1048576)=0)*(P$7:P$1048576<>\"\"),0)),0)","v":0},{"$f":"IFERROR(IF(INDEX(ano_aux,MATCH(0,INDEX(COUNTIF(T$6:T53,ano_aux),,),))=0,\"\",IFERROR(INDEX(ano_aux,MATCH(0,INDEX(COUNTIF(T$6:T53,Codigo),,),)),\"\")),\"\")","v":""}]
["0000049","2017-03-28","PR06","Ponte Rolante","6.11","Pára-Choque","0061873",null,null,null,"Jesiel","2017-07-05",null,null,"MARÇO",2017,"NÃO",null,{"$f":"IFERROR(INDEX(P$7:P$1048576,MATCH(1,(COUNTIF(S$6:S54,P$7:P$1048576)=0)*(P$7:P$1048576<>\"\"),0)),0)","v":0},{"$f":"IFERROR(IF(INDEX(ano_aux,MATCH(0,INDEX(COUNTIF(T$6:T54,ano_aux),,),))=0,\"\",IFERROR(INDEX(ano_aux,MATCH(0,INDEX(COUNTIF(T$6:T54,Codigo),,),)),\"\")),\"\")","v":""}]
["0000050","2017-03-28","PR06","Ponte Rolante","6.12","Limites","0061873",null,null,"Verificar","Jesiel","2017-07-05",null,null,"MARÇO",2017,"NÃO",null,{"$f":"IFERROR(INDEX(P$7:P$1048576,MATCH(1,(COUNTIF(S$6:S55,P$7:P$1048576)=0)*(P$7:P$1048576<>\"\"),0)),0)","v":0},{"$f":"IFERROR(IF(INDEX(ano_aux,MATCH(0,INDEX(COUNTIF(T$6:T55,ano_aux),,),))=0,\"\",IFERROR(INDEX(ano_aux,MATCH(0,INDEX(COUNTIF(T$6:T55,Codigo),,),)),\"\")),\"\")","v":""}]
["0000051","2017-03-28","PR06","Caminho de Rolamento","9.2","Emenda dos Trilhos/Talas de Junção","0061873",null,null,null,"Jesiel","2019-02-21",null,null,"MARÇO",2017,"NÃO",null,{"$f":"IFERROR(INDEX(P$7:P$1048576,MATCH(1,(COUNTIF(S$6:S56,P$7:P$1048576)=0)*(P$7:P$1048576<>\"\"),0)),0)","v":0},{"$f":"IFERROR(IF(INDEX(ano_aux,MATCH(0,INDEX(COUNTIF(T$6:T56,ano_aux),,),))=0,\"\",IFERROR(INDEX(ano_aux,MATCH(0,INDEX(COUNTIF(T$6:T56,Codigo),,),)),\"\")),\"\")","v":""}]
["0000052","2017-03-28","PR06","Caminho de Rolamento","9.3","Elementos de Fixação","0061873",null,null,null,"Jesiel","2019-02-21",null,null,"MARÇO",2017,"NÃO"]
["0000053","2017-03-28","PR06","Sistema Elétrico","10.3","Portas do Painel","0061873",null,null,"Verificar","Jesiel","2017-07-05",null,null,"MARÇO",2017,"NÃO"]
["0000054","2017-05-09","PR02","Trole / Carro","5.15","Roletes Guia","0082730",null,null,null,"Jesiel","2017-06-23",null,null,"MAIO",2017,"NÃO"]
["0000055","2017-05-09","PR02","Trole / Carro","5.18","Limites","0082730",null,null,null,"Jesiel","2018-06-23",null,null,"MAIO",2017,"NÃO"]
["0000056","2017-05-09","PR02","Caminho de Rolamento","9.2","Emenda dos Trilhos/Talas de Junção","0082730",null,null,null,"Jesiel","2019-02-21",null,null,"MAIO",2017,"NÃO"]
["0000057","2017-05-09","PR02","Caminho de Rolamento","9.3","Elementos de Fixação","0082730",null,null,null,"Jesiel","2019-02-21",null,null,"MAIO",2017,"NÃO"]
["0000058","2017-05-10","PR03","Trole / Carro","5.18","Limites","0082732",null,null,null,"Jesiel","2017-07-05",null,null,"MAIO",2017,"NÃO"]
["0000059","2017-05-10","PR03","Ponte Rolante","6.11","Pára-Choque","0082732",null,null,null,"Jesiel","2017-05-10",null,null,"MAIO",2017,"NÃO"]
["0000060","2017-05-10","PR03","Caminho de Rolamento","9.2","Emenda dos Trilhos/Talas de Junção","0082732",null,null,null,"Jesiel","2019-02-21",null,null,"MAIO",2017,"NÃO"]
["0000061","2017-05-10","PR03","Caminho de Rolamento","9.3","Elementos de Fixação","0082732",null,null,null,"Jesiel","2019-02-21",null,null,"MAIO",2017,"NÃO"]
["0000062","2017-05-10","PR03","Caminho de Rolamento","9.4","Batentes Fim de Curso","0082732",null,null,null,"Jesiel","2017-07-03",null,null,"MAIO",2017,"NÃO"]
["0000063","2017-05-10","PR03","Sistema Elétrico","10.4","Chave Geral","0082732",null,null,"Manopla da Chave Seccicionadora Geral da Ponte Quebrada","Jesiel","2021-01-21",null,null,"MAIO",2017,"NÃO","Essa pendência de acordo com a preventiva realizada em 21/01/2021 OS Nº 6036089 já foi contornada."]
["0000064","2017-05-10","PR03","Sistema Elétrico","10.8","Contatores","0082732",null,null,null,"Jesiel","2017-08-09",null,null,"MAIO",2017,"NÃO"]
["0000065","2017-05-10","PR03","Sistema Elétrico","10.9","Contatos","0082732",null,null,null,"Jesiel","2017-08-09",null,null,"MAIO",2017,"NÃO"]
["0000066","2017-05-09","PR06","Elevação Principal","1.8","Bloco Superior (Polias)","0082731",null,null,null,"Jesiel","2017-07-05",null,null,"MAIO",2017,{"$f":"IF(B72=\"\",\"\",IF(AND(L72=\"\",N72=\"\"),\"SIM\",IF(M72<>\"\",\"SIM\",\"NÃO\")))","v":"NÃO"}]
["0000067","2017-05-09","PR06","Ponte Rolante","6.11","Pára-Choque","0082731",null,null,null,"Jesiel","2017-07-05",null,null,"MAIO",2017,"NÃO"]
["0000068","2017-05-09","PR06","Caminho de Rolamento","9.2","Emenda dos Trilhos/Talas de Junção","0082731",null,null,null,"Jesiel","2019-02-21",null,null,"MAIO",2017,"NÃO"]
["0000069","2017-05-09","PR06","Caminho de Rolamento","9.3","Elementos de Fixação","0082731",null,null,null,"Jesiel","2019-02-21",null,null,"MAIO",2017,"NÃO"]
["0000070","2017-06-21","PR01","Trole / Carro","5.2","Freio","151916",null,null,"O motor esta sem sem bobina e disco de freio.Esta Pendência está atrelada a resolução da Pendência 0084/2018, ou seja, após troca da placa de comando do trolley será inserido o disco e a bobina de freio que já encontra-se na Modular","Jesiel","2021-04-06",null,null,"JUNHO",2017,"NÃO","Essa pendência de acordo com a preventiva realizada em 06/04/2021 OS Nº 6042336 já foi contornada."]
["0000071","2017-06-21","PR01","Ponte Rolante","6.11","Pára-Choque","151916",null,null,null,"Jesiel","2017-06-21",null,null,"JUNHO",2017,"NÃO"]
["0000072","2017-06-21","PR01","Ponte Rolante","6.12","Limites","151916",null,null,null,"Jesiel","2017-06-21",null,null,"JUNHO",2017,"NÃO"]
["0000073","2017-06-21","PR01","Caminho de Rolamento","9.2","Emenda dos Trilhos/Talas de Junção","151916",null,null,null,"Jesiel","2019-02-21",null,null,"JUNHO",2017,"NÃO"]
["0000074","2017-06-21","PR01","Caminho de Rolamento","9.3","Elementos de Fixação","151916",null,null,null,"Jesiel","2019-02-21",null,null,"JUNHO",2017,"NÃO"]
["0000075","2017-06-23","PR02","Trole / Carro","5.15","Roletes Guia","151918",null,null,null,"Jesiel","2017-06-23",null,null,"JUNHO",2017,"NÃO"]
["0000076","2017-06-23","PR02","Trole / Carro","5.18","Limites","151918",null,null,null,"Jesiel","2018-06-23",null,null,"JUNHO",2017,"NÃO"]
["0000077","2017-06-23","PR02","Ponte Rolante","6.12","Limites","151918",null,null,null,"Jesiel","2017-06-25",null,null,"JUNHO",2017,"NÃO"]
["0000078","2017-06-23","PR02","Caminho de Rolamento","9.2","Emenda dos Trilhos/Talas de Junção","151918",null,null,null,"Jesiel","2019-02-21",null,null,"JUNHO",2017,"NÃO"]
["0000079","2017-06-23","PR02","Caminho de Rolamento","9.3","Elementos de Fixação","151918",null,null,null,"Jesiel","2019-02-21",null,null,"JUNHO",2017,"NÃO"]
["0000080","2017-06-22","PR06","Ponte Rolante","6.11","Pára-Choque","151917",null,null,null,"Jesiel","2017-07-05",null,null,"JUNHO",2017,"NÃO"]
["0000081","2017-06-22","PR06","Ponte Rolante","6.12","Limites","151917",null,null,"Verficar","Jesiel","2018-07-05",null,null,"JUNHO",2017,"NÃO"]
["0000082","2017-06-22","PR06","Caminho de Rolamento","9.2","Emenda dos Trilhos/Talas de Junção","151917",null,null,null,"Jesiel","2019-02-21",null,null,"JUNHO",2017,"NÃO"]
["0000083","2017-06-22","PR06","Caminho de Rolamento","9.3","Elementos de Fixação","151917",null,null,null,"Jesiel","2019-02-21",null,null,"JUNHO",2017,"NÃO"]
["0000084","2017-07-03","PR03","Trole / Carro","5.18","Limites","151925",null,null,null,"Jesiel","2017-07-05",null,null,"JULHO",2017,"NÃO"]
["0000085","2017-07-03","PR03","Caminho de Rolamento","9.2","Emenda dos Trilhos/Talas de Junção","151925",null,null,null,"Jesiel","2019-02-21",null,null,"JULHO",2017,"NÃO"]
["0000086","2017-07-03","PR03","Caminho de Rolamento","9.3","Elementos de Fixação","151925",null,null,null,"Jesiel","2019-02-21",null,null,"JULHO",2017,"NÃO"]
["0000087","2017-07-03","PR03","Caminho de Rolamento","9.4","Batentes Fim de Curso","151925",null,null,null,"Jesiel","2017-07-03",null,null,"JULHO",2017,"NÃO"]
["0000088","2017-07-03","PR03","Sistema Elétrico","10.4","Chave Geral","151925",null,null,"Manopla da Chave Seccicionadora Geral da Ponte Quebrada","Jesiel","2021-01-21",null,null,"JULHO",2017,"NÃO","Essa pendência de acordo com a preventiva realizada em 21/01/2021 OS Nº 6036089 já foi contornada."]
["0000089","2017-07-03","PR03","Sistema Elétrico","10.8","Contatores","151925",null,null,null,"Jesiel","2017-08-09",null,null,"JULHO",2017,"NÃO"]
["0000090","2017-07-03","PR03","Sistema Elétrico","10.9","Contatos","151925",null,null,null,"Jesiel","2017-08-09",null,null,"JULHO",2017,"NÃO"]
["0000091","2017-07-03","PR03","Sistema Elétrico","10.17","Sirene ou Audiovisual","151925",null,null,"Troca Efetuada Pelo Emílio","Jesiel","2017-07-03",null,null,"JULHO",2017,"NÃO"]
["0000092","2017-07-04","PR03","Trole / Carro","5.18","Limites","147626",null,null,null,"Jesiel","2017-10-10",null,null,"JULHO",2017,"NÃO"]
["0000093","2017-07-04","PR04","Ponte Rolante","6.12","Limites","147626",null,null,"Faltam Dois Anti-Colisão Para frente Ponte","Jesiel","2020-06-06",null,null,"JULHO",2017,"NÃO","Essa pendência de acordo com a preventiva realizada em 06/06/2020 OS Nº 6022232 já foi contornada."]
["0000094","2017-07-04","PR04","Abastecimento de Força Carro","7.3","Perfis","147626",null,null,null,"Jesiel","2019-02-21",null,null,"JULHO",2017,"NÃO"]
["0000095","2017-07-04","PR04","Caminho de Rolamento","9.3","Elementos de Fixação","147626",null,null,null,"Jesiel","2019-02-21",null,null,"JULHO",2017,"NÃO"]
["0000096","2017-07-04","PR04","Caminho de Rolamento","9.4","Batentes Fim de Curso","147626",null,null,null,"Jesiel","2019-02-21",null,null,"JULHO",2017,"NÃO"]
["0000097","2017-07-04","PR04","Sistema Elétrico","10.8","Contatores","147626",null,null,null,"Jesiel","2017-12-14",null,null,"JULHO",2017,"NÃO"]
["0000098","2017-07-04","PR04","Sistema Elétrico","10.9","Contatos","147626",null,null,"c","Jesiel","2017-12-14",null,null,"JULHO",2017,"NÃO"]
["0000099","2017-07-04","PR04","Sistema Elétrico","10.16","Rádio Comando","147626",null,null,null,"Jesiel","2017-07-04",null,null,"JULHO",2017,"NÃO"]
["0000100","2017-07-05","PR05","Ponte Rolante","6.12","Limites","147627",null,null,null,"Jesiel","2018-03-28",null,null,"JULHO",2017,"NÃO"]
["0000101","2017-07-05","PR06","Ponte Rolante","6.11","Pára-Choque","147628",null,null,"Aguardando Material Para Proxima Preventiva Previsto Para 10/10/2017","Jesiel","2017-07-05",null,null,"JULHO",2017,"NÃO"]
["0000102","2017-07-05","PR06","Ponte Rolante","6.12","Limites","147628",null,null,"Verficar","Jesiel","2017-07-05",null,null,"JULHO",2017,"NÃO"]
["0000103","2017-07-05","PR06","Caminho de Rolamento","9.3","Elementos de Fixação","147628",null,null,null,"Jesiel","2019-02-21",null,null,"JULHO",2017,"NÃO"]
["0000104","2017-07-05","PR06","Caminho de Rolamento","9.4","Batentes Fim de Curso","147628",null,null,null,"Jesiel","2017-07-05",null,null,"JULHO",2017,"NÃO"]
["0000105","2017-08-09","PR03","Trole / Carro","5.18","Limites","151892",null,null,null,"Jesiel","2017-10-10",null,null,"AGOSTO",2017,"NÃO"]
["0000106","2017-08-09","PR03","Caminho de Rolamento","9.3","Elementos de Fixação","151892",null,null,null,"Jesiel","2019-02-21",null,null,"AGOSTO",2017,"NÃO"]
["0000107","2017-08-09","PR03","Caminho de Rolamento","9.4","Batentes Fim de Curso","151892",null,null,null,"Jesiel","2019-02-21",null,null,"AGOSTO",2017,"NÃO"]
["0000108","2017-08-09","PR03","Sistema Elétrico","10.4","Chave Geral","151892",null,null,"Manopla da Chave Seccicionadora Geral da Ponte Quebrada","Jesiel","2021-01-21",null,null,"AGOSTO",2017,"NÃO","Essa pendência de acordo com a preventiva realizada em 21/01/2021 OS Nº 6036089 já foi contornada."]
["0000109","2017-08-09","PR03","Sistema Elétrico","10.8","Contatores","151892",null,null,null,"Jesiel","2017-08-09",null,null,"AGOSTO",2017,"NÃO"]
["0000110","2017-08-09","PR03","Sistema Elétrico","10.9","Contatos","151892",null,null,null,"Jesiel","2017-08-09",null,null,"AGOSTO",2017,"NÃO"]
["0000111","2017-08-09","PR03","Sistema Elétrico","10.17","Sirene ou Audiovisual","151892",null,null,"Substituir Lâmpada 12v Dispositivo Sinalizador Luminoso","Jesiel","2020-08-14",null,null,"AGOSTO",2017,"NÃO"]
["0000112","2017-08-07","PR07","Elevação Principal","1.2","Freio","151891",null,null,"1)Disco e tambor encontra-se gastos, 2)Porca de ajuste com parafusos danificados e 3)falta da grade de ventilação do freio","Jesiel","2021-02-03",null,null,"AGOSTO",2017,"NÃO","Essa pendência de acordo com a preventiva realizada em 03/02/2021 OS Nº 6036239 já foi contornada."]
["0000113","2017-08-07","PR07","Elevação Principal","1.5","Conjunto Guia/Pressionador","151891",null,null,"Ausencia do conjunto guia e anel pressionador, talhas funcionando sem as mesmos podendo causar embolamento do cabo de aço ocasionando rompimento do mesmo","Jesiel","2021-02-03",null,null,"AGOSTO",2017,"NÃO","Essa pendência de acordo com a preventiva realizada em 03/02/2021 OS Nº 6036239 já foi contornada."]
["0000114","2017-08-07","PR07","Elevação Principal","1.10","Vedação dos Redutores","151891",null,null,"As juntas de vedação do redutor de elevação estão danificadas sendo necessário sua substituição","Jesiel","2021-02-03",null,null,"AGOSTO",2017,"NÃO","Essa pendência de acordo com a preventiva realizada em 03/02/2021 OS Nº 6036239 já foi contornada."]
["0000115","2017-08-07","PR07","Elevação Principal","1.11","Ruídos e Vibrações nos Redutores","151891",null,null,"Rolamentos, acoplamento e retentores com folgas ocasionando ruídos e vibrações no redutor. A não substituição implicará a quebra do mesmo com consequente parada do equipamento e com risco potencial de acidente","Jesiel","2021-02-03",null,null,"AGOSTO",2017,"NÃO","Essa pendência de acordo com a preventiva realizada em 03/02/2021 OS Nº 6036239 já foi contornada."]
["0000116","2017-08-07","PR07","Elevação Principal","1.14","Acoplamento","151891",null,null,"Acoplamento e retentores com folgas ocasionando ruídos e vibrações no redutor. A não substituição implicará a quebra do mesmo com consequente parada do equipamento e com risco potencial de acidente","Jesiel","2021-02-03",null,null,"AGOSTO",2017,"NÃO","Essa pendência de acordo com a preventiva realizada em 03/02/2021 OS Nº 6036239 já foi contornada."]
["0000117","2017-08-07","PR07","Elevação Principal","1.16","Bloco Inferior (Polias)","151891",null,null,"Polias encontram-se gastas, bem como suas tampas de proteção danificadas","Jesiel","2021-02-03",null,null,"AGOSTO",2017,"NÃO","Essa pendência de acordo com a preventiva realizada em 03/02/2021 OS Nº 6036239 já foi contornada."]
["0000118","2017-08-07","PR07","Elevação Principal","1.18","Limites de Serviço","151891",null,null,"Falta Haste de acionamento do limite e guia de cabo para que o mesmo possa se tornar em condições de operação. Podendo ocasionar o rompimento do cabo se o operador não atentar-se no ato  de subida do gancho. Atualmente o limite encontra-se inoperante","Jesiel","2021-02-03",null,null,"AGOSTO",2017,"NÃO","Essa pendência de acordo com a preventiva realizada em 03/02/2021 OS Nº 6036239 já foi contornada."]
["0000119","2017-08-07","PR07","Elevação Principal","1.19","Limites de Emergência","151891",null,null,"Melhoria da Segurança","Jesiel","2021-02-03",null,null,"AGOSTO",2017,"NÃO","Essa pendência de acordo com a preventiva realizada em 03/02/2021 OS Nº 6036239 já foi contornada."]
["0000120","2017-08-07","PR07","Trole / Carro","5.8","Vedação dos Redutores","151891",null,null,"Trocar retentores internos do motor do trolley","Jesiel","2021-02-03",null,null,"AGOSTO",2017,"NÃO","Essa pendência de acordo com a preventiva realizada em 03/02/2021 OS Nº 6036239 já foi contornada."]
["0000121","2017-08-07","PR07","Trole / Carro","5.19","Conexões na Caixa de Ligação","151891",null,null,"Ausencia da tampa de ligação dos cabos do motor. Confeccionar em acrílico. Claudio passará as medidas da tampa","Jesiel","2021-02-03",null,null,"AGOSTO",2017,"NÃO","Essa pendência de acordo com a preventiva realizada em 03/02/2021 OS Nº 6036239 já foi contornada."]
["0000122","2017-08-07","PR07","Ponte Rolante","6.6","Freio","151891",null,null,null,"Jesiel","2019-02-21",null,null,"AGOSTO",2017,"NÃO"]
["0000123","2017-08-07","PR07","Ponte Rolante","6.9","Nível de Óleo nos Redutores","151891",null,null,null,"Jesiel","2019-02-21",null,null,"AGOSTO",2017,"NÃO"]
["0000124","2017-08-07","PR07","Ponte Rolante","6.11","Pára-Choque","151891",null,null,"Parachoque Danificado","Jesiel","2021-02-03",null,null,"AGOSTO",2017,"NÃO","Essa pendência de acordo com a preventiva realizada em 03/02/2021 OS Nº 6036239 já foi contornada."]
["0000125","2017-08-07","PR07","Ponte Rolante","6.13","Roletes Guia","151891",null,null,"08 Roletes guias danificados podendo causar desalinhamento da ponte em relação ao trilho do caminho de rolamento","Jesiel","2021-02-03",null,null,"AGOSTO",2017,"NÃO","Essa pendência de acordo com a preventiva realizada em 03/02/2021 OS Nº 6036239 já foi contornada."]
["0000126","2017-08-07","PR07","Abastecimento de Força Carro","7.3","Perfis","151891",null,null,"O perfil encontra-se amassado podendo travar os portas cabos com consequente arrebentamento dos cabos de força","Jesiel","2021-02-03",null,null,"AGOSTO",2017,"NÃO","Essa pendência de acordo com a preventiva realizada em 03/02/2021 OS Nº 6036239 já foi contornada."]
["0000127","2017-08-07","PR07","Abastecimento de Força Carro","7.5","Cabos","151891",null,null,"Há necessidade de resolução da pendência 0126/2017. Atualmente os cabos encontram-se com emendas o que não é desejável","Jesiel","2021-02-03",null,null,"AGOSTO",2017,"NÃO","Essa pendência de acordo com a preventiva realizada em 03/02/2021 OS Nº 6036239 já foi contornada."]
["0000128","2017-08-07","PR07","Caminho de Rolamento","9.3","Elementos de Fixação","151891",null,null,null,"Jesiel","2019-02-21",null,null,"AGOSTO",2017,"NÃO"]
["0000129","2017-08-07","PR07","Sistema Elétrico","10.7","Blocos Temporizados","151891",null,null,null,"Jesiel","2019-02-21",null,null,"AGOSTO",2017,"NÃO"]
["0000130","2017-08-07","PR07","Sistema Elétrico","10.12","Terminais","151891",null,null,"Faltam alguns terminais e os existentes encontram-se amassados. Necessidades: 10 tipo agulha de 2,5mm; 10 tipo agulha de 1,5mm; 10 tipo forquilha de 2,5mm; 10 tipo forquilha de 1,5mm","Jesiel","2021-02-03",null,null,"AGOSTO",2017,{"$f":"IF(B136=\"\",\"\",IF(AND(L136=\"\",N136=\"\"),\"SIM\",IF(M136<>\"\",\"SIM\",\"NÃO\")))","v":"NÃO"},"Essa pendência de acordo com a preventiva realizada em 03/02/2021 OS Nº 6036239 já foi contornada."]
["0000131","2017-08-07","PR07","Sistema Elétrico","10.19","Tensão de Rede","151891",null,null,"Monitoramento da tensão fornecida pela Light","Jesiel","2021-02-03",null,null,"AGOSTO",2017,"NÃO","Essa pendência de acordo com a preventiva realizada em 03/02/2021 OS Nº 6036239 já foi contornada."]
["0000132","2017-08-07","PR07","Sistema Elétrico","10.20","Tensão de Comando","151891",null,null,"Monitoramento da tensão fornecida pela Light","Jesiel","2021-02-03",null,null,"AGOSTO",2017,"NÃO","Essa pendência de acordo com a preventiva realizada em 03/02/2021 OS Nº 6036239 já foi contornada."]
["0000133","2017-08-08","PR08","Elevação Principal","1.5","Conjunto Guia/Pressionador","151890",null,null,"Conjunto Guia com folgas em suas roscas","Jesiel","2020-09-30",null,null,"AGOSTO",2017,"NÃO","De Acordo Com Manutenção Realizada em 30/09/20 Pendência Solucionada"]
["0000134","2017-08-08","PR08","Elevação Principal","1.10","Vedação dos Redutores","151890",null,null,"Programar inspeção e troca das juntas de vedação dos redutores","Jesiel","2020-09-30",null,null,"AGOSTO",2017,"NÃO","De Acordo Com Manutenção Realizada em 30/09/20 Pendência Solucionada"]
["0000135","2017-08-08","PR08","Elevação Principal","1.12","Nível de Óleo nos Redutores","151890",null,null,null,"Jesiel","2019-02-21",null,null,"AGOSTO",2017,"NÃO"]
["0000136","2017-08-08","PR08","Elevação Principal","1.16","Bloco Inferior (Polias)","151890",null,null,null,"Jesiel","2019-02-21",null,null,"AGOSTO",2017,"NÃO"]
["0000137","2017-08-08","PR08","Elevação Principal","1.20","Caixa de Ligações do Motor/Terminais","151890",null,null,"Ausencia da tampa de ligação dos cabos do motor. Confeccionar em acrílico. Claudio passará as medidas da tampa","Jesiel","2020-09-30",null,null,"AGOSTO",2017,"NÃO","De Acordo Com Manutenção Realizada em 30/09/20 Pendência Solucionada"]
["0000138","2017-08-08","PR08","Trole / Carro","5.8","Vedação dos Redutores","151890",null,null,"Programar inspeção e troca das juntas de vedação dos redutores","Jesiel","2020-09-30",null,null,"AGOSTO",2017,"NÃO","De Acordo Com Manutenção Realizada em 30/09/20 Pendência Solucionada"]
["0000139","2017-08-08","PR08","Trole / Carro","5.11","Nível de Óleo nos Redutores","151890",null,null,null,"Jesiel","2019-02-21",null,null,"AGOSTO",2017,"NÃO"]
["0000140","2017-08-08","PR08","Trole / Carro","5.13","Pára-Choque","151890",null,null,"Parachoque com borracha danificada. Providenciar confecção","Jesiel","2020-09-30",null,null,"AGOSTO",2017,"NÃO","De Acordo Com Manutenção Realizada em 30/09/20 Pendência Solucionada"]
["0000141","2017-08-08","PR08","Ponte Rolante","6.12","Limites","151890",null,null,"Substituir a haste do limite","Jesiel","2020-09-30",null,null,"AGOSTO",2017,"NÃO","De Acordo Com Manutenção Realizada em 30/09/20 Pendência Solucionada"]
["0000142","2017-08-08","PR08","Caminho de Rolamento","9.3","Elementos de Fixação","151890",null,null,null,"Jesiel","2019-02-21",null,null,"AGOSTO",2017,"NÃO"]
["0000143","2017-08-08","PR08","Sistema Elétrico","10.16","Rádio Comando","151890",null,null,null,"Jesiel","2019-02-21",null,null,"AGOSTO",2017,"NÃO"]
["0000144","2017-08-08","PR08","Sistema Elétrico","10.17","Sirene ou Audiovisual","151890",null,null,"Substituir Lâmpada 12v Dispositivo Sinalizador Luminoso","Jesiel","2020-09-30",null,null,"AGOSTO",2017,"NÃO","De Acordo Com Manutenção Realizada em 30/09/20 Pendência Solucionada"]
["0000145","2017-08-08","PR08","Sistema Elétrico","10.19","Tensão de Rede","151890",null,null,"Monitoramento da tensão fornecida pela Light","Jesiel","2020-09-30",null,null,"AGOSTO",2017,"NÃO","De Acordo Com Manutenção Realizada em 30/09/20 Pendência Solucionada"]
["0000146","2017-08-08","PR08","Sistema Elétrico","10.20","Tensão de Comando","151890",null,null,"Monitoramento da tensão fornecida pela Light","Jesiel","2020-09-30",null,null,"AGOSTO",2017,"NÃO","De Acordo Com Manutenção Realizada em 30/09/20 Pendência Solucionada"]
["0000147","2017-10-09","PR01","Trole / Carro","5.2","Freio","0071993",null,null,"O motor esta sem sem bobina e disco de freio.Esta Pendência está atrelada a resolução da Pendência 0084/2018, ou seja, após troca da placa de comando do trolley será inserido o disco e a bobina de freio que já encontra-se na Modular","Jesiel","2021-04-06",null,null,"OUTUBRO",2017,"NÃO","Essa pendência de acordo com a preventiva realizada em 06/04/2021 OS Nº 6042336 já foi contornada."]
["0000148","2017-10-09","PR01","Ponte Rolante","6.11","Pára-Choque","0071993",null,null,null,"Jesiel","2018-02-16",null,null,"OUTUBRO",2017,"NÃO"]
["0000149","2017-10-09","PR01","Ponte Rolante","6.12","Limites","0071993",null,null,null,"Jesiel","2018-02-16",null,null,"OUTUBRO",2017,"NÃO"]
["0000150","2017-10-09","PR01","Caminho de Rolamento","9.2","Emenda dos Trilhos/Talas de Junção","0071993",null,null,null,"Jesiel","2019-02-21",null,null,"OUTUBRO",2017,"NÃO"]
["0000151","2017-10-09","PR01","Caminho de Rolamento","9.3","Elementos de Fixação","0071993",null,null,null,"Jesiel","2019-02-21",null,null,"OUTUBRO",2017,"NÃO"]
["0000152","2017-11-23","PR01","Ponte Rolante","6.12","Limites","101980",null,null,null,"Jesiel","2018-02-16",null,null,"NOVEMBRO",2017,"NÃO"]
["0000153","2017-12-11","PR01","Trole / Carro","5.2","Freio","0182845",null,null,"O motor esta sem sem bobina e disco de freio.Esta Pendência está atrelada a resolução da Pendência 0084/2018, ou seja, após troca da placa de comando do trolley será inserido o disco e a bobina de freio que já encontra-se na Modular","Jesiel","2021-04-06",null,null,"DEZEMBRO",2017,"NÃO","Essa pendência de acordo com a preventiva realizada em 06/04/2021 OS Nº 6042336 já foi contornada."]
["0000154","2017-12-11","PR01","Ponte Rolante","6.12","Limites","0182845",null,null,null,"Jesiel","2018-02-16",null,null,"DEZEMBRO",2017,"NÃO"]
["0000155","2017-10-10","PR02","Ponte Rolante","6.12","Limites","0071994",null,null,null,"Jesiel","2017-10-10",null,null,"OUTUBRO",2017,"NÃO"]
["0000156","2017-10-10","PR02","Caminho de Rolamento","9.2","Emenda dos Trilhos/Talas de Junção","0071994",null,null,null,"Jesiel","2019-02-21",null,null,"OUTUBRO",2017,"NÃO"]
["0000157","2017-10-10","PR02","Caminho de Rolamento","9.3","Elementos de Fixação","0071994",null,null,null,"Jesiel","2019-02-21",null,null,"OUTUBRO",2017,"NÃO"]
["0000158","2017-10-10","PR02","Sistema Elétrico","10.16","Rádio Comando","0071994",null,null,null,"Jesiel","2017-10-10",null,null,"OUTUBRO",2017,"NÃO"]
["0000159","2017-11-23","PR02","Caminho de Rolamento","9.2","Emenda dos Trilhos/Talas de Junção","0182780",null,null,null,"Jesiel","2019-02-21",null,null,"NOVEMBRO",2017,"NÃO"]
["0000160","2017-11-23","PR02","Caminho de Rolamento","9.3","Elementos de Fixação","0182780",null,null,null,"Jesiel","2019-02-21",null,null,"NOVEMBRO",2017,"NÃO"]
["0000161","2017-10-10","PR03","Trole / Carro","5.18","Limites","0071995",null,null,null,"Jesiel","2017-10-10",null,null,"OUTUBRO",2017,"NÃO"]
["0000162","2017-10-10","PR03","Caminho de Rolamento","9.3","Elementos de Fixação","0071995",null,null,null,"Jesiel","2019-02-21",null,null,"OUTUBRO",2017,"NÃO"]
["0000163","2017-10-10","PR03","Caminho de Rolamento","9.4","Batentes Fim de Curso","0071995",null,null,null,"Jesiel","2019-02-21",null,null,"OUTUBRO",2017,"NÃO"]
["0000164","2017-10-10","PR03","Sistema Elétrico","10.4","Chave Geral","0071995",null,null,"Manopla da Chave Seccicionadora Geral da Ponte Quebrada","Jesiel","2021-01-21",null,null,"OUTUBRO",2017,"NÃO","Essa pendência de acordo com a preventiva realizada em 21/01/2021 OS Nº 6036089 já foi contornada."]
["0000165","2017-12-13","PR03","Caminho de Rolamento","9.3","Elementos de Fixação","0182847",null,null,null,"Jesiel","2019-02-21",null,null,"DEZEMBRO",2017,"NÃO"]
["0000166","2017-12-13","PR03","Caminho de Rolamento","9.4","Batentes Fim de Curso","0182847",null,null,null,"Jesiel","2019-02-21",null,null,"DEZEMBRO",2017,"NÃO"]
["0000167","2017-12-13","PR03","Sistema Elétrico","10.4","Chave Geral","0182847",null,null,"Manopla da Chave Seccicionadora Geral da Ponte Quebrada","Jesiel","2021-01-21",null,null,"DEZEMBRO",2017,"NÃO","Essa pendência de acordo com a preventiva realizada em 21/01/2021 OS Nº 6036089 já foi contornada."]
["0000168","2017-11-21","PR04","Trole / Carro","5.18","Limites","0182778",null,null,null,"Jesiel","2017-12-14",null,null,"NOVEMBRO",2017,"NÃO"]
["0000169","2017-11-21","PR04","Caminho de Rolamento","9.3","Elementos de Fixação","0182778",null,null,null,"Jesiel","2019-02-21",null,null,"NOVEMBRO",2017,"NÃO"]
["0000170","2017-11-21","PR04","Caminho de Rolamento","9.4","Batentes Fim de Curso","0182778",null,null,null,"Jesiel","2019-02-21",null,null,"NOVEMBRO",2017,"NÃO"]
["0000171","2017-11-21","PR04","Sistema Elétrico","10.8","Contatores","0182778",null,null,null,"Jesiel","2017-12-14",null,null,"NOVEMBRO",2017,"NÃO"]
["0000172","2017-11-21","PR04","Sistema Elétrico","10.9","Contatos","0182778",null,null,null,"Jesiel","2017-12-14",null,null,"NOVEMBRO",2017,"NÃO"]
["0000173","2017-11-21","PR04","Sistema Elétrico","10.16","Rádio Comando","0182778",null,null,"O Rádio Comando Original Foi Cedido a Dourados, Atualmente Está Funcionando na Botoeira","Jesiel","2020-06-06",null,null,"NOVEMBRO",2017,"NÃO","Essa pendência de acordo com a preventiva realizada em 06/06/2020 OS Nº 6022232 já foi contornada."]
["0000174","2017-12-14","PR04","Ponte Rolante","6.12","Limites","0182848",null,null,"Faltam Dois Anti-Colisão Para frente Ponte","Jesiel","2020-06-06",null,null,"DEZEMBRO",2017,"NÃO","Essa pendência de acordo com a preventiva realizada em 06/06/2020 OS Nº 6022232 já foi contornada."]
["0000175","2017-12-14","PR04","Caminho de Rolamento","9.2","Emenda dos Trilhos/Talas de Junção","0182848",null,null,null,"Jesiel","2019-02-21",null,null,"DEZEMBRO",2017,"NÃO"]
["0000176","2017-12-14","PR04","Caminho de Rolamento","9.3","Elementos de Fixação","0182848",null,null,null,"Jesiel","2019-02-21",null,null,"DEZEMBRO",2017,"NÃO"]
["0000177","2017-12-14","PR04","Caminho de Rolamento","9.4","Batentes Fim de Curso","0182848",null,null,null,"Jesiel","2019-02-21",null,null,"DEZEMBRO",2017,"NÃO"]
["0000178","2017-12-14","PR04","Sistema Elétrico","10.8","Contatores","0182848",null,null,null,"Jesiel","2017-12-14",null,null,"DEZEMBRO",2017,"NÃO"]
["0000179","2017-12-14","PR04","Sistema Elétrico","10.9","Contatos","0182848",null,null,null,"Jesiel","2017-12-14",null,null,"DEZEMBRO",2017,"NÃO"]
["0000180","2017-12-14","PR04","Sistema Elétrico","10.16","Rádio Comando","0182848",null,null,"O Rádio Comando Original Foi Cedido a Dourados, Atualmente Está Funcionando na Botoeira","Jesiel","2020-06-06",null,null,"DEZEMBRO",2017,"NÃO","Essa pendência de acordo com a preventiva realizada em 06/06/2020 OS Nº 6022232 já foi contornada."]
["0000181","2017-11-23","PR05","Ponte Rolante","6.12","Limites","101980",null,null,null,"Jesiel","2018-03-28",null,null,"NOVEMBRO",2017,"NÃO"]
["0000182","2017-12-14","PR05","Ponte Rolante","6.12","Limites","0182849",null,null,null,"Jesiel","2018-03-28",null,null,"DEZEMBRO",2017,"NÃO"]
["0000183","2018-01-25","PR07","Elevação Principal","1.2","Freio","0182800",null,null,"1)Disco e tambor encontra-se gastos, 2)Porca de ajuste com parafusos danificados e 3)falta da grade de ventilação do freio","Jesiel","2021-02-03",null,null,"JANEIRO",2018,"NÃO","Essa pendência de acordo com a preventiva realizada em 03/02/2021 OS Nº 6036239 já foi contornada."]
["0000184","2018-01-25","PR07","Elevação Principal","1.10","Vedação dos Redutores","0182800",null,null,"As juntas de vedação do redutor de elevação estão danificadas sendo necessário sua substituição","Jesiel","2021-02-03",null,null,"JANEIRO",2018,"NÃO","Essa pendência de acordo com a preventiva realizada em 03/02/2021 OS Nº 6036239 já foi contornada."]
["0000185","2018-01-25","PR07","Elevação Principal","1.11","Ruídos e Vibrações nos Redutores","0182800",null,null,"Rolamentos, acoplamento e retentores com folgas ocasionando ruídos e vibrações no redutor. A não substituição implicará a quebra do mesmo com consequente parada do equipamento e com risco potencial de acidente","Jesiel","2021-02-03",null,null,"JANEIRO",2018,"NÃO","Essa pendência de acordo com a preventiva realizada em 03/02/2021 OS Nº 6036239 já foi contornada."]
["0000186","2018-01-25","PR07","Elevação Principal","1.14","Acoplamento","0182800",null,null,"Acoplamento e retentores com folgas ocasionando ruídos e vibrações no redutor. A não substituição implicará a quebra do mesmo com consequente parada do equipamento e com risco potencial de acidente","Jesiel","2021-02-03",null,null,"JANEIRO",2018,"NÃO","Essa pendência de acordo com a preventiva realizada em 03/02/2021 OS Nº 6036239 já foi contornada."]
["0000187","2018-01-25","PR07","Elevação Principal","1.16","Bloco Inferior (Polias)","0182800",null,null,"Polias encontram-se gastas, bem como suas tampas de proteção danificadas","Jesiel","2021-02-03",null,null,"JANEIRO",2018,"NÃO","Essa pendência de acordo com a preventiva realizada em 03/02/2021 OS Nº 6036239 já foi contornada."]
["0000188","2018-01-25","PR07","Trole / Carro","5.8","Vedação dos Redutores","0182800",null,null,"Trocar retentores internos do motor do trolley","Jesiel","2021-02-03",null,null,"JANEIRO",2018,"NÃO","Essa pendência de acordo com a preventiva realizada em 03/02/2021 OS Nº 6036239 já foi contornada."]
["0000189","2018-01-25","PR07","Ponte Rolante","6.13","Roletes Guia","0182800",null,null,"08 Roletes guias danificados podendo causar desalinhamento da ponte em relação ao trilho do caminho de rolamento","Jesiel","2021-02-03",null,null,"JANEIRO",2018,"NÃO","Essa pendência de acordo com a preventiva realizada em 03/02/2021 OS Nº 6036239 já foi contornada."]
["0000190","2018-01-25","PR08","Abastecimento de Força Carro","7.3","Perfis","0182800",null,null,null,"Jesiel","2019-02-21",null,null,"JANEIRO",2018,"NÃO"]
["0000191","2018-01-25","PR07","Abastecimento de Força Carro","7.5","Cabos","0182800",null,null,"Há necessidade de resolução da pendência 0126/2017. Atualmente os cabos encontram-se com emendas o que não é desejável","Jesiel","2021-02-03",null,null,"JANEIRO",2018,"NÃO","Essa pendência de acordo com a preventiva realizada em 03/02/2021 OS Nº 6036239 já foi contornada."]
["0000192","2018-01-25","PR07","Caminho de Rolamento","9.3","Elementos de Fixação","0182800",null,null,null,"Jesiel","2019-02-21",null,null,"JANEIRO",2018,"NÃO"]
["0000193","2018-01-25","PR07","Sistema Elétrico","10.7","Blocos Temporizados","0182800",null,null,null,"Jesiel","2021-04-06",null,null,"JANEIRO",2018,"NÃO","Essa pendência de acordo com a preventiva realizada em 06/04/2021 OS Nº 6042336 já foi contornada."]
["0000194","2018-01-25","PR07","Sistema Elétrico","10.12","Terminais","0182800",null,null,"Faltam alguns terminais e os existentes encontram-se amassados. Necessidades: 10 tipo agulha de 2,5mm; 10 tipo agulha de 1,5mm; 10 tipo forquilha de 2,5mm; 10 tipo forquilha de 1,5mm","Jesiel","2021-02-03",null,null,"JANEIRO",2018,{"$f":"IF(B200=\"\",\"\",IF(AND(L200=\"\",N200=\"\"),\"SIM\",IF(M200<>\"\",\"SIM\",\"NÃO\")))","v":"NÃO"},"Essa pendência de acordo com a preventiva realizada em 03/02/2021 OS Nº 6036239 já foi contornada."]
["0000195","2018-01-25","PR07","Sistema Elétrico","10.16","Rádio Comando","0182800",null,null,null,"Jesiel","2019-02-21",null,null,"JANEIRO",2018,"NÃO"]
["0000196","2018-01-25","PR07","Sistema Elétrico","10.19","Tensão de Rede","0182800",null,null,"Monitoramento da tensão fornecida pela Light","Jesiel","2021-02-03",null,null,"JANEIRO",2018,"NÃO","Essa pendência de acordo com a preventiva realizada em 03/02/2021 OS Nº 6036239 já foi contornada."]
["0000197","2018-01-25","PR07","Sistema Elétrico","10.20","Tensão de Comando","0182800",null,null,"Monitoramento da tensão fornecida pela Light","Jesiel","2021-02-03",null,null,"JANEIRO",2018,"NÃO","Essa pendência de acordo com a preventiva realizada em 03/02/2021 OS Nº 6036239 já foi contornada."]
["0000198","2018-02-16","PR01","Trole / Carro","5.2","Freio","0182809",null,null,"O motor esta sem sem bobina e disco de freio.Esta Pendência está atrelada a resolução da Pendência 0084/2018, ou seja, após troca da placa de comando do trolley será inserido o disco e a bobina de freio que já encontra-se na Modular","Jesiel","2021-04-06",null,null,"FEVEREIRO",2018,"NÃO","Essa pendência de acordo com a preventiva realizada em 06/04/2021 OS Nº 6042336 já foi contornada."]
["0000199","2018-02-16","PR01","Ponte Rolante","6.11","Pára-Choque","0182809",null,null,null,"Jesiel","2018-08-16",null,null,"FEVEREIRO",2018,"NÃO"]
["0000200","2018-02-16","PR01","Ponte Rolante","6.12","Limites","0182809",null,null,null,"Jesiel","2018-08-16",null,null,"FEVEREIRO",2018,"NÃO"]
["0000201","2018-02-16","PR01","Caminho de Rolamento","9.2","Emenda dos Trilhos/Talas de Junção","0182809",null,null,null,"Jesiel","2019-02-21",null,null,"FEVEREIRO",2018,"NÃO"]
["0000202","2018-02-16","PR01","Caminho de Rolamento","9.3","Elementos de Fixação","0182809",null,null,null,"Jesiel","2019-02-21",null,null,"FEVEREIRO",2018,"NÃO"]
["0000203","2018-02-15","PR02","Caminho de Rolamento","9.2","Emenda dos Trilhos/Talas de Junção","0182808",null,null,null,"Jesiel","2019-02-21",null,null,"FEVEREIRO",2018,"NÃO"]
["0000204","2018-02-15","PR02","Caminho de Rolamento","9.3","Elementos de Fixação","0182808",null,null,null,"Jesiel","2019-02-21",null,null,"FEVEREIRO",2018,"NÃO"]
["0000205","2018-02-15","PR03","Caminho de Rolamento","9.2","Emenda dos Trilhos/Talas de Junção","0182807",null,null,null,"Jesiel","2019-02-21",null,null,"FEVEREIRO",2018,"NÃO"]
["0000206","2018-02-15","PR03","Caminho de Rolamento","9.3","Elementos de Fixação","0182807",null,null,null,"Jesiel","2019-02-21",null,null,"FEVEREIRO",2018,"NÃO"]
["0000207","2018-02-15","PR03","Caminho de Rolamento","9.4","Batentes Fim de Curso","0182807",null,null,null,"Jesiel","2019-02-21",null,null,"FEVEREIRO",2018,"NÃO"]
["0000208","2018-02-15","PR03","Sistema Elétrico","10.4","Chave Geral","0182807",null,null,"Manopla da Chave Seccicionadora Geral da Ponte Quebrada","Jesiel","2021-01-21",null,null,"FEVEREIRO",2018,"NÃO","Essa pendência de acordo com a preventiva realizada em 21/01/2021 OS Nº 6036089 já foi contornada."]
["0000209","2018-02-14","PR06","Caminho de Rolamento","9.2","Emenda dos Trilhos/Talas de Junção","0182806",null,null,null,"Jesiel","2019-02-21",null,null,"FEVEREIRO",2018,"NÃO"]
["0000210","2018-02-14","PR06","Caminho de Rolamento","9.3","Elementos de Fixação","0182806",null,null,null,"Jesiel","2019-02-21",null,null,"FEVEREIRO",2018,"NÃO"]
["0000211","2018-03-27","PR04","Ponte Rolante","6.12","Limites","0182931",null,null,"Faltam Dois Anti-Colisão Para frente Ponte","Jesiel","2020-06-06",null,null,"MARÇO",2018,"NÃO","Essa pendência de acordo com a preventiva realizada em 06/06/2020 OS Nº 6022232 já foi contornada."]
["0000212","2018-03-27","PR04","Caminho de Rolamento","9.3","Elementos de Fixação","0182931",null,null,null,"Jesiel","2019-02-21",null,null,"MARÇO",2018,"NÃO"]
["0000213","2018-03-27","PR04","Caminho de Rolamento","9.4","Batentes Fim de Curso","0182931",null,null,null,"Jesiel","2019-02-21",null,null,"MARÇO",2018,"NÃO"]
["0000214","2018-03-27","PR04","Sistema Elétrico","10.16","Rádio Comando","0182931",null,null,"O Rádio Comando Original Foi Cedido a Dourados, Atualmente Está Funcionando na Botoeira","Jesiel","2020-06-06",null,null,"MARÇO",2018,"NÃO","Essa pendência de acordo com a preventiva realizada em 06/06/2020 OS Nº 6022232 já foi contornada."]
["0000215","2018-03-28","PR05","Ponte Rolante","6.12","Limites","0182931",null,null,null,"Jesiel","2018-03-28",null,null,"MARÇO",2018,"NÃO"]
["0000216","2018-03-28","PR06","Caminho de Rolamento","9.2","Emenda dos Trilhos/Talas de Junção","0182933",null,null,null,"Jesiel","2019-02-21",null,null,"MARÇO",2018,"NÃO"]
["0000217","2018-03-28","PR06","Caminho de Rolamento","9.3","Elementos de Fixação","0182933",null,null,null,"Jesiel","2019-02-21",null,null,"MARÇO",2018,"NÃO"]
["0000218","2018-05-07","PR01","Trole / Carro","5.2","Freio","0182935",null,null,"O motor esta sem sem bobina e disco de freio.Esta Pendência está atrelada a resolução da Pendência 0084/2018, ou seja, após troca da placa de comando do trolley será inserido o disco e a bobina de freio que já encontra-se na Modular","Jesiel","2021-04-06",null,null,"MAIO",2018,"NÃO","Essa pendência de acordo com a preventiva realizada em 06/04/2021 OS Nº 6042336 já foi contornada."]
["0000219","2018-05-07","PR01","Caminho de Rolamento","9.2","Emenda dos Trilhos/Talas de Junção","0182935",null,null,null,"Jesiel","2019-02-21",null,null,"MAIO",2018,"NÃO"]
["0000220","2018-05-07","PR01","Caminho de Rolamento","9.3","Elementos de Fixação","0182935",null,null,null,"Jesiel","2019-02-21",null,null,"MAIO",2018,"NÃO"]
["0000221","2018-05-09","PR03","Caminho de Rolamento","9.2","Emenda dos Trilhos/Talas de Junção","0182937",null,null,null,"Jesiel","2019-02-21",null,null,"MAIO",2018,"NÃO"]
["0000222","2018-05-09","PR03","Caminho de Rolamento","9.3","Elementos de Fixação","0182937",null,null,null,"Jesiel","2019-02-21",null,null,"MAIO",2018,"NÃO"]
["0000223","2018-05-09","PR03","Caminho de Rolamento","9.4","Batentes Fim de Curso","0182937",null,null,null,"Jesiel","2019-02-21",null,null,"MAIO",2018,"NÃO"]
["0000224","2018-05-09","PR03","Sistema Elétrico","10.4","Chave Geral","0182937",null,null,"Manopla da Chave Seccicionadora Geral da Ponte Quebrada","Jesiel","2021-01-21",null,null,"MAIO",2018,"NÃO","Essa pendência de acordo com a preventiva realizada em 21/01/2021 OS Nº 6036089 já foi contornada."]
["0000225","2018-05-10","PR07","Elevação Principal","1.2","Freio","0182938",null,null,"1)Disco e tambor encontra-se gastos, 2)Porca de ajuste com parafusos danificados e 3)falta da grade de ventilação do freio","Jesiel","2021-02-03",null,null,"MAIO",2018,"NÃO","Essa pendência de acordo com a preventiva realizada em 03/02/2021 OS Nº 6036239 já foi contornada."]
["0000226","2018-05-10","PR07","Elevação Principal","1.3","Cabo de Aço","0182938",null,null,"Cabo de aço encontra-se com 18 fios rompidos e várias ondulações , sendo necessário sua troca","Jesiel","2021-02-03",null,null,"MAIO",2018,"NÃO","Essa pendência de acordo com a preventiva realizada em 03/02/2021 OS Nº 6036239 já foi contornada."]
["0000227","2018-05-10","PR07","Elevação Principal","1.5","Conjunto Guia/Pressionador","0182938",null,null,"Ausencia do conjunto guia e anel pressionador, talhas funcionando sem as mesmos podendo causar embolamento do cabo de aço ocasionando rompimento do mesmo","Jesiel","2021-02-03",null,null,"MAIO",2018,"NÃO","Essa pendência de acordo com a preventiva realizada em 03/02/2021 OS Nº 6036239 já foi contornada."]
["0000228","2018-05-10","PR07","Elevação Principal","1.10","Vedação dos Redutores","0182938",null,null,"As juntas de vedação do redutor de elevação estão danificadas sendo necessário sua substituição","Jesiel","2021-02-03",null,null,"MAIO",2018,"NÃO","Essa pendência de acordo com a preventiva realizada em 03/02/2021 OS Nº 6036239 já foi contornada."]
["0000229","2018-05-10","PR07","Elevação Principal","1.11","Ruídos e Vibrações nos Redutores","0182938",null,null,"Rolamentos, acoplamento e retentores com folgas ocasionando ruídos e vibrações no redutor. A não substituição implicará a quebra do mesmo com consequente parada do equipamento e com risco potencial de acidente","Jesiel","2021-02-03",null,null,"MAIO",2018,"NÃO","Essa pendência de acordo com a preventiva realizada em 03/02/2021 OS Nº 6036239 já foi contornada."]
["0000230","2018-05-10","PR07","Elevação Principal","1.14","Acoplamento","0182938",null,null,"Acoplamento e retentores com folgas ocasionando ruídos e vibrações no redutor. A não substituição implicará a quebra do mesmo com consequente parada do equipamento e com risco potencial de acidente","Jesiel","2021-02-03",null,null,"MAIO",2018,"NÃO","Essa pendência de acordo com a preventiva realizada em 03/02/2021 OS Nº 6036239 já foi contornada."]
["0000231","2018-05-10","PR07","Elevação Principal","1.16","Bloco Inferior (Polias)","0182938",null,null,"Polias encontram-se gastas, bem como suas tampas de proteção danificadas","Jesiel","2021-02-03",null,null,"MAIO",2018,"NÃO","Essa pendência de acordo com a preventiva realizada em 03/02/2021 OS Nº 6036239 já foi contornada."]
["0000232","2018-05-10","PR07","Elevação Principal","1.18","Limites de Serviço","0182938",null,null,"Falta Haste de acionamento do limite e guia de cabo para que o mesmo possa se tornar em condições de operação. Podendo ocasionar o rompimento do cabo se o operador não atentar-se no ato  de subida do gancho. Atualmente o limite encontra-se inoperante","Jesiel","2021-02-03",null,null,"MAIO",2018,"NÃO","Essa pendência de acordo com a preventiva realizada em 03/02/2021 OS Nº 6036239 já foi contornada."]
["0000233","2018-05-10","PR07","Elevação Principal","1.19","Limites de Emergência","0182938",null,null,"Melhoria da Segurança","Jesiel","2021-02-03",null,null,"MAIO",2018,"NÃO","Essa pendência de acordo com a preventiva realizada em 03/02/2021 OS Nº 6036239 já foi contornada."]
["0000234","2018-05-10","PR07","Trole / Carro","5.8","Vedação dos Redutores","0182938",null,null,"Trocar retentores internos do motor do trolley","Jesiel","2021-02-03",null,null,"MAIO",2018,"NÃO","Essa pendência de acordo com a preventiva realizada em 03/02/2021 OS Nº 6036239 já foi contornada."]
["0000235","2018-05-10","PR07","Ponte Rolante","6.13","Roletes Guia","0182938",null,null,"08 Roletes guias danificados podendo causar desalinhamento da ponte em relação ao trilho do caminho de rolamento","Jesiel","2021-02-03",null,null,"MAIO",2018,"NÃO","Essa pendência de acordo com a preventiva realizada em 03/02/2021 OS Nº 6036239 já foi contornada."]
["0000236","2018-05-10","PR07","Abastecimento de Força Carro","7.3","Perfis","0182938",null,null,"O perfil encontra-se amassado podendo travar os portas cabos com consequente arrebentamento dos cabos de força","Jesiel","2021-02-03",null,null,"MAIO",2018,"NÃO","Essa pendência de acordo com a preventiva realizada em 03/02/2021 OS Nº 6036239 já foi contornada."]
["0000237","2018-05-10","PR07","Abastecimento de Força Carro","7.5","Cabos","0182938",null,null,"Há necessidade de resolução da pendência 0126/2017. Atualmente os cabos encontram-se com emendas o que não é desejável","Jesiel","2021-02-03",null,null,"MAIO",2018,"NÃO","Essa pendência de acordo com a preventiva realizada em 03/02/2021 OS Nº 6036239 já foi contornada."]
["0000238","2018-05-10","PR07","Abastecimento de Força Carro","7.6","Fixação do Ponto Fixo","0182938",null,null,"Ausencia de fixação do \"ponto fixo\" do final do cabo de força do trolley. Para regularizar será necessário a aquisição do \"ponto fixo\"","Jesiel","2021-02-03",null,null,"MAIO",2018,"NÃO","Essa pendência de acordo com a preventiva realizada em 03/02/2021 OS Nº 6036239 já foi contornada."]
["0000239","2018-05-10","PR07","Caminho de Rolamento","9.3","Elementos de Fixação","0182938",null,null,null,"Jesiel","2019-02-21",null,null,"MAIO",2018,"NÃO"]
["0000240","2018-05-10","PR07","Sistema Elétrico","10.7","Blocos Temporizados","0182938",null,null,null,"Jesiel","2019-02-21",null,null,"MAIO",2018,"NÃO"]
["0000241","2018-05-10","PR07","Sistema Elétrico","10.12","Terminais","0182938",null,null,"Faltam alguns terminais e os existentes encontram-se amassados. Necessidades: 10 tipo agulha de 2,5mm; 10 tipo agulha de 1,5mm; 10 tipo forquilha de 2,5mm; 10 tipo forquilha de 1,5mm","Jesiel","2021-02-03",null,null,"MAIO",2018,"NÃO","Essa pendência de acordo com a preventiva realizada em 03/02/2021 OS Nº 6036239 já foi contornada."]
["0000242","2018-05-08","PR08","Elevação Principal","1.5","Conjunto Guia/Pressionador","0182936",null,null,"Conjunto Guia com folgas em suas roscas","Jesiel","2020-09-30",null,null,"MAIO",2018,"NÃO","De Acordo Com Manutenção Realizada em 30/09/20 Pendência Solucionada"]
["0000243","2018-05-08","PR08","Elevação Principal","1.10","Vedação dos Redutores","0182936",null,null,"Programar inspeção e troca das juntas de vedação dos redutores","Jesiel","2020-09-30",null,null,"MAIO",2018,"NÃO","De Acordo Com Manutenção Realizada em 30/09/20 Pendência Solucionada"]
["0000244","2018-05-08","PR08","Elevação Principal","1.12","Nível de Óleo nos Redutores","0182936",null,null,null,"Jesiel","2019-02-21",null,null,"MAIO",2018,"NÃO"]
["0000245","2018-05-08","PR08","Elevação Principal","1.16","Bloco Inferior (Polias)","0182936",null,null,null,"Jesiel","2019-02-21",null,null,"MAIO",2018,"NÃO"]
["0000246","2018-05-08","PR08","Elevação Principal","1.20","Caixa de Ligações do Motor/Terminais","0182936",null,null,"Ausencia da tampa de ligação dos cabos do motor. Confeccionar em acrílico. Claudio passará as medidas da tampa","Jesiel","2020-09-30",null,null,"MAIO",2018,"NÃO","De Acordo Com Manutenção Realizada em 30/09/20 Pendência Solucionada"]
["0000247","2018-05-08","PR08","Trole / Carro","5.8","Vedação dos Redutores","0182936",null,null,"Programar inspeção e troca das juntas de vedação dos redutores","Jesiel","2020-09-30",null,null,"MAIO",2018,"NÃO","De Acordo Com Manutenção Realizada em 30/09/20 Pendência Solucionada"]
["0000248","2018-05-08","PR08","Trole / Carro","5.11","Nível de Óleo nos Redutores","0182936",null,null,null,"Jesiel","2019-02-21",null,null,"MAIO",2018,"NÃO"]
["0000249","2018-05-08","PR08","Trole / Carro","5.13","Pára-Choque","0182936",null,null,"Parachoque com borracha danificada. Providenciar confecção","Jesiel","2020-09-30",null,null,"MAIO",2018,"NÃO","De Acordo Com Manutenção Realizada em 30/09/20 Pendência Solucionada"]
["0000250","2018-05-08","PR08","Caminho de Rolamento","9.2","Emenda dos Trilhos/Talas de Junção","0182936",null,null,null,"Jesiel","2019-02-21",null,null,"MAIO",2018,"NÃO"]
["0000251","2018-05-08","PR08","Caminho de Rolamento","9.3","Elementos de Fixação","0182936",null,null,null,"Jesiel","2019-02-21",null,null,"MAIO",2018,"NÃO"]
["0000252","2018-06-27","PR01","Trole / Carro","5.2","Freio","0182964",null,null,"O motor esta sem sem bobina e disco de freio.Esta Pendência está atrelada a resolução da Pendência 0084/2018, ou seja, após troca da placa de comando do trolley será inserido o disco e a bobina de freio que já encontra-se na Modular","Jesiel","2021-04-06",null,null,"JUNHO",2018,"NÃO","Essa pendência de acordo com a preventiva realizada em 06/04/2021 OS Nº 6042336 já foi contornada."]
["0000253","2018-06-27","PR01","Caminho de Rolamento","9.2","Emenda dos Trilhos/Talas de Junção","0182964",null,null,null,"Jesiel","2019-02-21",null,null,"JUNHO",2018,"NÃO"]
["0000254","2018-06-27","PR01","Caminho de Rolamento","9.3","Elementos de Fixação","0182964",null,null,null,"Jesiel","2019-02-21",null,null,"JUNHO",2018,"NÃO"]
["0000255","2018-06-25","PR06","Caminho de Rolamento","9.2","Emenda dos Trilhos/Talas de Junção","0182963",null,null,null,"Jesiel","2019-02-21",null,null,"JUNHO",2018,"NÃO"]
["0000256","2018-06-25","PR06","Caminho de Rolamento","9.3","Elementos de Fixação","0182963",null,null,null,"Jesiel","2019-02-21",null,null,"JUNHO",2018,"NÃO"]
["0000257","2018-08-09","PR06","Maquinário TALHA",14010,"Caixa de engrenagens - Inspeção Interna","6005593",null,null,"Realização de inspeção interna da caixa de engrenagem, há necessidade de abertura da mesma o tempo estimado são de 2 dias e há necessidade de adquirir juntas d vedaçãoi e também realizar a troca de óleo","Jesiel","2020-10-01",null,null,"AGOSTO",2018,"NÃO","De Acordo Com Manutenção Realizada em 01/10/20 Pendência Solucionada"]
["0000258","2018-08-09","PR06","Estrutura PONTE",21050,"Amortecedores ","5003326",null,null,"02 Amortecedores Rachados (Cod: 811098-44)","Jesiel","2019-02-21",null,null,"AGOSTO",2018,{"$f":"IF(B264=\"\",\"\",IF(AND(L264=\"\",N264=\"\"),\"SIM\",IF(M264<>\"\",\"SIM\",\"NÃO\")))","v":"NÃO"}]
["0000259","2018-08-09","PR06","Estrutura do Caminho de Rolamento",141004,"Trilhos - juntas","2002888",null,null,null,"Jesiel","2019-02-21",null,null,"AGOSTO",2018,"NÃO"]
["0000260","2018-08-10","PR05","Estrutura TROLE",11050,"Outros","6005594",null,null,"Trole Com 5mm de Folga Necessário Fechar Para 2mm","Jesiel","2020-10-01",null,null,"AGOSTO",2018,"NÃO","De Acordo Com Manutenção Realizada em 01/10/20 Pendência Solucionada"]
["0000261","2018-08-10","PR05","Maquinário TALHA",14010,"Caixa de engrenagens - Inspeção Interna","6005594",null,null,"Realização de inspeção interna da caixa de engrenagem, há necessidade de abertura da mesma o tempo estimado são de 2 dias e há necessidade de adquirir juntas d vedaçãoi e também realizar a troca de óleo","Jesiel","2020-10-01",null,null,"AGOSTO",2018,"NÃO","De Acordo Com Manutenção Realizada em 01/10/20 Pendência Solucionada"]
["0000262","2018-08-10","PR05","Estrutura do Caminho de Rolamento",141004,"Trilhos - juntas","2002889",null,null,null,"Jesiel","2019-02-21",null,null,"AGOSTO",2018,"NÃO"]
["0000263","2018-08-10","PR05","Elétrica TALHA",15023,"Outros","6005594",null,null,"Contactor Scnneider LC1 D40008 48V.Contator de elevação da alta velocidade funcionando de maneira precária há necesidade de sua substituição para regularização do processo","Jesiel","2020-10-01",null,null,"AGOSTO",2018,"NÃO","De Acordo Com Manutenção Realizada em 01/10/20 Pendência Solucionada"]
["0000264","2018-08-13","PR04","Maquinário TALHA",14010,"Caixa de engrenagens - Inspeção Interna","6005595",null,null,"Há necessidade de agendar uma inspeção para avaliação interna","Jesiel","2020-06-06",null,null,"AGOSTO",2018,"NÃO","Essa pendência de acordo com a preventiva realizada em 06/06/2020 OS Nº 6022232 já foi contornada."]
["0000265","2018-08-13","PR04","Elétrica da Ponte / Pórtico",230150,"Coletores de alimentação da ponte / pórtico","5003328",null,null,"01 NOK, Isolado Com Fita","Jesiel","2019-02-21",null,null,"AGOSTO",2018,"NÃO"]
["0000266","2018-09-04","PR01","Elétrica TROLE",13013,"Outros","0182759",null,null,"O motor esta sem sem bobina e disco de freio.Perda de Estabilidade da Translação do Trolley Causando Instabilidade Operacional. SOLUÇÃO: Troca da Placa de Comando do Trolley","Jesiel","2021-04-06",null,null,"SETEMBRO",2018,"NÃO","Essa pendência de acordo com a preventiva realizada em 06/04/2021 OS Nº 6042336 já foi contornada."]
["0000267","2018-09-04","PR01","Maquinário TROLE",12004,"Freio","0182759",null,null,"O motor esta sem sem bobina e disco de freio.Esta Pendência está atrelada a resolução da Pendência 0084/2018, ou seja, após troca da placa de comando do trolley será inserido o disco e a bobina de freio que já encontra-se na Modular","Jesiel","2021-04-06",null,null,"SETEMBRO",2018,"NÃO","Essa pendência de acordo com a preventiva realizada em 06/04/2021 OS Nº 6042336 já foi contornada."]
["0000268","2018-09-04","PR01","Estrutura do Caminho de Rolamento",141001,"Trilhos - grampus","0182759",null,null,null,"Jesiel","2019-02-21",null,null,"SETEMBRO",2018,"NÃO"]
["0000269","2018-09-03","PR06","Elétrica da Ponte / Pórtico",230240,"Outros","0182758",null,null,null,"Jesiel","2019-02-21",null,null,"SETEMBRO",2018,"NÃO"]
["0000270","2018-10-29","PR03","Elétrica TALHA",15023,"Outros",6007852,null,null,"Ventoinha do Motor da Talha Ruim - Trinca na chaveta que conecta a hálice ao motor, apesar de estar refrigerando este defeito pode ocasionar a quebra da hélice causando a falta de refrigeração do motor ocasionando o desarme do témico do motor","Jesiel","2020-08-14",null,null,"OUTUBRO",2018,"NÃO"]
["0000271","2018-10-29","PR03","Elétrica da Ponte / Pórtico",23010," Dispositivo sinalizador - luminoso",5009001,null,null,"Substituir Lâmpada 12v Dispositivo Sinalizador Luminoso","Jesiel","2020-08-14",null,null,"OUTUBRO",2018,"NÃO"]
["0000272","2018-10-29","PR03","Elétrica da Ponte / Pórtico",23030,"Chave Seccionadora geral da ponte",5009001,null,null,"Manopla da Chave Seccicionadora Geral da Ponte Quebrada","Jesiel","2021-01-21",null,null,"OUTUBRO",2018,"NÃO","Essa pendência de acordo com a preventiva realizada em 21/01/2021 OS Nº 6036089 já foi contornada."]
["0000273","2018-10-29","PR03","Estrutura do Caminho de Rolamento",141001,"Trilhos - grampus",2003813,null,null,null,"Jesiel","2019-02-21",null,null,"OUTUBRO",2018,"NÃO"]
["0000274","2018-10-29","PR03","Estrutura do Caminho de Rolamento",141002,"Batentes fim de curso",2003813,null,null,null,"Jesiel","2019-02-21",null,null,"OUTUBRO",2018,"NÃO"]
["0000275","2018-10-29","PR03","Estrutura do Caminho de Rolamento",141003,"Trilhos - alinhamento",2003813,null,null,null,"Jesiel","2019-02-21",null,null,"OUTUBRO",2018,"NÃO"]
["0000276","2018-10-31","PR08","Maquinário da Ponte / Pórtico",22070,"Rodas","S/Nº",null,null,"Eixo do Redutor Não Alcança a Bucha de estria Interna da Roda Devido a Furação da Base de Fixação do Redutor","Jesiel","2020-09-30",null,null,"OUTUBRO",2018,"NÃO","De Acordo Com Manutenção Realizada em 30/09/20 Pendência Solucionada"]
["0000277","2018-11-21","PR04","Maquinário TALHA",14024,"Outros",63928,null,null,"Ventoinha Motor ZBR132",null,"2020-06-06",null,null,"NOVEMBRO",2018,"NÃO","Essa pendência de acordo com a preventiva realizada em 06/06/2020 OS Nº 6022232 já foi contornada."]
["0000278","2018-11-21","PR04","Elétrica da Ponte / Pórtico",230240,"Outros",5007006,null,null,"Faltam Dois Anti-Colisão Para frente Ponte",null,"2020-06-06",null,null,"NOVEMBRO",2018,"NÃO","Essa pendência de acordo com a preventiva realizada em 06/06/2020 OS Nº 6022232 já foi contornada."]
["0000279","2018-11-20","PR05","Elétrica TROLE",13013,"Outros",63927,null,null,"Conjunto Rolete de Apoio DR10 danificados",null,"2020-10-01",null,null,"NOVEMBRO",2018,"NÃO","De Acordo Com Manutenção Realizada em 01/10/20 Pendência Solucionada"]
["0000280","2018-11-20","PR05","Elétrica TALHA",15023,"Outros",63927,null,null,"Contactor Scnneider LC1 D40008 48V. Contator de elevação da alta velocidade funcionando de maneira precária há necesidade de sua substituição para regularização do processo",null,"2020-10-01",null,null,"NOVEMBRO",2018,"NÃO","De Acordo Com Manutenção Realizada em 01/10/20 Pendência Solucionada"]
["0000281","2018-11-20","PR05","Maquinário TALHA",14024,"Outros",63927,null,null,"Ventoinha com trinca na chaveta de conexão com o motor de elevação podendo ocasionar aquecimento com o desligamento intermitente Motor Elevação ZBR132",null,"2020-10-01",null,null,"NOVEMBRO",2018,"NÃO","De Acordo Com Manutenção Realizada em 01/10/20 Pendência Solucionada"]
["0000282","2018-11-21","PR06","Elétrica TALHA",15023,"Outros",63926,null,null,"Contactor Schneider LC1D80008 48V Tetrapolar",null,"2019-02-21",null,null,"NOVEMBRO",2018,"NÃO"]
["0000283","2018-11-19","PR06","Elétrica TROLE",13013,"Outros",63926,null,null,"Relés 5V Para MSS",null,"2020-10-01",null,null,"NOVEMBRO",2018,"NÃO","De Acordo Com Manutenção Realizada em 01/10/20 Pendência Solucionada"]
["0000284","2018-12-20","PR01","Maquinário TROLE",12004,"Freio",63945,null,null,"O motor esta sem sem bobina e disco de freio.Esta Pendência está atrelada a resolução da Pendência 0084/2018, ou seja, após troca da placa de comando do trolley será inserido o disco e a bobina de freio que já encontra-se na Modular",null,"2021-04-06",null,null,"DEZEMBRO",2018,"NÃO","Essa pendência de acordo com a preventiva realizada em 06/04/2021 OS Nº 6042336 já foi contornada."]
["0000285","2018-12-20","PR01","Maquinário TROLE",12012,"Outros",63945,null,null,"O motor esta sem sem bobina e disco de freio.Esta Pendência está atrelada a resolução da Pendência 0084/2018, ou seja, após troca da placa de comando do trolley será inserido o disco e a bobina de freio que já encontra-se na Modular",null,"2021-04-06",null,null,"DEZEMBRO",2018,"NÃO","Essa pendência de acordo com a preventiva realizada em 06/04/2021 OS Nº 6042336 já foi contornada."]
["0000286","2018-12-20","PR01","Maquinário TALHA",14010,"Caixa de engrenagens - Inspeção Interna",63945,null,null,"(RECOMENDAÇÃO) - Realização de inspeção interna da caixa de engrenagem, há necessidade de abertura da mesma o tempo estimado são de 2 dias e há necessidade de adquirir juntas d vedaçãoi e também realizar a troca de óleo",null,"2021-04-06",null,null,"DEZEMBRO",2018,"NÃO","Essa pendência de acordo com a preventiva realizada em 06/04/2021 OS Nº 6042336 já foi contornada."]
["0000287","2018-12-18","PR04","Elétrica TROLE",13009,"Inversor",63944,null,null,"Inversor Dic4 apresenta falha (erro F0810) e não aciona o motor do Trolei. Será realizado orçamento de um novo inversor",null,"2019-02-21",null,null,"DEZEMBRO",2018,"NÃO"]
["0000288","2018-12-18","PR04","Maquinário TALHA",14010,"Caixa de engrenagens - Inspeção Interna",63944,null,null,"Há necessidade de agendar uma inspeção para avaliação interna",null,"2020-06-06",null,null,"DEZEMBRO",2018,"NÃO","Essa pendência de acordo com a preventiva realizada em 06/06/2020 OS Nº 6022232 já foi contornada."]
["0000289","2018-12-18","PR04","Maquinário TALHA",14024,"Outros",63944,null,null,"Motor Elevação Sem Ventoinha, podendo ocasionar aquecimento causando desarme intermitente do térmico",null,"2020-06-06",null,null,"DEZEMBRO",2018,"NÃO","Essa pendência de acordo com a preventiva realizada em 06/06/2020 OS Nº 6022232 já foi contornada."]
["0000290","2018-02-18","PR04","Elétrica da Ponte / Pórtico",230240,"Outros",5007010,null,null,"Faltam Dois Anti Colisão Parte Frente Ponte",null,"2020-06-06",null,null,"FEVEREIRO",2018,"NÃO","Essa pendência de acordo com a preventiva realizada em 06/06/2020 OS Nº 6022232 já foi contornada."]
["0000291","2018-12-18","PR04","Estrutura do Caminho de Rolamento",141002,"Batentes fim de curso",2003835,null,null,null,null,"2019-02-21",null,null,"DEZEMBRO",2018,"NÃO"]
["0000292","2018-12-19","PR05","Elétrica TROLE",13013,"Outros",63946,null,null,"Conjunto Rolete de Apoio DR10 danificados",null,"2020-10-01",null,null,"DEZEMBRO",2018,"NÃO","De Acordo Com Manutenção Realizada em 01/10/20 Pendência Solucionada"]
["0000293","2018-12-19","PR05","Maquinário TALHA",14010,"Caixa de engrenagens - Inspeção Interna",63946,null,null,"Realização de inspeção interna da caixa de engrenagem, há necessidade de abertura da mesma o tempo estimado são de 2 dias e há necessidade de adquirir juntas d vedaçãoi e também realizar a troca de óleo",null,"2020-10-01",null,null,"DEZEMBRO",2018,"NÃO","De Acordo Com Manutenção Realizada em 01/10/20 Pendência Solucionada"]
["0000294","2018-12-19","PR05","Maquinário TALHA",14024,"Outros",63946,null,null,"Ventoinha com trinca na chaveta de conexão com o motor de elevação podendo ocasionar aquecimento com o desligamento intermitente Motor Elevação ZBR132",null,"2020-10-01",null,null,"DEZEMBRO",2018,"NÃO","De Acordo Com Manutenção Realizada em 01/10/20 Pendência Solucionada"]
["0000295","2018-12-19","PR05","Elétrica TALHA",15023,"Outros",63946,null,null,"Contactor Scnneider LC1 D40008 48V. Contator de elevação da alta velocidade funcionando de maneira precária há necesidade de sua substituição para regularização do processo",null,"2020-10-01",null,null,"DEZEMBRO",2018,"NÃO","De Acordo Com Manutenção Realizada em 01/10/20 Pendência Solucionada"]
["0000296","2019-02-01","PR01","Maquinário TROLE",12004,"Freio",6006929,null,null,"Perda de Estabilidade da Translação do Trolley Causando Instabilidade Operacional. SOLUÇÃO: Troca da Placa de Comando do Trolley",null,"2021-04-06",null,null,"FEVEREIRO",2019,"NÃO","Essa pendência de acordo com a preventiva realizada em 06/04/2021 OS Nº 6042336 já foi contornada."]
["0000297","2019-02-01","PR01","Elétrica TROLE",13013,"Outros",6006929,null,null,"Placa do Comando do Trolley Com o Circuito de Freio Danificado. .Esta Pendência está atrelada a resolução da Pendência 0084/2018, ou seja, após troca da placa de comando do trolley será inserido o disco e a bobina de freio que já encontra-se na Modular",null,"2021-04-06",null,null,"FEVEREIRO",2019,"NÃO","Essa pendência de acordo com a preventiva realizada em 06/04/2021 OS Nº 6042336 já foi contornada."]
["0000298","2019-02-01","PR01","Elétrica da Ponte / Pórtico",230140,"Luzes",5007016,null,null,"Lâmpada do Giroflex Queimada",null,"2020-08-13",null,null,"FEVEREIRO",2019,"NÃO"]
["0000299","2019-02-01","PR01","Maquinário TALHA",14010,"Caixa de engrenagens - Inspeção Interna",6006929,null,null,"(RECOMENDAÇÃO) - Há necessidade de agendar uma inspeção para avaliação interna",null,null,null,null,"FEVEREIRO",2019,"SIM"]
["0000300","2019-02-01","PR04","Maquinário TALHA",14010,"Caixa de engrenagens - Inspeção Interna",6006928,null,null,"Há necessidade de agendar uma inspeção para avaliação interna",null,null,null,null,"FEVEREIRO",2019,"SIM"]
["0000301","2019-02-01","PR04","Elétrica TALHA",15023,"Outros",6006928,null,null,"Motor Elevação sem Ventoinha (Conjunto da Ventoinha Z100/132 leve (23871533)",null,"2020-06-06",null,null,"FEVEREIRO",2019,"NÃO","Essa pendência de acordo com a preventiva realizada em 06/06/2020 OS Nº 6022232 já foi contornada."]
["0000302","2019-02-01","PR04","Elétrica da Ponte / Pórtico",230240,"Outros",5007014,null,null,"Faltam 2 (Dois) Sensores Anti Colisão (RLK28-55-2466/31/11SD 12-240V (31497957)",null,"2020-06-06",null,null,"FEVEREIRO",2019,"NÃO","Essa pendência de acordo com a preventiva realizada em 06/06/2020 OS Nº 6022232 já foi contornada."]
["0000303","2019-02-01","PR04","Estrutura do Caminho de Rolamento",141002,"Batentes fim de curso",2008351,null,null,"Batentes Fim de Curso Inadequados",null,"2020-06-06",null,null,"FEVEREIRO",2019,"NÃO","Essa pendência de acordo com a preventiva realizada em 06/06/2020 OS Nº 6022232 já foi contornada."]
["0000304","2019-02-01","PR06","Maquinário TROLE",12005,"Caixa de engrenagens e engrenagens",6006926,null,null,"Agendar Inspeção na Caixa de Engrenagem do Redutor",null,null,null,null,"FEVEREIRO",2019,"SIM"]
["0000305","2019-02-01","PR06","Maquinário TALHA",14010,"Caixa de engrenagens - Inspeção Interna",6006926,null,null,"Há necessidade de agendar uma inspeção para avaliação interna",null,null,null,null,"FEVEREIRO",2019,"SIM"]
["0000306","2019-02-01","PR06","Elétrica TALHA",15023,"Outros",6006926,null,null,"Contactores de elevação Ruins (Contactor LC1D80008 AC 125C 48V (57550633) Com Contatos Ruins e Contatctor Auxiliar 10C 48V (79282944) Com Bobina Ruim",null,"2021-04-06",null,null,"FEVEREIRO",2019,"NÃO","Essa pendência de acordo com a preventiva realizada em 06/04/2021 OS Nº 6042335 já foi contornada."]
["0000307","2019-02-01","PR06","Elétrica da Ponte / Pórtico",230240,"Outros",5007015,null,null,"Relê Extraivel da Translação da Ponte estão Com os Contatos Ruins (Módulo H55 5V (47928233)",null,"2021-04-06",null,null,"FEVEREIRO",2019,"NÃO","Essa pendência de acordo com a preventiva realizada em 06/04/2021 OS Nº 6042335 já foi contornada."]
["0000308","2019-02-21","PR07","Maquinário TROLE",12004,"Freio",6006938,null,null,"Disco de Freio Gasto",null,"2021-02-03",null,null,"FEVEREIRO",2019,"NÃO","Essa pendência de acordo com a preventiva realizada em 03/02/2021 OS Nº 6036239 já foi contornada."]
["0000309","2019-02-21","PR07","Maquinário TROLE",12005,"Caixa de engrenagens e engrenagens",6006938,null,null,"Há necessidade de agendar uma inspeção para avaliação interna",null,"2021-02-03",null,null,"FEVEREIRO",2019,"NÃO","Essa pendência de acordo com a preventiva realizada em 03/02/2021 OS Nº 6036239 já foi contornada."]
["0000310","2019-02-21","PR07","Maquinário TROLE",12007,"Rolamento do eixo central",6006938,null,null,"Rolamento do eixo central Com Folga",null,"2021-02-03",null,null,"FEVEREIRO",2019,"NÃO","Essa pendência de acordo com a preventiva realizada em 03/02/2021 OS Nº 6036239 já foi contornada."]
["0000311","2019-02-21","PR07","Maquinário TROLE",12009,"Engrenagens das rodas",6006938,null,null,"Engrenagens das rodas Gastas",null,"2021-02-03",null,null,"FEVEREIRO",2019,"NÃO","Essa pendência de acordo com a preventiva realizada em 03/02/2021 OS Nº 6036239 já foi contornada."]
["0000312","2019-02-21","PR07","Maquinário TROLE",12010,"Rolamentos das rodas",6006938,null,null,"Rolamentos das rodas com Folga",null,"2021-02-03",null,null,"FEVEREIRO",2019,"NÃO","Essa pendência de acordo com a preventiva realizada em 03/02/2021 OS Nº 6036239 já foi contornada."]
["0000313","2019-02-21","PR07","Maquinário TROLE",12011,"Unidade de motorização externo",6006938,null,null,"Rotor Com Solda",null,"2021-02-03",null,null,"FEVEREIRO",2019,"NÃO","Essa pendência de acordo com a preventiva realizada em 03/02/2021 OS Nº 6036239 já foi contornada."]
["0000314","2019-02-21","PR07","Maquinário TROLE",12012,"Outros",6006938,null,null,"Juntas - Retentor - Lubrificação",null,"2021-02-03",null,null,"FEVEREIRO",2019,"NÃO","Essa pendência de acordo com a preventiva realizada em 03/02/2021 OS Nº 6036239 já foi contornada."]
["0000315","2019-02-21","PR07","Elétrica TROLE",13003,"Caixa(s) do painel de controle",6006938,null,null,"Faltam Terminais",null,"2021-02-03",null,null,"FEVEREIRO",2019,"NÃO","Essa pendência de acordo com a preventiva realizada em 03/02/2021 OS Nº 6036239 já foi contornada."]
["0000316","2019-02-21","PR07","Elétrica TROLE",13010,"Fiação geral e contudos",6006938,null,null,"Cabos Com Emendas",null,"2021-02-03",null,null,"FEVEREIRO",2019,"NÃO","Essa pendência de acordo com a preventiva realizada em 03/02/2021 OS Nº 6036239 já foi contornada."]
["0000317","2019-02-21","PR07","Maquinário TALHA",14006,"Freio da talha",6006938,null,null,"Disco, Tambor, Porca de Ajuste e Pastilhas Gastas",null,"2021-02-03",null,null,"FEVEREIRO",2019,"NÃO","Essa pendência de acordo com a preventiva realizada em 03/02/2021 OS Nº 6036239 já foi contornada."]
["0000318","2019-02-21","PR07","Maquinário TALHA",14008,"Freio de acionamento mecânico - Inspeção interna",6006938,null,null,"Conjunto de Freio Ruim",null,"2021-02-03",null,null,"FEVEREIRO",2019,"NÃO","Essa pendência de acordo com a preventiva realizada em 03/02/2021 OS Nº 6036239 já foi contornada."]
["0000319","2019-02-21","PR07","Maquinário TALHA",14010,"Caixa de engrenagens - Inspeção Interna",6006938,null,null,"Há necessidade de agendar uma inspeção para avaliação interna",null,null,null,null,"FEVEREIRO",2019,"SIM"]
["0000320","2019-02-21","PR08","Maquinário TALHA",14011,"Acoplamento(s)",6006938,null,null,"Acoplamento Com Folga",null,"2020-09-30",null,null,"FEVEREIRO",2019,"NÃO","Essa pendência de acordo com a preventiva realizada em 30/09/2020 OS Nº 6011116 já foi contornada."]
["0000321","2019-02-21","PR07","Maquinário TALHA",14013,"Polia(s) superior(es)",6006938,null,null,"Polia Superior Gasta",null,"2021-02-03",null,null,"FEVEREIRO",2019,"NÃO","Essa pendência de acordo com a preventiva realizada em 03/02/2021 OS Nº 6036239 já foi contornada."]
["0000322","2019-02-21","PR07","Maquinário TALHA",14015,"Guia do cabo de aço",6006938,null,null,"Sem Guia de Cabo",null,"2021-02-03",null,null,"FEVEREIRO",2019,{"$f":"IF(B328=\"\",\"\",IF(AND(L328=\"\",N328=\"\"),\"SIM\",IF(M328<>\"\",\"SIM\",\"NÃO\")))","v":"NÃO"},"Essa pendência de acordo com a preventiva realizada em 03/02/2021 OS Nº 6036239 já foi contornada."]
["0000323","2019-02-21","PR07","Maquinário TALHA",14016,"Cabo de carga nº 1, conforme NBR4309",6006938,null,null,"Cabos Com Várias Ondulações Grandes (Cabo de Aço 15mm Ruim 7 x 41 42 Metros)",null,"2021-02-03",null,null,"FEVEREIRO",2019,"NÃO","Essa pendência de acordo com a preventiva realizada em 03/02/2021 OS Nº 6036239 já foi contornada."]
["0000324","2019-02-21","PR07","Maquinário TALHA",14018,"Conjunto do moitão inferior",6006938,null,null,"Polias Inferiores Gastas",null,"2021-02-03",null,null,"FEVEREIRO",2019,"NÃO","Essa pendência de acordo com a preventiva realizada em 03/02/2021 OS Nº 6036239 já foi contornada."]
["0000325","2019-02-21","PR07","Maquinário TALHA",14019,"Conjunto do moitão inferior - inspeção interna",6006938,null,null,"Conjunto Ruim",null,"2021-02-03",null,null,"FEVEREIRO",2019,"NÃO","Essa pendência de acordo com a preventiva realizada em 03/02/2021 OS Nº 6036239 já foi contornada."]
["0000326","2019-02-21","PR07","Elétrica TALHA",15002,"Caixa(s) do painel de controle",6006938,null,null,"Faltam Terminais",null,"2021-02-03",null,null,"FEVEREIRO",2019,"NÃO","Essa pendência de acordo com a preventiva realizada em 03/02/2021 OS Nº 6036239 já foi contornada."]
["0000327","2019-02-21","PR07","Elétrica TALHA",15006,"Interrupto(es) limite da talha",6006938,null,null,"Chave Limite Sem o Varão de Acionamento e Bloco de Contato",null,"2021-02-03",null,null,"FEVEREIRO",2019,"NÃO","Essa pendência de acordo com a preventiva realizada em 03/02/2021 OS Nº 6036239 já foi contornada."]
["0000328","2019-02-21","PR07","Elétrica TALHA",15008,"Fiação geral e contudos",6006938,null,null,"Fiação Com Emendas",null,"2021-02-03",null,null,"FEVEREIRO",2019,"NÃO","Essa pendência de acordo com a preventiva realizada em 03/02/2021 OS Nº 6036239 já foi contornada."]
["0000329","2019-02-21","PR07","Estrutura PONTE",21050,"Amortecedores ",5007017,null,null,"Amortecedores Danificados (Borracha Quebrada)",null,"2021-02-03",null,null,"FEVEREIRO",2019,"NÃO","Essa pendência de acordo com a preventiva realizada em 03/02/2021 OS Nº 6036239 já foi contornada."]
["0000330","2019-02-21","PR07","Estrutura PONTE",21130,"Outros",5007017,null,null,"Roletes Guia Gastos",null,"2021-02-03",null,null,"FEVEREIRO",2019,"NÃO","Essa pendência de acordo com a preventiva realizada em 03/02/2021 OS Nº 6036239 já foi contornada."]
["0000331","2019-02-21","PR07","Elétrica da Ponte / Pórtico",23010," Dispositivo sinalizador - luminoso",5007017,null,null,"Lâmpada (12Volts) do Dispositivo Luminoso Está Queimada",null,"2021-02-03",null,null,"FEVEREIRO",2019,"NÃO","Essa pendência de acordo com a preventiva realizada em 03/02/2021 OS Nº 6036239 já foi contornada."]
["0000332","2019-02-21","PR07","Elétrica da Ponte / Pórtico",23050,"Cortina de cabo de controle",5007017,null,null,"Perfil Amassado, Sem Ponto Fixo",null,"2021-02-03",null,null,"FEVEREIRO",2019,"NÃO","Essa pendência de acordo com a preventiva realizada em 03/02/2021 OS Nº 6036239 já foi contornada."]
["0000333","2019-02-21","PR07","Elétrica da Ponte / Pórtico",23060,"Fiação geral e condutos / sistema Feestoon",5007017,null,null,"Cabos Com Emendas",null,"2021-02-03",null,null,"FEVEREIRO",2019,"NÃO","Essa pendência de acordo com a preventiva realizada em 03/02/2021 OS Nº 6036239 já foi contornada."]
["0000334","2019-02-21","PR07","Elétrica da Ponte / Pórtico",23090,"Caixa(s) do painel de controle",5007017,null,null,"Faltam Terminais",null,"2021-02-03",null,null,"FEVEREIRO",2019,"NÃO","Essa pendência de acordo com a preventiva realizada em 03/02/2021 OS Nº 6036239 já foi contornada."]
["0000335","2019-03-29","PR02","Maquinário TALHA",14016,"Cabo de carga nº 1, conforme NBR4309",6006903,null,null,"Cabo de Aço  Com 13 Arames Rompidos. Agendar a Troca do Mesmo;Cabo de Aço 13mm EKOR10 -4/s H20 - Percurso 10m - Grupo 2m Código 705962-33",null,"2021-04-07",null,null,"MARÇO",2019,"NÃO","Essa pendência de acordo com a preventiva realizada em 07/04/2021 OS Nº 6042337 já foi contornada."]
["0000336","2019-03-29","PR03","Elétrica da Ponte / Pórtico",230180,"Interruptores de fim de curso da ponte / pórtico",5009528,null,null,"Desligados",null,"2020-08-14",null,null,"MARÇO",2019,"NÃO"]
["0000337","2019-03-28","PR04","Elétrica TROLE",13009,"Inversor",6006905,null,null,"Inversor (DIC-4-002-C-0003 - Código 719995-33) Com Falha",null,"2020-06-06",null,null,"MARÇO",2019,"NÃO","Essa pendência de acordo com a preventiva realizada em 06/06/2020 OS Nº 6022232 já foi contornada."]
["0000338","2019-03-28","PR04","Elétrica da Ponte / Pórtico",23030,"Chave Seccionadora geral da ponte",5009527,null,null,"Falta Manopla Para Acionar",null,"2020-06-06",null,null,"MARÇO",2019,"NÃO","Essa pendência de acordo com a preventiva realizada em 06/06/2020 OS Nº 6022232 já foi contornada."]
["0000339","2019-03-28","PR04","Elétrica da Ponte / Pórtico",23090,"Caixa(s) do painel de controle",1010559,null,null,"Placa da Ponte Em curto na Saída dos Freios da Translação (Código 719485-33)",null,"2020-06-06",null,null,"MARÇO",2019,"NÃO","Essa pendência de acordo com a preventiva realizada em 06/06/2020 OS Nº 6022232 já foi contornada."]
["0000340","2019-03-29","PR05","Maquinário TALHA",14024,"Outros",6006909,null,null,"Ventoinha com trinca na chaveta de conexão com o motor de elevação podendo ocasionar aquecimento com o desligamento intermitente Motor Elevação ZBR132",null,"2021-04-05",null,null,"MARÇO",2019,"NÃO","Essa pendência de acordo com a preventiva realizada em 05/04/2021 OS Nº 6042334 já foi contornada."]
["0000341","2019-04-15","PR04","Elétrica da Ponte / Pórtico",230240,"Outros",1005634,null,null,"Circuito Integrado da Placa da Ponte Não Está Abrindo os Freios dos Motores de Translação Devido Curto em Algum Componente da Placa",null,"2020-06-06",null,null,"ABRIL",2019,"NÃO","Essa pendência de acordo com a preventiva realizada em 06/06/2020 OS Nº 6022232 já foi contornada."]
["0000342","2019-07-31","PR03","Elétrica TALHA",15001,"Motor Talha",6021914,null,null,"Motor da Talha Com ventoinha Danificada, Necessário Outra Com Urgência - Motor ZBR 132 (Eixo Com 22mm)",null,"2020-08-14",null,null,"JULHO",2019,"NÃO"]
["0000343","2019-07-31","PR03","Elétrica da Ponte / Pórtico",23030,"Chave Seccionadora geral da ponte",5009513,null,null,"Chave Seccionadora geral da ponte (Cod. 89579744) Com Manobra Quebrada",null,"2021-01-21",null,null,"JULHO",2019,"NÃO","Essa pendência de acordo com a preventiva realizada em 21/01/2021 OS Nº 6036089 já foi contornada."]
["0000344","2019-07-30","PR06","Elétrica TALHA",15023,"Outros",6021913,null,null,"Necessário Trocar Relê Extraível da Placa H55 Responsável Pela Direção e Acionamento da Elevação 4 Relês de 5V (47928233)",null,"2021-04-06",null,null,"JULHO",2019,"NÃO","Essa pendência de acordo com a preventiva realizada em 06/04/2021 OS Nº 6042335 já foi contornada."]
["0000345","2019-09-02","PR01","Maquinário TROLE",12004,"Freio",6007390,null,null,"Motor Sem Bobina e Disco de Freio. OBS: O Cliente Já Tem os Itens Acima, Falta Somente a Placa de Comando Básica da Talha",null,"2021-04-06",null,null,"SETEMBRO",2019,"NÃO","Essa pendência de acordo com a preventiva realizada em 06/04/2021 OS Nº 6042336 já foi contornada."]
["0000346","2019-09-02","PR01","Elétrica TROLE",13013,"Outros",6007390,null,null,"Placa de Comando da Talha Com Circuito Freio Ruim",null,"2021-04-06",null,null,"SETEMBRO",2019,"NÃO","Essa pendência de acordo com a preventiva realizada em 06/04/2021 OS Nº 6042336 já foi contornada."]
["0000347","2019-09-02","PR01","Elétrica TALHA",15023,"Outros",6007390,null,null,"Tampa Caixa Comando da Talha Ruim",null,"2020-08-13",null,null,"SETEMBRO",2019,"NÃO"]
["0000348","2019-09-03","PR02","Maquinário TALHA",14015,"Guia do cabo de aço",6007391,null,null,"Conjunto Guia de Cabo DR10 Está Com Folga",null,"2021-04-07",null,null,"SETEMBRO",2019,"NÃO","Essa pendência de acordo com a preventiva realizada em 07/04/2021 OS Nº 6042337 já foi contornada."]
["0000349","2019-09-03","PR02","Maquinário TALHA",14016,"Cabo de carga nº 1, conforme NBR4309",6007391,null,null,"Cabo de Aço DR10 Possui Arames Rompidos",null,"2020-05-07",null,null,"SETEMBRO",2019,"NÃO"]
["0000350","2019-09-04","PR06","Elétrica TALHA",15023,"Outros","REVISÃO",null,null,"Possui Relés de 5V Danificados, Estão Com os Contatos Carbonizados Podendo Podendo Haver Falhas nos Movimentos de Subida e Descida",null,"2021-04-06",null,null,"SETEMBRO",2019,"NÃO","Essa pendência de acordo com a preventiva realizada em 06/04/2021 OS Nº 6042335 já foi contornada."]
["0000351","2019-10-02","PR04","Elétrica TROLE",13009,"Inversor",6021957,null,null,"Inversor do Trole Não Liga (Com Falha)",null,"2020-06-06",null,null,"OUTUBRO",2019,"NÃO","Essa pendência de acordo com a preventiva realizada em 06/06/2020 OS Nº 6022232 já foi contornada."]
["0000352","2019-10-02","PR04","Elétrica da Ponte / Pórtico",23090,"Caixa(s) do painel de controle",5009576,null,null,"Placa da Ponte (Cód. 26094384) Em Curto na Saída dos Freios do Motor da Translação da Ponte Rolante",null,"2020-06-06",null,null,"OUTUBRO",2019,"NÃO","Essa pendência de acordo com a preventiva realizada em 06/06/2020 OS Nº 6022232 já foi contornada."]
["0000353","2019-10-03","PR05","Elétrica TALHA",15023,"Outros",6021958,null,null,"Ventoinha do Motor da Talha Com Chaveta Trincada (cód. 238715-33)",null,"2021-04-05",null,null,"OUTUBRO",2019,"NÃO","Essa pendência de acordo com a preventiva realizada em 05/04/2021 OS Nº 6042334 já foi contornada."]
["0000354","2019-11-27","PR04","Elétrica da Ponte / Pórtico",230240,"Outros","--------------",null,null,"Placa de Comando da Ponte (Foi Substituida Porém Após Funcionamento a Mesma Não Funcionou Corretamente e Necessita Ser Substituída)",null,"2020-06-06",null,null,"NOVEMBRO",2019,"NÃO","Essa pendência de acordo com a preventiva realizada em 06/06/2020 OS Nº 6022232 já foi contornada."]
["0000355","2019-11-26","PR07","Elétrica TROLE",13003,"Caixa(s) do painel de controle",6024316,null,null,"Adequar Conforme NR10",null,"2021-02-03",null,null,"NOVEMBRO",2019,"NÃO","Essa pendência de acordo com a preventiva realizada em 03/02/2021 OS Nº 6036239 já foi contornada."]
["0000356","2019-11-26","PR07","Elétrica TROLE",13010,"Fiação geral e condutos / sistema Feestoon",6024316,null,null,"Cabos Com Emendas (Cabo Ckato 12 x 2,3mm - 35 metros)",null,"2021-02-03",null,null,"NOVEMBRO",2019,"NÃO","Essa pendência de acordo com a preventiva realizada em 03/02/2021 OS Nº 6036239 já foi contornada."]
["0000357","2019-11-26","PR07","Maquinário TALHA",14018,"Conjunto do moitão inferior",6024316,null,null,"Tampas Proteção Polias Ruim",null,"2021-02-03",null,null,"NOVEMBRO",2019,"NÃO","Essa pendência de acordo com a preventiva realizada em 03/02/2021 OS Nº 6036239 já foi contornada."]
["0000358","2019-11-26","PR07","Elétrica TALHA",15002,"Caixa(s) do painel de controle",6024316,null,null,"Adequar Conforme NR10",null,"2021-02-03",null,null,"NOVEMBRO",2019,"NÃO","Essa pendência de acordo com a preventiva realizada em 03/02/2021 OS Nº 6036239 já foi contornada."]
["0000359","2019-11-26","PR07","Elétrica TALHA",15008,"Fiação geral e condutos / sistema Feestoon",6024316,null,null,"Cabos Com Emendas",null,"2021-02-03",null,null,"NOVEMBRO",2019,"NÃO","Essa pendência de acordo com a preventiva realizada em 03/02/2021 OS Nº 6036239 já foi contornada."]
["0000360","2019-11-26","PR07","Estrutura PONTE",21050,"Amortecedores ",5024911,null,null,"Amortecedores DP2 100 Danificados (Borrachas Ruim)",null,"2021-02-03",null,null,"NOVEMBRO",2019,"NÃO","Essa pendência de acordo com a preventiva realizada em 03/02/2021 OS Nº 6036239 já foi contornada."]
["0000361","2019-11-26","PR08","Elétrica da Ponte / Pórtico",23010," Dispositivo sinalizador - luminoso",5024911,null,null,"Sinalizador Luminoso Encontra-se Sem Lâmpada de 12V",null,"2020-09-30",null,null,"NOVEMBRO",2019,"NÃO","Essa pendência de acordo com a preventiva realizada em 30/09/2020 OS Nº 6011116 já foi contornada."]
["0000362","2019-11-26","PR07","Elétrica da Ponte / Pórtico",23050,"Cortina de cabo de controle",5024911,null,null,"Perfil Amassado e Sem Ponto Fixo (Recomendado Modernizar)",null,"2021-02-03",null,null,"NOVEMBRO",2019,"NÃO","Essa pendência de acordo com a preventiva realizada em 03/02/2021 OS Nº 6036239 já foi contornada."]
["0000363","2019-11-26","PR07","Elétrica da Ponte / Pórtico",23060,"Fiação geral e condutos / sistema Feestoon",5024911,null,null,"Cabos Com Emendas",null,"2021-02-03",null,null,"NOVEMBRO",2019,"NÃO","Essa pendência de acordo com a preventiva realizada em 03/02/2021 OS Nº 6036239 já foi contornada."]
["0000364","2019-11-26","PR07","Elétrica da Ponte / Pórtico",23080,"Motor de rotação",5024911,null,null,"Motor de Translação da Ponte Sem Placa de Identificação",null,"2021-02-03",null,null,"NOVEMBRO",2019,"NÃO","Essa pendência de acordo com a preventiva realizada em 03/02/2021 OS Nº 6036239 já foi contornada."]
["0000365","2019-11-26","PR07","Elétrica da Ponte / Pórtico",23090,"Caixa(s) do painel de controle",5024911,null,null,"Adequar Conforme NR10",null,"2021-02-03",null,null,"NOVEMBRO",2019,"NÃO","Essa pendência de acordo com a preventiva realizada em 03/02/2021 OS Nº 6036239 já foi contornada."]
["0000366","2020-02-19","PR03","Estrutura TROLE",11050,"Outros",6016823,null,null,"Roletes do Trole (Cód: 70597633)",null,"2020-08-14",null,null,"FEVEREIRO",2020,"NÃO"]
["0000367","2020-02-20","PR03","Maquinário TALHA",14016,"Cabo de carga nº 1, conforme NBR4309",6016823,null,null,"Cabo de Aço Danificado (Cód. 70596233)",null,"2020-05-08",null,null,"FEVEREIRO",2020,"NÃO"]
["0000368","2020-02-20","PR03","Maquinário TALHA",14012,"Lubrificação (Cabo de Aço, Corrente, Polias..)",6016823,null,null,"Pouca Graxa",null,null,null,null,"FEVEREIRO",2020,"SIM"]
["0000369","2020-02-20","PR03","Elétrica TALHA",15023,"Outros",6016823,null,null,"Motor Elevação Sem Ventoinha (Cód: 23871533)",null,"2020-08-14",null,null,"FEVEREIRO",2020,"NÃO"]
["0000370","2020-02-20","PR03","Maquinário da Ponte / Pórtico",22070,"Rodas",5009631,null,null,"Bloco de Rodas Gasta",null,null,null,null,"FEVEREIRO",2020,"SIM"]
["0000371","2020-02-20","PR03","Maquinário da Ponte / Pórtico",22090,"Rolamentos das rodas",5009631,null,null,"Rolamentos Roda Com Folga",null,null,null,null,"FEVEREIRO",2020,"SIM"]
["0000372","2020-02-20","PR03","Maquinário da Ponte / Pórtico",22130,"Lubrificação (rolamentos / redutores)",5009631,null,null,"Falta Graxa Rolamento Roda (Rolamento Blindado)",null,null,null,null,"FEVEREIRO",2020,"SIM"]
["0000373","2020-02-20","PR03","Elétrica da Ponte / Pórtico",23030,"Chave Seccionadora geral da ponte",5009631,null,null,"Chave Geral Com Seletora Quebrada (Cód. 89579733)",null,null,null,null,"FEVEREIRO",2020,"SIM"]
["0000374","2020-02-20","PR03","Estrutura do Caminho de Rolamento",141001,"Trilhos - grampus",2015030,null,null,"Grampus Froucho",null,"2020-08-14",null,null,"FEVEREIRO",2020,"NÃO"]
["0000375","2020-02-20","PR03","Estrutura do Caminho de Rolamento",141002,"Batentes fim de curso",2015030,null,null,"Batentes Fim de Curso Não Adequados",null,null,null,null,"FEVEREIRO",2020,"SIM"]
["0000376","2020-02-20","PR03","Estrutura do Caminho de Rolamento",141003,"Trilhos - alinhamento",2015030,null,null,"Alinhamento Trilho Com Ondulações - (RECOMENDADO TOPOGRAFIA)",null,null,null,null,"FEVEREIRO",2020,"SIM"]
["0000377","2020-02-20","PR03","Estrutura do Caminho de Rolamento",141004,"Trilhos - juntas",2015030,null,null,"Juntas do Trilho Com Folga",null,"2020-08-14",null,null,"FEVEREIRO",2020,"NÃO"]
["0000378","2020-02-20","PR02","Elétrica TALHA",15023,"Outros",6016824,null,null,"Motor de Elevação Com Ventoinha Ruim (Cód: 23871533)",null,null,null,null,"FEVEREIRO",2020,"SIM"]
["0000379","2020-02-20","PR02","Maquinário TALHA",14015,"Guia do cabo de aço",6016824,null,null,"Guia do Cabo de Aço Com Folga (Cod: 70485033)",null,null,null,null,"FEVEREIRO",2020,"SIM"]
["0000380","2020-02-20","PR02","Maquinário TALHA",14016,"Cabo de carga nº 1, conforme NBR4309",6016824,null,null,"Possui 26 Arames Rompidos (Cod: 70596233)",null,"2020-05-07",null,null,"FEVEREIRO",2020,"NÃO"]
["0000381","2020-02-20","PR02","Maquinário da Ponte / Pórtico",22070,"Rodas",5009632,null,null,"Bloco de Rodas Com Rodas Gastas",null,null,null,null,"FEVEREIRO",2020,"SIM"]
["0000382","2020-02-20","PR02","Maquinário da Ponte / Pórtico",22090,"Rolamentos das rodas",5009632,null,null,"Rolamento da R oda da Ponte Com Folga",null,null,null,null,"FEVEREIRO",2020,"SIM"]
["0000383","2020-02-20","PR02","Estrutura do Caminho de Rolamento",141003,"Trilhos - alinhamento",2015031,null,null,"Com Ondulações",null,null,null,null,"FEVEREIRO",2020,"SIM"]
["0000384","2020-02-20","PR02","Estrutura do Caminho de Rolamento",141004,"Trilhos - juntas",2015031,null,null,"Com Folga",null,null,null,null,"FEVEREIRO",2020,"SIM"]
["0000385","2020-02-21","PR05","Maquinário TALHA",14015,"Guia do cabo de aço",6016825,null,null,"Guia do Cabo de Açoo Com Folga (Cod.70485033)",null,null,null,null,"FEVEREIRO",2020,"SIM"]
["0000386","2020-02-21","PR05","Elétrica TALHA",15023,"Outros",6016825,null,null,"Motor de Elevação Com a Ventoinha Quebrada (Cod: 23871533)",null,null,null,null,"FEVEREIRO",2020,{"$f":"IF(B392=\"\",\"\",IF(AND(L392=\"\",N392=\"\"),\"SIM\",IF(M392<>\"\",\"SIM\",\"NÃO\")))","v":"SIM"}]
["0000387","2020-02-21","PR05","Estrutura do Caminho de Rolamento",141003,"Trilhos - alinhamento",2015032,null,null,"Alinhamento Trilho Com Ondulação",null,null,null,null,"FEVEREIRO",2020,"SIM"]
["0000388","2020-02-21","PR05","Estrutura do Caminho de Rolamento",141004,"Trilhos - juntas",2015032,null,null,"Trilhos/Juntas Com Folga",null,null,null,null,"FEVEREIRO",2020,"SIM"]
["0000389","2020-02-28","PR01","Elétrica TROLE",13002,"Motor do trolei",6022214,null,null,"A Translação Está Com frenagem no Inversor de Frequência Devido a Um Defeito na Placa Eletrônica da Talha",null,null,null,null,"FEVEREIRO",2020,"SIM"]
["0000390","2020-02-28","PR01","Estrutura PONTE",21050,"Amortecedores ",5021767,null,null,"Trocar 2 dos Amortecedores",null,"2020-08-13",null,null,"FEVEREIRO",2020,"NÃO"]
["0000391","2020-02-28","PR01","Elétrica TROLE",13013,"Outros",6022214,null,null,"Trocar os Contatos do Contator - KO43 Scchneider LC1D40008",null,null,null,null,"FEVEREIRO",2020,"SIM"]
["0000392","2020-02-27","PR06","Estrutura PONTE",21050,"Amortecedores ",5021766,null,null,"Os 4 Batetores Estam Danificados",null,null,null,null,"FEVEREIRO",2020,"SIM"]
["0000393","2020-02-27","PR07","Maquinário da Ponte / Pórtico",22030,"Freio e hidráulica",5021765,null,null,"Necessita a Troca das Duas Lonas e as Duas Tampas de Frenagem. TROCAR FREIO DA TRANSLAÇÃO DA PONTE ESTÁ QUASE SEM FREIO",null,null,null,null,"FEVEREIRO",2020,"SIM"]
["0000394","2020-02-27","PR07","Maquinário da Ponte / Pórtico",22040,"Caixa de engrenagens e engrenagens periodicidade: 4 anos",5021765,null,null,"Vazamento da Redutora Para Dentromdo Motor Umidecendo o Freio Com Óleo",null,null,null,null,"FEVEREIRO",2020,"SIM"]
["0000395","2020-04-02","PR06","Estrutura PONTE",21050,"Amortecedores ",5024855,null,null,"Trocar Amortecedores",null,null,null,null,"ABRIL",2020,"SIM"]
["0000396","2020-04-02","PR06","Estrutura TROLE",11010,"Amortecedores do trole",6022165,null,null,"Trocar Amortecedores Trole (Vide OS6022165 Contra Lista de NC)",null,null,null,null,"ABRIL",2020,"SIM"]
["0000397","2020-04-03","PR07","Maquinário TALHA",14015,"Guia do cabo de aço",6022166,null,null,"Consta Como NOK na OS6022166 Porem Não Está Registrado na Lista de NC",null,null,null,null,"ABRIL",2020,"SIM"]
["0000398","2020-04-03","PR07","Maquinário da Ponte / Pórtico",22030,"Freio e hidráulica",5024856,null,null,"Necessita a Troca das Duas Lonas e as Duas Tampas de Frenagem",null,null,null,null,"ABRIL",2020,"SIM"]
["0000399","2020-04-03","PR07","Maquinário da Ponte / Pórtico",22040,"Caixa de engrenagens e engrenagens periodicidade: 4 anos",5024856,null,null,"Vazamento do Redutor Dentro do Motor Freio Com Óleo",null,null,null,null,"ABRIL",2020,"SIM"]
["0000400","2020-05-19","PR01","Maquinário TROLE",12004,"Freio",6022140,null,null,"Está Sem Bobina e Disco de Freio (Conjunto e Ampliação IP55B003, Conjunto de Reparo B003, Conjunto de Desgaste B003, Jogo de Molas de Freio B003, Conjunto Ima do Freio B003 180V)",null,null,null,null,"MAIO",2020,"SIM"]
["0000401","2020-05-19","PR01","Estrutura PONTE",21050,"Amortecedores ",5009027,null,null,"Trocar 2 Batedores da Ponte",null,"2020-08-13",null,null,"MAIO",2020,"NÃO"]
["0000402","2020-05-19","PR01","Elétrica TROLE",13013,"Outros",6022140,null,null,"Translação do Trole: Trocar 01 Bloco de Contato Scheider LCD40008 48V-Bobina; 02 Contatores Scheider LC1D32 48V-Bobina; 02 Blocos de Contato Auxiliares LADN20 Com 2 Contatos Aberto.",null,"2020-08-13",null,null,"MAIO",2020,"NÃO"]
["0000403","2020-05-19","PR02","Elétrica TALHA",15023,"Outros",6022141,null,null,"Blocos de Contato Auxiliares LADN20 Com 2 Contatos Abertos; Jogo de Contatos do Contator Scheinader LCD40008-48V Bobina; Contatores Scheinader NC1D32-48v-Bobina",null,null,null,null,"MAIO",2020,"SIM"]
["0000404","2020-08-13","PR01","Maquinário TROLE",12004,"Freio",6021366,null,null,"Motor Sem Bobina e Disco de Freio. OBS: O Cliente Já Possui a Bobina e Disco do Freio, Falta Somente Placa de Comando Básica da Talha",null,null,null,null,"AGOSTO",2020,"SIM"]
["0000405","2020-08-13","PR01","Elétrica TROLE",13004,"Operação de controle",6021366,null,null,"Placa de Comando Com Circuito Freio Ruim Cód:.71946233",null,null,null,null,"AGOSTO",2020,"SIM"]
["0000406","2020-08-14","PR03","Elétrica da Ponte / Pórtico",23030,"Chave Seccionadora geral da ponte",5023136,null,null,"Possui Manopla Quebrada - Seccionador NTL 63/3V1245 690V 63A 3 POL Cód.: 89579733",null,null,null,null,"AGOSTO",2020,"SIM"]
["0000407","2020-08-14","PR03","Estrutura do Caminho de Rolamento",141002,"Batentes fim de curso",2015036,null,null,"Batente Inadequado",null,null,null,null,"AGOSTO",2020,"SIM"]
["0000408","2020-08-14","PR03","Estrutura PONTE",21130,"Outros",5023136,null,null,"Rodas da Ponte Possui Janela de Desgastes Quase Rompida, RECOMENDO ao Cliente Que Providencie a Compra de Novos Blocos Para Back-up Conforme Orçamento Anterior.",null,null,null,null,"AGOSTO",2020,"SIM"]
["0000409","2020-09-02","PR01","Maquinário TROLE",12004,"Freio",6022003,null,null,"Não Há Bobina de Freio, Defeito na Placa Eletrônica, Frenagem no Inversor de Frequencia",null,null,null,null,"SETEMBRO",2020,"SIM"]
["0000410","2020-09-02","PR01","Elétrica da Ponte / Pórtico",23080,"Motor de rotação",5009049,null,null,"Trocar as Lonas do Freio - Motor ZBF90B8/2B020",null,null,null,null,"SETEMBRO",2020,"SIM"]
["0000411","2020-08-28","PR05","Estrutura do Caminho de Rolamento",141003,"Trilhos - alinhamento",2012877,null,null,"Duas das Rodas das Pontes Estão se Desgatando Devido ao Caminho de Rolamento Provavelmente Desalinhado Recomendado Uma Análise",null,null,null,null,"AGOSTO",2020,"SIM"]
["0000412","2020-08-31","PR06","Estrutura do Caminho de Rolamento",141003,"Trilhos - alinhamento",2012876,null,null,"----------------",null,null,null,null,"AGOSTO",2020,"SIM"]
["0000413","2020-08-31","PR07","Elétrica TROLE",13010,"Fiação geral e condutos / sistema Feestoon",6022074,null,null,"Recomenda-se Uma Readequação",null,null,null,null,"AGOSTO",2020,"SIM"]
["0000414","2020-08-31","PR07","Elétrica TROLE",13012,"Interruptor de fim de curso do trole",6022074,null,null,"--------------------",null,null,null,null,"AGOSTO",2020,"SIM"]
["0000415","2020-08-31","PR07","Elétrica TALHA",15008,"Fiação geral e condutos / sistema Feestoon",6022074,null,null,"----------------",null,null,null,null,"AGOSTO",2020,"SIM"]
["0000416","2020-08-31","PR07","Estrutura do Caminho de Rolamento",141003,"Trilhos - alinhamento",2012878,null,null,"---------------",null,null,null,null,"AGOSTO",2020,"SIM"]
["0000417","2020-08-31","PR07","Maquinário da Ponte / Pórtico",22030,"Freio e hidráulica",5009046,null,null,"Ponte Rolante Sem Freio na Translação Devido a Um Vazamento de Óleo das Duas Redutoras Para Tampa e Lona de Freio",null,null,null,null,"AGOSTO",2020,"SIM"]
["0000418","2020-10-01","PR05","Elétrica da Ponte / Pórtico",23010," Dispositivo sinalizador - luminoso",5012635,null,null,"Item Não Funciona",null,null,null,null,"OUTUBRO",2020,"SIM"]
["0000419","2020-10-01","PR05","Elétrica da Ponte / Pórtico",23020,"Dispositivo sinalizador - Auditivo",5012635,null,null,"Item Não Funciona",null,null,null,null,"OUTUBRO",2020,"SIM"]
["0000420","2021-01-20","PR01","Maquinário TROLE",12004,"Freio",6036090,null,null,"Motor Sem Bobina do Disco do Freio, o Cliente Já Possui o Freio e a Bobina e Disco do Freio Falta Somente Placa de Comando Básica ",null,null,null,null,"JANEIRO",2021,"SIM"]
["0000421","2021-01-20","PR01","Elétrica TROLE",13004,"Operação de controle",6036090,null,null,"Placa de Comando",null,null,null,null,"JANEIRO",2021,"SIM"]
["0000422","2021-01-20","PR01","Maquinário TALHA",14016,"Cabo de carga nº 1, conforme NBR4309",6036090,null,null,"Cabo de Aço Com Vários Fios Rompidos",null,null,null,null,"JANEIRO",2021,"SIM"]
["0000423","2021-01-20","PR01","Elétrica TALHA",15023,"Outros",6036090,null,null,"Contator Duplo Baixa Velocidade",null,null,null,null,"JANEIRO",2021,"SIM"]
["0000424","2021-01-21","PR03","Estrutura do Caminho de Rolamento",141002,"Batentes fim de curso",2010663,null,null,"Batente Inadequado",null,null,null,null,"JANEIRO",2021,"SIM"]
["0000425","2021-02-01","PR05","Estrutura do Caminho de Rolamento",141003,"Trilhos - alinhamento",2012888,null,null,"Trlhos",null,null,null,null,"FEVEREIRO",2021,"SIM"]
["0000426","2021-02-02","PR06","Estrutura do Caminho de Rolamento",141003,"Trilhos - alinhamento",2012890,null,null,null,null,null,null,null,"FEVEREIRO",2021,"SIM"]
["0000427","2021-02-03","PR07","Maquinário da Ponte / Pórtico",22030,"Freio e hidráulica",5030357,null,null,"O Motor da Ponte do Lado Direito Está Sem Freio Devido a Um Vazamento de Óleo no Retentor Central Para Dentro do Motor Molhando a Lona de Freio",null,null,null,null,"FEVEREIRO",2021,"SIM"]
["0000428","2021-04-06","PR01","Maquinário TROLE",12004,"Freio",6042336,null,null,"Sem Disco e Bobina de Freio",null,null,null,null,"ABRIL",2021,"SIM"]
["0000429","2021-04-06","PR01","Maquinário TALHA",14016,"Cabo de carga nº 1, conforme NBR4309",6042336,null,null,"Cabo de Aço Está Avariado Necessita de Troca",null,null,null,null,"ABRIL",2021,"SIM"]
["0000430","2021-04-07","PR02","Maquinário da Ponte / Pórtico",22030,"Freio e hidráulica",5018617,null,null,"Necessita Troca dos Discos de Freio da Ponte Rolante (ZBF80A8/2 B020) COD:26097533",null,null,null,null,"ABRIL",2021,"SIM"]
["0000431","2021-04-05","PR05","Maquinário TALHA",14015,"Guia do cabo de aço",6042334,null,null,"Guia de Cabo de Aço",null,null,null,null,"ABRIL",2021,"SIM"]
["0000432","2021-04-05","PR05","Maquinário da Ponte / Pórtico",22070,"Rodas",5018616,null,null,"Uma das Rodas das Ponte Está no Limite, Terá Que Ser Trocada em Breve. As Abas Estão Muito Finas, Mas Ainda Não Abriu a Janela",null,null,null,null,"ABRIL",2021,"SIM"]
["0000433","2021-04-06","PR06","Elétrica TALHA",15012,"Célula(s) de carga",6042335,null,null,"Célula de Carga Inoperante (Opção do Cliente)",null,null,null,null,"ABRIL",2021,"SIM"]
["0000434","2021-04-06","PR06","Maquinário da Ponte / Pórtico",22030,"Freio e hidráulica",5018618,null,null,"Disco Com Desgaste",null,null,null,null,"ABRIL",2021,"SIM"]
["0000435","2021-08-18","PR01","Maquinário TROLE",12004,"Freio",6036150,null,null,"Motor Sem Bobina e Disco de Freio. OBS: O Cliente Já Possui o Freio e Bobina, Falta Somente a Placa de Comando Básica da Talha",null,null,null,null,"AGOSTO",2021,{"$f":"IF(B441=\"\",\"\",IF(AND(L441=\"\",N441=\"\"),\"SIM\",IF(M441<>\"\",\"SIM\",\"NÃO\")))","v":"SIM"}]
["0000436","2021-08-18","PR01","Elétrica TROLE",13004,"Operação de controle",6036150,null,null,"Placa de Comando do Trole Ruim",null,null,null,null,"AGOSTO",2021,"SIM"]
["0000437","2021-08-18","PR01","Maquinário TALHA",14016,"Cabo de carga nº 1, conforme NBR4309",6036150,null,null,"Cabo de Aço Com Vários Arames Rompidos",null,null,null,null,"AGOSTO",2021,"SIM"]
["0000438","2021-08-18","PR01","Maquinário TALHA",14023,"Identificação de capacidade",6036150,null,null,"Falta Adesivo no Gancho",null,null,null,null,"AGOSTO",2021,"SIM"]
["0000439","2021-08-18","PR01","Elétrica TALHA",15023,"Outros",6036150,null,null,"Motor de Elevação Sem Ventoinha",null,null,null,null,"AGOSTO",2021,"SIM"]
["0000440","2021-08-18","PR01","Estrutura PONTE",21050,"Amortecedores ",5012693,null,null,"Dois Amortecedores Ruins",null,null,null,null,"AGOSTO",2021,"SIM"]
["0000441","2021-08-18","PR01","Maquinário da Ponte / Pórtico",22030,"Freio e hidráulica",5012693,null,null,"Disco do Freio Gasto",null,null,null,null,"AGOSTO",2021,"SIM"]
["0000442","2021-08-18","PR01","Maquinário da Ponte / Pórtico",22070,"Rodas",5012693,null,null,"Dois Disco da Roda Ruim",null,null,null,null,"AGOSTO",2021,"SIM"]
["0000443","2021-08-20","PR02","Elétrica TROLE",13013,"Outros",6036127,null,null,"Roletes Gastos",null,null,null,null,"AGOSTO",2021,{"$f":"IF(B449=\"\",\"\",IF(AND(L449=\"\",N449=\"\"),\"SIM\",IF(M449<>\"\",\"SIM\",\"NÃO\")))","v":"SIM"}]
["0000444","2021-08-20","PR02","Maquinário TALHA",14016,"Cabo de carga nº 1, conforme NBR4309",6036127,null,null,"Possui Vários Arames Rompidos",null,null,null,null,"AGOSTO",2021,"SIM"]
["0000445","2021-08-20","PR02","Elétrica TALHA",15023,"Outros",6036127,null,null,"Contator de Elevação Possui Contatos Carbonizados e Gastos",null,null,null,null,"AGOSTO",2021,"SIM"]
["0000446","2021-08-20","PR02","Maquinário da Ponte / Pórtico",22030,"Freio e hidráulica",5024922,null,null,"Feito Ajuste no Freio e o Mesmo se Encontra Gasto",null,null,null,null,"AGOSTO",2021,"SIM"]
["0000447","2021-08-20","PR02","Maquinário da Ponte / Pórtico",22070,"Rodas",5024922,null,null,"Bloco de Rodas Gasto",null,null,null,null,"AGOSTO",2021,"SIM"]
["0000448","2021-08-20","PR02","Elétrica da Ponte / Pórtico",230200,"Receptor / Transmissor do rádio",5024922,null,null,"Rádio Controle SeyConel Não Possui Símbolos nos Botões (Teclas Sem Simbolos)",null,null,null,null,"AGOSTO",2021,"SIM"]
["0000449","2021-08-23","PR03","Elétrica TALHA",15023,"Outros",6036128,null,null,"Contator Com Contatos Gastos",null,null,null,null,"AGOSTO",2021,{"$f":"IF(B455=\"\",\"\",IF(AND(L455=\"\",N455=\"\"),\"SIM\",IF(M455<>\"\",\"SIM\",\"NÃO\")))","v":"SIM"}]
["0000450","2021-08-23","PR03","Maquinário da Ponte / Pórtico",22030,"Freio e hidráulica",5012696,null,null,"Freio Ajustado e o Mesmo se Encontra Com Disco Gasto",null,null,null,null,"AGOSTO",2021,"SIM"]
["0000451","2021-08-23","PR03","Maquinário da Ponte / Pórtico",22070,"Rodas",5012696,null,null,"Bloco de Rodas Gasto",null,null,null,null,"AGOSTO",2021,"SIM"]
["0000452","2021-08-23","PR03","Estrutura do Caminho de Rolamento",141002,"Batentes fim de curso",2015051,null,null,"Batente Final de Curso do Caminho de Rolamento Está Inadequado",null,null,null,null,"AGOSTO",2021,"SIM"]
["0000453","2021-08-19","PR05","Elétrica TROLE",13013,"Outros",6036126,null,null,"Rolete do Trole Com Folga",null,null,null,null,"AGOSTO",2021,"SIM"]
["0000454","2021-08-19","PR05","Maquinário TALHA",14015,"Guia do cabo de aço",6036126,null,null,"Talha Sem o Guia de Cabo",null,null,null,null,"AGOSTO",2021,"SIM"]
["0000455","2021-08-19","PR05","Maquinário da Ponte / Pórtico",22030,"Freio e hidráulica",5012694,null,null,"Disco de Freio Gasto",null,null,null,null,"AGOSTO",2021,"SIM"]
["0000456","2021-08-19","PR05","Maquinário da Ponte / Pórtico",22070,"Rodas",5012694,null,null,"Bloco de Roda Ruim",null,null,null,null,"AGOSTO",2021,"SIM"]
["0000457","2021-08-24","PR06","Elétrica TROLE",13013,"Outros",6036129,null,null,"Relé Extraível Ruim",null,null,null,null,"AGOSTO",2021,"SIM"]
["0000458","2021-08-24","PR06","Elétrica TALHA",15023,"Outros",6036129,null,null,"Contator Com Contatos Carbonizados e Gastos",null,null,null,null,"AGOSTO",2021,"SIM"]
["0000459","2021-08-24","PR06","Estrutura PONTE",21130,"Outros",5012695,null,null,"Batentes da Ponte Danificados",null,null,null,null,"AGOSTO",2021,"SIM"]
["0000460","2021-08-25","PR07","Maquinário TROLE",12005,"Caixa de engrenagens e engrenagens",6036130,null,null,"Pinhão do Motor do Trole Gasto",null,null,null,null,"AGOSTO",2021,"SIM"]
["0000461","2021-08-25","PR07","Maquinário TROLE",12009,"Engrenagens das rodas",6036130,null,null,"Engrenagens das Rodas Gastas",null,null,null,null,"AGOSTO",2021,"SIM"]
["0000462","2021-08-25","PR07","Elétrica TROLE",13010,"Fiação geral e condutos / sistema Feestoon",6036130,null,null,"Cabos Com Emendas",null,null,null,null,"AGOSTO",2021,"SIM"]
["0000463","2021-08-25","PR07","Maquinário TALHA",14009,"Caixa de engrenagens - Inspeção Sonora/Visual Externa",6036130,null,null,"Com Ruido Acima do Considerado",null,null,null,null,"AGOSTO",2021,"SIM"]
["0000464","2021-08-25","PR07","Maquinário TALHA",14015,"Guia do cabo de aço",6036130,null,null,"Falta Anel Tensionador",null,null,null,null,"AGOSTO",2021,"SIM"]
["0000465","2021-08-25","PR07","Maquinário TALHA",14016,"Cabo de carga nº 1, conforme NBR4309",6036130,null,null,"Alma do Cabo Exposta",null,null,null,null,"AGOSTO",2021,"SIM"]
["0000466","2021-08-25","PR07","Maquinário TALHA",14018,"Conjunto do moitão inferior",6036130,null,null,"Tampas de Proteção Polia Ruim",null,null,null,null,"AGOSTO",2021,"SIM"]
["0000467","2021-08-25","PR07","Elétrica TALHA",15006,"Interrupto(es) limite da talha",6036130,null,null,"Limite de Descida Quebrado",null,null,null,null,"AGOSTO",2021,"SIM"]
["0000468","2021-08-25","PR07","Elétrica TALHA",15008,"Fiação geral e condutos / sistema Feestoon",6036130,null,null,"Sistema Feestoon Possui Cabos Com Emendas",null,null,null,null,"AGOSTO",2021,"SIM"]
["0000469","2021-08-25","PR07","Estrutura PONTE",21040,"Proteções e tampas",5012697,null,null,"Motores de Translação Sem Tampa da Caixa de Ligação",null,null,null,null,"AGOSTO",2021,"SIM"]
["0000470","2021-08-25","PR07","Estrutura PONTE",21050,"Amortecedores ",5012697,null,null,"Amortecedor Faltando e Ruins",null,null,null,null,"AGOSTO",2021,"SIM"]
["0000471","2021-08-25","PR07","Estrutura PONTE",21130,"Outros",5012697,null,null,"Mancal do Motor da Ponte Rachado",null,null,null,null,"AGOSTO",2021,"SIM"]
["0000472","2021-08-25","PR07","Maquinário da Ponte / Pórtico",22030,"Freio e hidráulica",5012697,null,null,"Disco de Freio Empreguinado Com Óleo",null,null,null,null,"AGOSTO",2021,"SIM"]
["0000473","2021-08-25","PR07","Maquinário da Ponte / Pórtico",22040,"Caixa de engrenagens e engrenagens periodicidade: 4 anos",5012697,null,null,"Possui Vazamento de Óleo Para Dentro do Motor",null,null,null,null,"AGOSTO",2021,"SIM"]
["0000474","2021-08-25","PR07","Maquinário da Ponte / Pórtico",22130,"Lubrificação (rolamentos / redutores)",5012697,null,null,"Nível de Óleo Redutor Baixo, Pouco Óleo Devido Vazamento",null,null,null,null,"AGOSTO",2021,"SIM"]
["0000475","2021-08-25","PR07","Elétrica da Ponte / Pórtico",23010," Dispositivo sinalizador - luminoso",5012697,null,null,"Lâmpada Queimada",null,null,null,null,"AGOSTO",2021,"SIM"]
["0000476","2021-08-25","PR07","Elétrica da Ponte / Pórtico",23040,"Cortina de cabo da botoeira",5012697,null,null,"Poissui Trilhos Amassados",null,null,null,null,"AGOSTO",2021,{"$f":"IF(B482=\"\",\"\",IF(AND(L482=\"\",N482=\"\"),\"SIM\",IF(M482<>\"\",\"SIM\",\"NÃO\")))","v":"SIM"}]
["0000476","2021-08-25","PR07","Elétrica da Ponte / Pórtico",23060,"Fiação geral e condutos / sistema Feestoon",5012697,null,null,"Cabo do Sistema Feestoon Com Emendas",null,null,null,null,"AGOSTO",2021,"SIM"]
["0000476","2021-08-25","PR07","Elétrica da Ponte / Pórtico",230200,"Receptor / Transmissor do rádio",5012697,null,null,"Rádio Com Falha ao Ligar a Ponte",null,null,null,null,"AGOSTO",2021,"SIM"]
["0000477","2021-08-25","PR07","Maquinário TALHA",14011,"Acoplamento(s)",6036130,null,null,"Acoplamento Talha Com Ruído",null,null,null,null,"AGOSTO",2021,"SIM"]
["0000478","2021-06-25","PR08","Estrutura TROLE",11010,"Amortecedores do trole",6036131,null,null,"Sem Amortecedor do Trole",null,null,null,null,"JUNHO",2021,"SIM"]
["0000479","2021-08-25","PR08","Elétrica TROLE",13009,"Inversor",6036131,null,null,"Inversor do Trole Com Display Apagado Não Sendo Possível Alterar Parâmetros",null,null,null,null,"AGOSTO",2021,"SIM"]
["0000480","2021-08-25","PR08","Elétrica TROLE",13012,"Interruptor de fim de curso do trole",6036131,null,null,"Acionador Curto (Acionador Fim de Curso Trole Com Comando Curto)",null,null,null,null,"AGOSTO",2021,"SIM"]
["0000481","2021-06-25","PR08","Elétrica TROLE",13013,"Outros",6036131,null,null,"Rampa de Acionamento do Freio Trole Muito Alta",null,null,null,null,"JUNHO",2021,"SIM"]
["0000482","2021-08-25","PR08","Maquinário TALHA",14015,"Guia do cabo de aço",6036131,null,null,"Guia do Cabo de Aço Sem o Anel Pressionador",null,null,null,null,"AGOSTO",2021,"SIM"]
["0000483","2021-08-25","PR08","Maquinário TALHA",14018,"Conjunto do moitão inferior",6036131,null,null,"Tampa de Proteção da Polia do Gancho Amassada",null,null,null,null,"AGOSTO",2021,"SIM"]
["0000484","2021-08-25","PR08","Elétrica TALHA",15006,"Interrupto(es) limite da talha",6036131,null,null,"Talha Não Possui Limite de Descida",null,null,null,null,"AGOSTO",2021,"SIM"]
["0000485","2021-08-25","PR08","Estrutura PONTE",21130,"Outros",5030451,null,null,"Redutor Lado Oposto Barramento Solto da Roda Ponte",null,null,null,null,"AGOSTO",2021,"SIM"]
["0000486","2021-08-25","PR08","Elétrica da Ponte / Pórtico",23010," Dispositivo sinalizador - luminoso",5030451,null,null,"Sem Dipositivo Sinalizador",null,null,null,null,"AGOSTO",2021,"SIM"]
["0000487","2021-08-25","PR08","Elétrica da Ponte / Pórtico",230150,"Coletores de alimentação da ponte / pórtico",5030451,null,null,"Coletor de Alimentação da Ponte Quebrado e Faltanto Um",null,null,null,null,"AGOSTO",2021,"SIM"]
["0000488","2021-08-25","PR08","Elétrica da Ponte / Pórtico",230180,"Interruptores de fim de curso da ponte / pórtico",5030451,null,null,"Acionador da Chave Fim de Curso da Ponte Muito Curto",null,null,null,null,"AGOSTO",2021,"SIM"]
["0000489","2021-08-25","PR08","Elétrica da Ponte / Pórtico",230200,"Receptor / Transmissor do rádio",5030451,null,null,"Rádio Controle Seyconel Sem Botão de Emergência",null,null,null,null,"AGOSTO",2021,"SIM"]
["0000490","2021-08-25","PR08","Estrutura do Caminho de Rolamento",141007,"Acionadores de fim de curso da ponte rolante",2010741,null,null,"Acionador  Fim de Curso Curto, Provocando Falha na Ponte",null,null,null,null,"AGOSTO",2021,"SIM"]
[491,null,null,null,null,null,null,null,null,null,null,null,null,null,null,null,{"$f":"IF(B499=\"\",\"\",IF(AND(L499=\"\",N499=\"\"),\"SIM\",IF(M499<>\"\",\"SIM\",\"NÃO\")))","v":""}]
[492,"2021-12-15","PR01","Estrutura TROLE",11020,"Limpa trilhos do trole",12,"2021-12-16","2021-12-20","y",null,null,null,null,"DEZEMBRO",2021,{"$f":"IF(B500=\"\",\"\",IF(AND(L500=\"\",N500=\"\"),\"SIM\",IF(M500<>\"\",\"SIM\",\"NÃO\")))","v":"SIM"}]

{"sheet":"CALENDÁRIO","index":2,"n_rows":130,"n_cols":38,"rows_kept":130,"cut":false,"hidden":false,"merged":[[5,34,5,36],[5,19,5,23],[4,18,4,23]]}
[]
[]
[]
[]
[null,null,null,null,null,null,null,null,null,null,null,null,null,null,null,null,null,null,null,null,null,null,null,null,null,null,null,null,null,null,null,null,null,"Módulo de Controle das Pontes Rolantes"]
[null,null,null,null,null,null,null,null,null,null,null,null,null,null,null,null,null,null,null,null,null,null,null,null,null,null,null,null,null,null,null,null,null,"Elementos","Itens a Serrem Inspecionados",null,null,"Metrologia"]
[null,null,null,null,null,null,null,null,null,null,null,null,null,null,null,null,null,null,null,null,null,null,null,null,null,null,null,null,null,null,null,null,null,"Estrutura TROLE","Estrutura TROLE",11010,"Amortecedores do trole"]
[null,null,null,null,null,null,null,null,null,null,null,null,null,null,null,null,null,null,null,null,null,null,null,null,null,null,null,null,null,null,null,null,null,"Maquinário TROLE","Estrutura TROLE",11020,"Limpa trilhos do trole"]
[null,null,null,null,null,null,null,null,null,null,null,null,null,null,null,null,null,null,null,null,null,null,null,null,null,null,null,null,null,null,null,null,null,"Elétrica TROLE","Estrutura TROLE",11030,"Estrutura geral e soldas"]
[null,null,null,null,null,null,null,null,null,null,null,null,null,null,null,null,null,null,null,null,null,null,null,null,null,null,null,null,null,null,null,null,null,"Maquinário TALHA","Estrutura TROLE",11040,"Conexões talha com trole","Ensaios Não Destrutível"]
[null,null,null,null,null,null,null,null,null,null,null,null,null,null,null,null,null,null,null,null,null,null,null,null,null,null,null,null,null,null,null,null,null,"Elétrica TALHA","Estrutura TROLE",11050,"Outros","Calibração"]
[null,null,null,null,null,null,null,null,null,null,null,null,null,null,null,null,null,null,null,null,null,null,null,null,null,null,null,null,null,null,null,null,null,"Estrutura PONTE","Maquinário TROLE",12004,"Freio"]
[null,null,null,null,null,null,null,null,null,null,null,null,null,null,null,null,null,null,null,null,null,null,null,null,null,null,null,null,null,null,null,null,null,"Maquinário da Ponte / Pórtico","Maquinário TROLE",12005,"Caixa de engrenagens e engrenagens"]
[null,null,null,null,null,null,null,null,null,null,null,null,null,null,null,null,null,null,null,null,null,null,null,null,null,null,null,null,null,null,null,null,null,"Elétrica da Ponte / Pórtico","Maquinário TROLE",12006,"Acoplamento"]
[null,null,null,null,null,null,null,null,null,null,null,null,null,null,null,null,null,null,null,null,null,null,null,null,null,null,null,null,null,null,null,null,null,"Estrutura do Caminho de Rolamento","Maquinário TROLE",12007,"Rolamento do eixo central"]
[null,null,null,null,null,null,null,null,null,null,null,null,null,null,null,null,null,null,null,null,null,null,null,null,null,null,null,null,null,null,null,null,null,"Elétrica do Caminho de Rolamento","Maquinário TROLE",12008,"Rodas"]
[null,null,null,null,null,null,null,null,null,null,null,null,null,null,null,null,null,null,null,null,null,null,null,null,null,null,null,null,null,null,null,null,null,"Geral","Maquinário TROLE",12009,"Engrenagens das rodas"]
[null,null,null,null,null,null,null,null,null,null,null,null,null,null,null,null,null,null,null,null,null,null,null,null,null,null,null,null,null,null,null,null,null,null,"Maquinário TROLE",12010,"Rolamentos das rodas"]
[null,null,null,null,null,null,null,null,null,null,null,null,null,null,null,null,null,null,null,null,null,null,null,null,null,null,null,null,null,null,null,null,null,null,"Maquinário TROLE",12011,"Unidade de motorização externo"]
[null,null,null,null,null,null,null,null,null,null,null,null,null,null,null,null,null,null,null,null,null,null,null,null,null,null,null,null,null,null,null,null,null,null,"Maquinário TROLE",12012,"Outros"]
[null,null,null,null,null,null,null,null,null,null,null,null,null,null,null,null,null,null,null,null,null,null,null,null,null,null,null,null,null,null,null,null,null,null,"Elétrica TROLE",13002,"Motor do trolei"]
[null,null,null,null,null,null,null,null,null,null,null,null,null,null,null,null,null,null,null,null,null,null,null,null,null,null,null,null,null,null,null,null,null,null,"Elétrica TROLE",13003,"Caixa(s) do painel de controle"]
[null,null,null,null,null,null,null,null,null,null,null,null,null,null,null,null,null,null,null,null,null,null,null,null,null,null,null,null,null,null,null,null,null,null,"Elétrica TROLE",13004,"Operação de controle"]
[null,null,null,null,null,null,null,null,null,null,null,null,null,null,null,null,null,null,null,null,null,null,null,null,null,null,null,null,null,null,null,null,null,null,"Elétrica TROLE",13005,"Enrolador de cabo"]
[null,null,null,null,null,null,null,null,null,null,null,null,null,null,null,null,null,null,null,null,null,null,null,null,null,null,null,null,null,null,null,null,null,null,"Elétrica TROLE",13006,"Sensor anticolisão"]
[null,null,null,null,null,null,null,null,null,null,null,null,null,null,null,null,null,null,null,null,null,null,null,null,null,null,null,null,null,null,null,null,null,null,"Elétrica TROLE",13007,"Resistores"]
[null,null,null,null,null,null,null,null,null,null,null,null,null,null,null,null,null,null,null,null,null,null,null,null,null,null,null,null,null,null,null,null,null,null,"Elétrica TROLE",13009,"Inversor"]
[null,null,null,null,null,null,null,null,null,null,null,null,null,null,null,null,null,null,null,null,null,null,null,null,null,null,null,null,null,null,null,null,null,null,"Elétrica TROLE",13010,"Fiação geral e condutos / sistema Feestoon"]
[null,null,null,null,null,null,null,null,null,null,null,null,null,null,null,null,null,null,null,null,null,null,null,null,null,null,null,null,null,null,null,null,null,null,"Elétrica TROLE",13011,"Horímetro do trole"]
[null,null,null,null,null,null,null,null,null,null,null,null,null,null,null,null,null,null,null,null,null,null,null,null,null,null,null,null,null,null,null,null,null,null,"Elétrica TROLE",13012,"Interruptor de fim de curso do trole"]
[null,null,null,null,null,null,null,null,null,null,null,null,null,null,null,null,null,null,null,null,null,null,null,null,null,null,null,null,null,null,null,null,null,null,"Elétrica TROLE",13013,"Outros"]
[null,null,null,null,null,null,null,null,null,null,null,null,null,null,null,null,null,null,null,null,null,null,null,null,null,null,null,null,null,null,null,null,null,null,"Maquinário TALHA",14003,"Corrente de carga"]
[null,null,null,null,null,null,null,null,null,null,null,null,null,null,null,null,null,null,null,null,null,null,null,null,null,null,null,null,null,null,null,null,null,null,"Maquinário TALHA",14004,"Engrenagem da corrente de carga"]
[null,null,null,null,null,null,null,null,null,null,null,null,null,null,null,null,null,null,null,null,null,null,null,null,null,null,null,null,null,null,null,null,null,null,"Maquinário TALHA",14005,"Armazenador de corrente"]
[null,null,null,null,null,null,null,null,null,null,null,null,null,null,null,null,null,null,null,null,null,null,null,null,null,null,null,null,null,null,null,null,null,null,"Maquinário TALHA",14006,"Freio da talha"]
[null,null,null,null,null,null,null,null,null,null,null,null,null,null,null,null,null,null,null,null,null,null,null,null,null,null,null,null,null,null,null,null,null,null,"Maquinário TALHA",14007,"Freio de acionamento mecânico - Teste opercional"]
[null,null,null,null,null,null,null,null,null,null,null,null,null,null,null,null,null,null,null,null,null,null,null,null,null,null,null,null,null,null,null,null,null,null,"Maquinário TALHA",14008,"Freio de acionamento mecânico - Inspeção interna"]
[null,null,null,null,null,null,null,null,null,null,null,null,null,null,null,null,null,null,null,null,null,null,null,null,null,null,null,null,null,null,null,null,null,null,"Maquinário TALHA",14009,"Caixa de engrenagens - Inspeção Sonora/Visual Externa"]
[null,null,null,null,null,null,null,null,null,null,null,null,null,null,null,null,null,null,null,null,null,null,null,null,null,null,null,null,null,null,null,null,null,null,"Maquinário TALHA",14010,"Caixa de engrenagens - Inspeção Interna"]
[null,null,null,null,null,null,null,null,null,null,null,null,null,null,null,null,null,null,null,null,null,null,null,null,null,null,null,null,null,null,null,null,null,null,"Maquinário TALHA",14011,"Acoplamento(s)"]
[null,null,null,null,null,null,null,null,null,null,null,null,null,null,null,null,null,null,null,null,null,null,null,null,null,null,null,null,null,null,null,null,null,null,"Maquinário TALHA",14012,"Lubrificação (Cabo de Aço, Corrente, Polias..)"]
[null,null,null,null,null,null,null,null,null,null,null,null,null,null,null,null,null,null,null,null,null,null,null,null,null,null,null,null,null,null,null,null,null,null,"Maquinário TALHA",14013,"Polia(s) superior(es)"]
[null,null,null,null,null,null,null,null,null,null,null,null,null,null,null,null,null,null,null,null,null,null,null,null,null,null,null,null,null,null,null,null,null,null,"Maquinário TALHA",14014,"Tambor do cabo"]
[null,null,null,null,null,null,null,null,null,null,null,null,null,null,null,null,null,null,null,null,null,null,null,null,null,null,null,null,null,null,null,null,null,null,"Maquinário TALHA",14015,"Guia do cabo de aço"]
[null,null,null,null,null,null,null,null,null,null,null,null,null,null,null,null,null,null,null,null,null,null,null,null,null,null,null,null,null,null,null,null,null,null,"Maquinário TALHA",14016,"Cabo de carga nº 1, conforme NBR4309"]
[null,null,null,null,null,null,null,null,null,null,null,null,null,null,null,null,null,null,null,null,null,null,null,null,null,null,null,null,null,null,null,null,null,null,"Maquinário TALHA",14017,"Cabo de carga nº 2, conforme NBR4309"]
[null,null,null,null,null,null,null,null,null,null,null,null,null,null,null,null,null,null,null,null,null,null,null,null,null,null,null,null,null,null,null,null,null,null,"Maquinário TALHA",14018,"Conjunto do moitão inferior"]
[null,null,null,null,null,null,null,null,null,null,null,null,null,null,null,null,null,null,null,null,null,null,null,null,null,null,null,null,null,null,null,null,null,null,"Maquinário TALHA",14019,"Conjunto do moitão inferior - inspeção interna"]
[null,null,null,null,null,null,null,null,null,null,null,null,null,null,null,null,null,null,null,null,null,null,null,null,null,null,null,null,null,null,null,null,null,null,"Maquinário TALHA",14020,"Gancho e Trava"]
[null,null,null,null,null,null,null,null,null,null,null,null,null,null,null,null,null,null,null,null,null,null,null,null,null,null,null,null,null,null,null,null,null,null,"Maquinário TALHA",14021,"Gancho Superior e Trava"]
[null,null,null,null,null,null,null,null,null,null,null,null,null,null,null,null,null,null,null,null,null,null,null,null,null,null,null,null,null,null,null,null,null,null,"Maquinário TALHA",14022,"Caixa de engrenagens da Micro-Velocidade"]
[null,null,null,null,null,null,null,null,null,null,null,null,null,null,null,null,null,null,null,null,null,null,null,null,null,null,null,null,null,null,null,null,null,null,"Maquinário TALHA",14023,"Identificação de capacidade"]
[null,null,null,null,null,null,null,null,null,null,null,null,null,null,null,null,null,null,null,null,null,null,null,null,null,null,null,null,null,null,null,null,null,null,"Maquinário TALHA",14024,"Outros"]
[null,null,null,null,null,null,null,null,null,null,null,null,null,null,null,null,null,null,null,null,null,null,null,null,null,null,null,null,null,null,null,null,null,null,"Elétrica TALHA",15001,"Motor Talha"]
[null,null,null,null,null,null,null,null,null,null,null,null,null,null,null,null,null,null,null,null,null,null,null,null,null,null,null,null,null,null,null,null,null,null,"Elétrica TALHA",15002,"Caixa(s) do painel de controle"]
[null,null,null,null,null,null,null,null,null,null,null,null,null,null,null,null,null,null,null,null,null,null,null,null,null,null,null,null,null,null,null,null,null,null,"Elétrica TALHA",15003,"Operações de controle"]
[null,null,null,null,null,null,null,null,null,null,null,null,null,null,null,null,null,null,null,null,null,null,null,null,null,null,null,null,null,null,null,null,null,null,"Elétrica TALHA",15004,"Enrolador de cabo"]
[null,null,null,null,null,null,null,null,null,null,null,null,null,null,null,null,null,null,null,null,null,null,null,null,null,null,null,null,null,null,null,null,null,null,"Elétrica TALHA",15005,"Resistores"]
[null,null,null,null,null,null,null,null,null,null,null,null,null,null,null,null,null,null,null,null,null,null,null,null,null,null,null,null,null,null,null,null,null,null,"Elétrica TALHA",15006,"Interrupto(es) limite da talha"]
[null,null,null,null,null,null,null,null,null,null,null,null,null,null,null,null,null,null,null,null,null,null,null,null,null,null,null,null,null,null,null,null,null,null,"Elétrica TALHA",15007,"Freio(s) elétricos(s) de controle de velocidade"]
[null,null,null,null,null,null,null,null,null,null,null,null,null,null,null,null,null,null,null,null,null,null,null,null,null,null,null,null,null,null,null,null,null,null,"Elétrica TALHA",15008,"Fiação geral e condutos / sistema Feestoon"]
[null,null,null,null,null,null,null,null,null,null,null,null,null,null,null,null,null,null,null,null,null,null,null,null,null,null,null,null,null,null,null,null,null,null,"Elétrica TALHA",15009,"Motor micro velocidade talha"]
[null,null,null,null,null,null,null,null,null,null,null,null,null,null,null,null,null,null,null,null,null,null,null,null,null,null,null,null,null,null,null,null,null,null,"Elétrica TALHA",15010,"Embreagem do motor de micro velocidade"]
[null,null,null,null,null,null,null,null,null,null,null,null,null,null,null,null,null,null,null,null,null,null,null,null,null,null,null,null,null,null,null,null,null,null,"Elétrica TALHA",15011,"Inversores"]
[null,null,null,null,null,null,null,null,null,null,null,null,null,null,null,null,null,null,null,null,null,null,null,null,null,null,null,null,null,null,null,null,null,null,"Elétrica TALHA",15012,"Célula(s) de carga"]
[null,null,null,null,null,null,null,null,null,null,null,null,null,null,null,null,null,null,null,null,null,null,null,null,null,null,null,null,null,null,null,null,null,null,"Elétrica TALHA",15013,"Tacômetro"]
[null,null,null,null,null,null,null,null,null,null,null,null,null,null,null,null,null,null,null,null,null,null,null,null,null,null,null,null,null,null,null,null,null,null,"Elétrica TALHA",15014,"Dispositivo de monitoramento"]
[null,null,null,null,null,null,null,null,null,null,null,null,null,null,null,null,null,null,null,null,null,null,null,null,null,null,null,null,null,null,null,null,null,null,"Elétrica TALHA",15015,"Encoder"]
[null,null,null,null,null,null,null,null,null,null,null,null,null,null,null,null,null,null,null,null,null,null,null,null,null,null,null,null,null,null,null,null,null,null,"Elétrica TALHA",15016,"Período de trabalho seguro, % decrescente (SWP)"]
[null,null,null,null,null,null,null,null,null,null,null,null,null,null,null,null,null,null,null,null,null,null,null,null,null,null,null,null,null,null,null,null,null,null,"Elétrica TALHA",15017,"Tempo de funcionamento"]
[null,null,null,null,null,null,null,null,null,null,null,null,null,null,null,null,null,null,null,null,null,null,null,null,null,null,null,null,null,null,null,null,null,null,"Elétrica TALHA",15018,"Partidas, Horímetro da talha"]
[null,null,null,null,null,null,null,null,null,null,null,null,null,null,null,null,null,null,null,null,null,null,null,null,null,null,null,null,null,null,null,null,null,null,"Elétrica TALHA",15019,"Sobrecargas"]
[null,null,null,null,null,null,null,null,null,null,null,null,null,null,null,null,null,null,null,null,null,null,null,null,null,null,null,null,null,null,null,null,null,null,"Elétrica TALHA",15021,"Botoeira"]
[null,null,null,null,null,null,null,null,null,null,null,null,null,null,null,null,null,null,null,null,null,null,null,null,null,null,null,null,null,null,null,null,null,null,"Elétrica TALHA",15023,"Outros"]
[null,null,null,null,null,null,null,null,null,null,null,null,null,null,null,null,null,null,null,null,null,null,null,null,null,null,null,null,null,null,null,null,null,null,"Estrutura PONTE",21010,"Conexões ponte/pórtico com o \"Truque\""]
[null,null,null,null,null,null,null,null,null,null,null,null,null,null,null,null,null,null,null,null,null,null,null,null,null,null,null,null,null,null,null,null,null,null,"Estrutura PONTE",21020,"Alinhamento da ponte / pórtico"]
[null,null,null,null,null,null,null,null,null,null,null,null,null,null,null,null,null,null,null,null,null,null,null,null,null,null,null,null,null,null,null,null,null,null,"Estrutura PONTE",21040,"Proteções e tampas"]
[null,null,null,null,null,null,null,null,null,null,null,null,null,null,null,null,null,null,null,null,null,null,null,null,null,null,null,null,null,null,null,null,null,null,"Estrutura PONTE",21050,"Amortecedores "]
[null,null,null,null,null,null,null,null,null,null,null,null,null,null,null,null,null,null,null,null,null,null,null,null,null,null,null,null,null,null,null,null,null,null,"Estrutura PONTE",21060,"Limpa-trilhos"]
[null,null,null,null,null,null,null,null,null,null,null,null,null,null,null,null,null,null,null,null,null,null,null,null,null,null,null,null,null,null,null,null,null,null,"Estrutura PONTE",21070,"Passarela e guarda corpo"]
[null,null,null,null,null,null,null,null,null,null,null,null,null,null,null,null,null,null,null,null,null,null,null,null,null,null,null,null,null,null,null,null,null,null,"Estrutura PONTE",21080,"Estrutura geral e soldas"]
[null,null,null,null,null,null,null,null,null,null,null,null,null,null,null,null,null,null,null,null,null,null,null,null,null,null,null,null,null,null,null,null,null,null,"Estrutura PONTE",21100,"Identificações de capacidade"]
[null,null,null,null,null,null,null,null,null,null,null,null,null,null,null,null,null,null,null,null,null,null,null,null,null,null,null,null,null,null,null,null,null,null,"Estrutura PONTE",21130,"Outros"]
[null,null,null,null,null,null,null,null,null,null,null,null,null,null,null,null,null,null,null,null,null,null,null,null,null,null,null,null,null,null,null,null,null,null,"Maquinário da Ponte / Pórtico",22030,"Freio e hidráulica"]
[null,null,null,null,null,null,null,null,null,null,null,null,null,null,null,null,null,null,null,null,null,null,null,null,null,null,null,null,null,null,null,null,null,null,"Maquinário da Ponte / Pórtico",22040,"Caixa de engrenagens e engrenagens periodicidade: 4 anos"]
[null,null,null,null,null,null,null,null,null,null,null,null,null,null,null,null,null,null,null,null,null,null,null,null,null,null,null,null,null,null,null,null,null,null,"Maquinário da Ponte / Pórtico",22050,"Acoplamentos. Periodicidade 1 ano"]
[null,null,null,null,null,null,null,null,null,null,null,null,null,null,null,null,null,null,null,null,null,null,null,null,null,null,null,null,null,null,null,null,null,null,"Maquinário da Ponte / Pórtico",22060,"Rolamento do eixo central"]
[null,null,null,null,null,null,null,null,null,null,null,null,null,null,null,null,null,null,null,null,null,null,null,null,null,null,null,null,null,null,null,null,null,null,"Maquinário da Ponte / Pórtico",22070,"Rodas"]
[null,null,null,null,null,null,null,null,null,null,null,null,null,null,null,null,null,null,null,null,null,null,null,null,null,null,null,null,null,null,null,null,null,null,"Maquinário da Ponte / Pórtico",22080,"Engrenagens das rodas"]
[null,null,null,null,null,null,null,null,null,null,null,null,null,null,null,null,null,null,null,null,null,null,null,null,null,null,null,null,null,null,null,null,null,null,"Maquinário da Ponte / Pórtico",22090,"Rolamentos das rodas"]
[null,null,null,null,null,null,null,null,null,null,null,null,null,null,null,null,null,null,null,null,null,null,null,null,null,null,null,null,null,null,null,null,null,null,"Maquinário da Ponte / Pórtico",22130,"Lubrificação (rolamentos / redutores)"]
[null,null,null,null,null,null,null,null,null,null,null,null,null,null,null,null,null,null,null,null,null,null,null,null,null,null,null,null,null,null,null,null,null,null,"Elétrica da Ponte / Pórtico",23010," Dispositivo sinalizador - luminoso"]
[null,null,null,null,null,null,null,null,null,null,null,null,null,null,null,null,null,null,null,null,null,null,null,null,null,null,null,null,null,null,null,null,null,null,"Elétrica da Ponte / Pórtico",23020,"Dispositivo sinalizador - Auditivo"]
[null,null,null,null,null,null,null,null,null,null,null,null,null,null,null,null,null,null,null,null,null,null,null,null,null,null,null,null,null,null,null,null,null,null,"Elétrica da Ponte / Pórtico",23030,"Chave Seccionadora geral da ponte"]
[null,null,null,null,null,null,null,null,null,null,null,null,null,null,null,null,null,null,null,null,null,null,null,null,null,null,null,null,null,null,null,null,null,null,"Elétrica da Ponte / Pórtico",23040,"Cortina de cabo da botoeira"]
[null,null,null,null,null,null,null,null,null,null,null,null,null,null,null,null,null,null,null,null,null,null,null,null,null,null,null,null,null,null,null,null,null,null,"Elétrica da Ponte / Pórtico",23050,"Cortina de cabo de controle"]
[null,null,null,null,null,null,null,null,null,null,null,null,null,null,null,null,null,null,null,null,null,null,null,null,null,null,null,null,null,null,null,null,null,null,"Elétrica da Ponte / Pórtico",23060,"Fiação geral e condutos / sistema Feestoon"]
[null,null,null,null,null,null,null,null,null,null,null,null,null,null,null,null,null,null,null,null,null,null,null,null,null,null,null,null,null,null,null,null,null,null,"Elétrica da Ponte / Pórtico",23080,"Motor de rotação"]
[null,null,null,null,null,null,null,null,null,null,null,null,null,null,null,null,null,null,null,null,null,null,null,null,null,null,null,null,null,null,null,null,null,null,"Elétrica da Ponte / Pórtico",23090,"Caixa(s) do painel de controle"]
[null,null,null,null,null,null,null,null,null,null,null,null,null,null,null,null,null,null,null,null,null,null,null,null,null,null,null,null,null,null,null,null,null,null,"Elétrica da Ponte / Pórtico",230110,"Resistores"]
[null,null,null,null,null,null,null,null,null,null,null,null,null,null,null,null,null,null,null,null,null,null,null,null,null,null,null,null,null,null,null,null,null,null,"Elétrica da Ponte / Pórtico",230120,"Inversor"]
[null,null,null,null,null,null,null,null,null,null,null,null,null,null,null,null,null,null,null,null,null,null,null,null,null,null,null,null,null,null,null,null,null,null,"Elétrica da Ponte / Pórtico",230140,"Luzes"]
[null,null,null,null,null,null,null,null,null,null,null,null,null,null,null,null,null,null,null,null,null,null,null,null,null,null,null,null,null,null,null,null,null,null,"Elétrica da Ponte / Pórtico",230150,"Coletores de alimentação da ponte / pórtico"]
[null,null,null,null,null,null,null,null,null,null,null,null,null,null,null,null,null,null,null,null,null,null,null,null,null,null,null,null,null,null,null,null,null,null,"Elétrica da Ponte / Pórtico",230160,"Dispositivo de monitoramento"]
[null,null,null,null,null,null,null,null,null,null,null,null,null,null,null,null,null,null,null,null,null,null,null,null,null,null,null,null,null,null,null,null,null,null,"Elétrica da Ponte / Pórtico",230170,"Horímetro da ponte"]
[null,null,null,null,null,null,null,null,null,null,null,null,null,null,null,null,null,null,null,null,null,null,null,null,null,null,null,null,null,null,null,null,null,null,"Elétrica da Ponte / Pórtico",230180,"Interruptores de fim de curso da ponte / pórtico"]
[null,null,null,null,null,null,null,null,null,null,null,null,null,null,null,null,null,null,null,null,null,null,null,null,null,null,null,null,null,null,null,null,null,null,"Elétrica da Ponte / Pórtico",230190,"Botoeira"]
[null,null,null,null,null,null,null,null,null,null,null,null,null,null,null,null,null,null,null,null,null,null,null,null,null,null,null,null,null,null,null,null,null,null,"Elétrica da Ponte / Pórtico",230200,"Receptor / Transmissor do rádio"]
[null,null,null,null,null,null,null,null,null,null,null,null,null,null,null,null,null,null,null,null,null,null,null,null,null,null,null,null,null,null,null,null,null,null,"Elétrica da Ponte / Pórtico",230240,"Outros"]
[null,null,null,null,null,null,null,null,null,null,null,null,null,null,null,null,null,null,null,null,null,null,null,null,null,null,null,null,null,null,null,null,null,null,"Estrutura do Caminho de Rolamento",141001,"Trilhos - grampus"]
[null,null,null,null,null,null,null,null,null,null,null,null,null,null,null,null,null,null,null,null,null,null,null,null,null,null,null,null,null,null,null,null,null,null,"Estrutura do Caminho de Rolamento",141002,"Batentes fim de curso"]
[null,null,null,null,null,null,null,null,null,null,null,null,null,null,null,null,null,null,null,null,null,null,null,null,null,null,null,null,null,null,null,null,null,null,"Estrutura do Caminho de Rolamento",141003,"Trilhos - alinhamento"]
[null,null,null,null,null,null,null,null,null,null,null,null,null,null,null,null,null,null,null,null,null,null,null,null,null,null,null,null,null,null,null,null,null,null,"Estrutura do Caminho de Rolamento",141004,"Trilhos - juntas"]
[null,null,null,null,null,null,null,null,null,null,null,null,null,null,null,null,null,null,null,null,null,null,null,null,null,null,null,null,null,null,null,null,null,null,"Estrutura do Caminho de Rolamento",141005,"Trilhos - desgaste"]
[null,null,null,null,null,null,null,null,null,null,null,null,null,null,null,null,null,null,null,null,null,null,null,null,null,null,null,null,null,null,null,null,null,null,"Estrutura do Caminho de Rolamento",141006,"Parafusos em \"J\" (ganchos)"]
[null,null,null,null,null,null,null,null,null,null,null,null,null,null,null,null,null,null,null,null,null,null,null,null,null,null,null,null,null,null,null,null,null,null,"Estrutura do Caminho de Rolamento",141007,"Acionadores de fim de curso da ponte rolante"]
[null,null,null,null,null,null,null,null,null,null,null,null,null,null,null,null,null,null,null,null,null,null,null,null,null,null,null,null,null,null,null,null,null,null,"Estrutura do Caminho de Rolamento",141008,"Outros"]
[null,null,null,null,null,null,null,null,null,null,null,null,null,null,null,null,null,null,null,null,null,null,null,null,null,null,null,null,null,null,null,null,null,null,"Elétrica do Caminho de Rolamento",143001,"Dispositivo(s) Sinalizador(es)"]
[null,null,null,null,null,null,null,null,null,null,null,null,null,null,null,null,null,null,null,null,null,null,null,null,null,null,null,null,null,null,null,null,null,null,"Elétrica do Caminho de Rolamento",143002,"Caminho de rolamento - chave seccionadora geral"]
[1,null,null,null,null,null,null,null,null,null,null,null,null,null,null,null,null,null,null,null,null,null,null,null,null,null,null,null,null,null,null,null,null,null,"Elétrica do Caminho de Rolamento",143003,"Caminho de rolamento - cortina de alimentação"]
[null,null,null,null,null,null,null,null,null,null,null,null,null,null,null,null,null,null,null,null,null,null,null,null,null,null,null,null,null,null,null,null,null,null,"Elétrica do Caminho de Rolamento",143004,"Caminho de rolamento cortina de cabos controle"]
[null,null,null,null,null,null,null,null,null,null,null,null,null,null,null,null,null,null,null,null,null,null,null,null,null,null,null,null,null,null,null,null,null,null,"Elétrica do Caminho de Rolamento",143005,"Caminho de rolamento - codutor de alimentação"]
[null,null,null,null,null,null,null,null,null,null,null,null,null,null,null,null,null,null,null,null,null,null,null,null,null,null,null,null,null,null,null,null,null,null,"Elétrica do Caminho de Rolamento",143006,"Caminho de rolamento - condutores de controle"]
[null,null,null,null,null,null,null,null,null,null,null,null,null,null,null,null,null,null,null,null,null,null,null,null,null,null,null,null,null,null,null,null,null,null,"Elétrica do Caminho de Rolamento",143007,"Outros"]
[null,null,null,null,null,null,null,null,null,null,null,null,null,null,null,null,null,null,null,null,null,null,null,null,null,null,null,null,null,null,null,null,null,null,"Geral",161001,"Condição geral e limpeza"]
[null,null,null,null,null,null,null,null,null,null,null,null,null,null,null,null,null,null,null,null,null,null,null,null,null,null,null,null,null,null,null,null,null,null,"Geral",161002,"Identificação de capacidade"]
[null,null,null,null,null,null,null,null,null,null,null,null,null,null,null,null,null,null,null,null,null,null,null,null,null,null,null,null,null,null,null,null,null,null,"Geral",161004,"Grampo do trilho"]
[null,null,null,null,null,null,null,null,null,null,null,null,null,null,null,null,null,null,null,null,null,null,null,null,null,null,null,null,null,null,null,null,null,null,"Geral",161005,"Freio de estacionamento de trilho"]
[null,null,null,null,null,null,null,null,null,null,null,null,null,null,null,null,null,null,null,null,null,null,null,null,null,null,null,null,null,null,null,null,null,null,"Geral",161006,"Diário de bordo"]
[null,null,null,null,null,null,null,null,null,null,null,null,null,null,null,null,null,null,null,null,null,null,null,null,null,null,null,null,null,null,null,null,null,null,"Geral",161007,"Outros"]